{"text_format":"1","workbook":"xlsx","n_sheets":8,"sheets":["Input","печатная_форма","Schedule","Ref","паллетн.этикетки","Order Input","Лист1","Лист2"],"not_rendered":{"charts":0,"images":7,"macros":1,"external_links":0,"defined_names":9,"comments":1,"pivot_tables":0},"unopened":[],"bounds":{"document_bytes":16777216,"sheet_cells":100000,"rows_first":2000,"rows_last":500,"rows_between":2000,"halvings":0,"cell_chars":16384,"cell_head_chars":4096},"cells_cut":0,"cells_raw":0,"read":"whole","date_system":"1900"}

{"sheet":"Input","index":0,"n_rows":681,"n_cols":24,"rows_kept":681,"cut":false,"hidden":false,"merged":[[4,2,4,3],[21,7,21,8],[21,11,21,16],[3,4,4,4],[2,5,2,7],[3,7,3,9],[3,11,3,13],[20,11,20,14]]}
[]
[null,null,null,18]
[null,null,"Customer name","АТЛАСПРИНТ",null,{"$f":"IF(SUM('Order Input'!Y5:Y204)=0,\"\",\"задвоение                                            такой заказ уже есть\")","v":""}]
[null,null,null,null,{"$f":"IF(E11=\"\",\"\",IF(E11<>E9,\"дата отличается от графика\",\"\"))","v":""},null,null,{"$f":"IF(ISERROR(U9),\"ИЗМЕНИТЕ АДРЕС-такого адреса нет\",\"\")","v":""},null,null,null,{"$f":"IF(AND(OR(F9=\"фмхимки\",F9=\"фмсидорово\",F9=\"фмпитер\"),OR(H9=\"Ашан\",H9=\"Метро\",H9=\"Реал\",H9=\"Окей\")),IF(ISERROR(VLOOKUP(X9,Schedule!A:I,8,0)),\"ИЗМЕНИТЕ ДАТУ - Авизация не совпадает с графиком\",\"\"),\"\")","v":"ИЗМЕНИТЕ ДАТУ - Авизация не совпадает с графиком"}]
[null,null,"Название списков -->>",null,null,"Load_Key",null,"Retail","City","Via","hiden",null,null,null,"hidden",null,null,null,null,"hiden","hiden"]
[null,null,"x","x","x","x",null,null,null,null,"x","x",null,"x",null,"x","x",null,null,"x","x","x"]
["Source",null,1,{"$f":"C7+1","v":2},{"$f":"D7+1","v":3},{"$f":"E7+1","v":4},5,6,7,8,9,10,11,12,13,14,15,16,17,{"$f":"D2","v":18},{"$f":"T7+1","v":19},20]
[null,null,"Дата заявки","№ заказа грузополучателя","Дата отправки с ФМ","платформа загрузки","время загрузки","Сеть","Город","Адрес","выбрать адрес грузополучателя","Дата приёмки грузополучателем","Время приёмки Грузополучателем","Вес отправки\n(брутто)","Тип кузова","кол-во паллет","Тип паллет","Service","Комментарий по заявке","Customer name","Unloading point Searchname","Дата привоза на ФМ Ложистик"]
[null,null,null,null,null,"ФМСИДОРОВО",null,"Ашан","Новосибирск","Толмачевский сельсовет,о.п.307 км.",{"$f":"H9&\"'\"&I9&\"'\"&J9","v":"Ашан'Новосибирск'Толмачевский сельсовет,о.п.307 км."},null,null,null,null,null,null,"GR",null,{"$f":"$D$3","v":"АТЛАСПРИНТ"},{"$f":"VLOOKUP(K9,K23:L1012,2,0)","v":"АШАНТОЛМАЧ"},null,{"$f":"H9&\"'\"&I9","v":"Ашан'Новосибирск"},{"$f":"F9&\"'\"&H9&\"'\"&I9&\"'\"&WEEKDAY(L9,2)","v":"ФМСИДОРОВО'Ашан'Новосибирск'6"}]
[]
[null,null,null,"по графику ->",{"$f":"IF(ISERROR(L9-VLOOKUP(X9,Schedule!A:I,8,0)),\"\",L9-VLOOKUP(X9,Schedule!A:I,8,0))","v":""},null,null,"Седьмой Континент",null,"День недели:",null,null,null,null,null,null,null,null,"по графику ->",null,null,{"$f":"IF(ISERROR(L9-VLOOKUP(X9,Schedule!A:I,9,0)),\"\",L9-VLOOKUP(X9,Schedule!A:I,9,0))","v":""}]
[]
[null,null,null,null,null,null,null,null,null,null,null,null,null,null,null,null,"EP => Euro Pallet"]
[null,null,null,null,null,null,null,null,null,null,null,null,null,null,null,null,"UK => UK Pallet"]
[]
[]
[]
[]
[]
[]
[null,null,null,null,null,null,null,null,null,null,null,"UnloadSearch"]
[null,null,"названия списков","Load_Key",null,"Retail",null,"City",null,null,"Via","via"]
[null,null,null,null,null,null,null,"Сеть","Город",null,"ключ для searchname","searchname","name","address","city","Ключ для via"]
[null,null,null,"ФМЧЕХОВ",null,"Агроторг",null,"Сеть","Город вставлять без \"г.\"",null,null,null,null,null,null,{"$f":"M24&\"'\"&O24","v":"'"}]
[null,null,null,"ФМХИМКИ",null,"Атак",null,"Агроторг","Самара",null,{"$f":"M25&\"'\"&O25&\"'\"&N25","v":"Агроторг'Самара'ул.Товарная д.56 к.15"},"АГРОТОРГСА","Агроторг","ул.Товарная д.56 к.15","Самара","Агроторг'Самара"]
[null,null,null,"ФМСИДОРОВО",null,"Ашан",null,"Агроторг","Санкт-Петербург",null,"Агроторг'Санкт-Петербург'Московское Ш. д19 к2 литА","АГРОТОРГШУ","Агроторг","Московское Ш. д19 к2 литА","Санкт-Петербург","Агроторг'Санкт-Петербург"]
[null,null,null,null,null,"ГиперГлобус",null,"Арсенал Трейд","Екатеринбург",null,"Агроторг'Санкт-Петербург'ул.Варшавская, д.23, кор. 4","АГРОТОРГВА","Агроторг","ул.Варшавская, д.23, кор. 4","Санкт-Петербург","Агроторг'Санкт-Петербург"]
[null,null,null,null,null,"Дикси",null,"Атак","Москва",null,"Арсенал Трейд'Екатеринбург'Д.Сибирского тракта д.6","АРСЕНАЛ-ЕК","Арсенал Трейд","Д.Сибирского тракта д.6","Екатеринбург","Арсенал Трейд'Екатеринбург"]
[null,null,null,null,null,"Зельгрос",null,"Атак","Московская обл.",null,"Арсенал Трейд'Екатеринбург'проезд Промышленный, д.13","АРСЕНАЛТРЕ","Арсенал Трейд","проезд Промышленный, д.13","Екатеринбург","Арсенал Трейд'Екатеринбург"]
[null,null,null,null,null,"Карусель",null,"Атак","Владимир",null,"Атак'Владимир'ул.Верхняя Дуброва, 36А","АТАКВЛАДМР","Атак","ул.Верхняя Дуброва, 36А","Владимир","Атак'Владимир"]
[null,null,null,null,null,"Копейка",null,"Атак","Рязань",null,"Атак'Владимир'ул.Дворянская, д.10","АТАКВЛАДИМ","Атак","ул.Дворянская, д.10","Владимир","Атак'Владимир"]
[null,null,null,null,null,"Лента",null,"Атак","Тула",null,"Атак'Москва'Боровское ш., д.27","АТАКБОРОВШ","Атак","Боровское ш., д.27","Москва","Атак'Москва"]
[null,null,null,null,null,"Леруа Мерлен",null,"АТЛ","Екатеринбург",null,"Атак'Москва'д.Черная Грязь,ул.Сходненская,стр.1","АТАКСХОДНЕ","Атак","д.Черная Грязь,ул.Сходненская,стр.1","Москва","Атак'Москва"]
[null,null,null,null,null,"Метро",null,"АТЛ","Новосибирск",null,"Атак'Москва'Каширское ш., д.96, корп.2","АТАККАШИР","Атак","Каширское ш., д.96, корп.2","Москва","Атак'Москва"]
[null,null,null,null,null,"Окей",null,"Ашан","Верхняя Пышма",null,"Атак'Москва'Ленинградское ш., д.132А","АТАКЛЕН132","Атак","Ленинградское ш., д.132А","Москва","Атак'Москва"]
[null,null,null,null,null,"Перекресток",null,"Ашан","Воронежская обл.",null,"Атак'Москва'МКАД 87 км","АТАК87КМ","Атак","МКАД 87 км","Москва","Атак'Москва"]
[null,null,null,null,null,"Реал",null,"Ашан","Екатеринбург",null,"Атак'Москва'Мячковский б-р, д.16","АТАКМЯЧКОВ","Атак","Мячковский б-р, д.16","Москва","Атак'Москва"]
[null,null,null,null,null,"Седьмой Континент",null,"Ашан","Казань",null,"Атак'Москва'ул.3-го Интернационала, д.44","АТАКИНТЕРН","Атак","ул.3-го Интернационала, д.44","Москва","Атак'Москва"]
[null,null,null,null,null,null,null,"Ашан","Краснодар",null,"Атак'Москва'ул.Авангардная, д.3","АТАКАВАНГА","Атак","ул.Авангардная, д.3","Москва","Атак'Москва"]
[null,null,null,null,null,"--Прочие адреса>>",null,"Ашан","Ленинградская обл.",null,"Атак'Москва'ул.Ак.Анохина, д.9А","АТАКАНОХИН","Атак","ул.Ак.Анохина, д.9А","Москва","Атак'Москва"]
[null,null,null,null,null,"Арсенал Трейд",null,"Ашан","Москва",null,"Атак'Москва'ул.Ангарская, д.13","АТАКАНГАРС","Атак","ул.Ангарская, д.13","Москва","Атак'Москва"]
[null,null,null,null,null,"АТЛ",null,"Ашан","Московская обл.",null,"Атак'Москва'ул.Бибиревская, д.9","АТАКБИБИРЕ","Атак","ул.Бибиревская, д.9","Москва","Атак'Москва"]
[null,null,null,null,null,"ИП Молотов",null,"Ашан","Нижний Новгород",null,"Атак'Москва'ул.Дубравная, д.38","АТАКДУБРАВ","Атак","ул.Дубравная, д.38","Москва","Атак'Москва"]
[null,null,null,null,null,"Мега",null,"Ашан","Новосибирск",null,"Атак'Москва'ул.Кастанаевская, д.54, корп.3","АТАККАСТАН","Атак","ул.Кастанаевская, д.54, корп.3","Москва","Атак'Москва"]
[null,null,null,null,null,"Наири",null,"Ашан","Омск",null,"Атак'Москва'ул.Красный Казанец, д.1б","АТАККРКАЗ","Атак","ул.Красный Казанец, д.1б","Москва","Атак'Москва"]
[null,null,null,null,null,"Рыбинская маркет",null,"Ашан","Пенза",null,"Атак'Москва'ул.Печорская, д.3","АТАКПЕЧОР","Атак","ул.Печорская, д.3","Москва","Атак'Москва"]
[null,null,null,null,null,"Сити Строй",null,"Ашан","респ.Адыгея",null,"Атак'Москва'ул.Снежная, д.16, вл.1","АТАКСНЕЖНА","Атак","ул.Снежная, д.16, вл.1","Москва","Атак'Москва"]
[null,null,null,null,null,"СИТИ ЦЕНТР",null,"Ашан","Ростовская обл.",null,"Атак'Московская обл.'Балашиха, ш.Энтузиастов, д.54а","АТАКБАЛАШИ","Атак","Балашиха, ш.Энтузиастов, д.54а","Московская обл.","Атак'Московская обл."]
[null,null,null,null,null,"Сладкая Жизнь",null,"Ашан","Ростов-на-Дону",null,"Атак'Московская обл.'Балашиха,ул.Свердлова д.30","АТАКБАЛАШ","Атак","Балашиха,ул.Свердлова д.30","Московская обл.","Атак'Московская обл."]
[null,null,null,null,null,"СтройАрсенал",null,"Ашан","Самара",null,"Атак'Московская обл.'Зеленоград, корп.1801","АТАКЗЕЛЕН","Атак","Зеленоград, корп.1801","Московская обл.","Атак'Московская обл."]
[null,null,null,null,null,"СуперСтройУфа",null,"Ашан","Санкт-Петербург",null,"Атак'Московская обл.'Клин, ул.Карла Маркса, д.2а","АТАККЛИН","Атак","Клин, ул.Карла Маркса, д.2а","Московская обл.","Атак'Московская обл."]
[null,null,null,null,null,"Урал трейд",null,"Ашан","Челябинск",null,"Атак'Московская обл.'Королев, ул.Пушкинская, д.17","АТАККОРОЛЕ","Атак","Королев, ул.Пушкинская, д.17","Московская обл.","Атак'Московская обл."]
[null,null,null,null,null,"Холидей",null,"ГиперГлобус","Владимир",null,"Атак'Московская обл.'Лобня,ул.Ленина,д.23,корп.12/13","АТАКЛОБНЯ","Атак","Лобня,ул.Ленина,д.23,корп.12/13","Московская обл.","Атак'Московская обл."]
[null,null,null,null,null,"Элемент Трейд",null,"ГиперГлобус","Московская обл.",null,"Атак'Московская обл.'Мытищи, Олимпийский пр-т, д.13,","АТАКМЫТИЩ","Атак","Мытищи, Олимпийский пр-т, д.13,","Московская обл.","Атак'Московская обл."]
[null,null,null,null,null,"Юг Трейд",null,"ГиперГлобус","Рязанская обл.",null,"Атак'Московская обл.'Новое шоссе, дом 34/4","АТАКФМХИМ","Атак","Новое шоссе, дом 34/4","Московская обл.","Атак'Московская обл."]
[null,null,null,null,null,"Юнилэнд",null,"ГиперГлобус","Ярославская обл.",null,"Атак'Московская обл.'Ногинское ш., д.2","АТАКЭЛЕКТ2","Атак","Ногинское ш., д.2","Московская обл.","Атак'Московская обл."]
[null,null,null,null,null,null,null,"Дикси","Московская обл.",null,"Атак'Московская обл.'Павловский Посад,ул.Б.Покровская,","АТАКПАВЛОВ","Атак","Павловский Посад,ул.Б.Покровская,","Московская обл.","Атак'Московская обл."]
[null,null,null,null,null,null,null,"Дикси","Санкт-Петербург",null,"Атак'Московская обл.'Пролетарский пр-кт, д.8а","АТАКЩЕЛ","Атак","Пролетарский пр-кт, д.8а","Московская обл.","Атак'Московская обл."]
[null,null,null,null,null,null,null,"Дикси","Хабаровск",null,"Атак'Московская обл.'пр-т Красной Армии, д.212д","АТАКСПОСА2","Атак","пр-т Красной Армии, д.212д","Московская обл.","Атак'Московская обл."]
[null,null,null,null,null,null,null,"Дикси","Челябинск",null,"Атак'Московская обл.'пр-т Победы, д.14","АТАКТВЕРЬ2","Атак","пр-т Победы, д.14","Московская обл.","Атак'Московская обл."]
[null,null,null,null,null,null,null,"Дикси","Ярославль",null,"Атак'Московская обл.'ул.Инициативная, д.3в","АТАКЛЮБЕР2","Атак","ул.Инициативная, д.3в","Московская обл.","Атак'Московская обл."]
[null,null,null,null,null,null,null,"Зельгрос","Казань",null,"Атак'Московская обл.'ул.Инициативная, д.76","АТАКЛЮБЕР1","Атак","ул.Инициативная, д.76","Московская обл.","Атак'Московская обл."]
[null,null,null,null,null,null,null,"ИП Молотов","Ростов-на-Дону",null,"Атак'Московская обл.'ул.Карла Маркса, д.30","АТАКЭЛЕКТ3","Атак","ул.Карла Маркса, д.30","Московская обл.","Атак'Московская обл."]
[null,null,null,null,null,null,null,"Карусель","Ленинградская обл.",null,"Атак'Московская обл.'ул.Кооперативная, д.3","АТАКСПОСА1","Атак","ул.Кооперативная, д.3","Московская обл.","Атак'Московская обл."]
[null,null,null,null,null,null,null,"Карусель","Москва",null,"Атак'Московская обл.'ул.Маршала Конева, д.12/1","АТАКТВЕРЬ1","Атак","ул.Маршала Конева, д.12/1","Московская обл.","Атак'Московская обл."]
[null,null,null,null,null,null,null,"Карусель","Санкт-Петербург",null,"Атак'Московская обл.'ул.Молодежная, д.12а","АТАКМОЛ","Атак","ул.Молодежная, д.12а","Московская обл.","Атак'Московская обл."]
[null,null,null,null,null,null,null,"Копейка","Воронеж",null,"Атак'Московская обл.'ул.Московская, д.14","АТАКМОСКОВ","Атак","ул.Московская, д.14","Московская обл.","Атак'Московская обл."]
[null,null,null,null,null,null,null,"Копейка","Московская обл.",null,"Атак'Московская обл.'ул.Тевосяна, д.19","АТАКЭЛЕКТ1","Атак","ул.Тевосяна, д.19","Московская обл.","Атак'Московская обл."]
[null,null,null,null,null,null,null,"Копейка","Нижний Новгород",null,"Атак'Московская обл.'ул.Чехова, д.2","АТАКЧЕХОВ","Атак","ул.Чехова, д.2","Московская обл.","Атак'Московская обл."]
[null,null,null,null,null,null,null,"Копейка","Самара",null,"Атак'Рязань'ул. Новоселов, д.14/16","АТАКРЯЗАН1","Атак","ул. Новоселов, д.14/16","Рязань","Атак'Рязань"]
[null,null,null,null,null,null,null,"Лента","Астрахань",null,"Атак'Рязань'ул.Пушкина, д.27","АТАКРЯЗАН2","Атак","ул.Пушкина, д.27","Рязань","Атак'Рязань"]
[null,null,null,null,null,null,null,"Лента","Барнаул",null,"Атак'Тула'ул.Максима Горького 1Б","АТАКТУЛА","Атак","ул.Максима Горького 1Б","Тула","Атак'Тула"]
[null,null,null,null,null,null,null,"Лента","Великий Новгород",null,"АТЛ'Екатеринбург'ул.Завокзальная, д.5, оф.206","АТЛПОВОЛЖ","АТЛ","ул.Завокзальная, д.5, оф.206","Екатеринбург","АТЛ'Екатеринбург"]
[null,null,null,null,null,null,null,"Лента","Волгоград",null,"АТЛ'Екатеринбург'ул.Завокзальная,5","АТЛПОВОЛЖЬ","АТЛ","ул.Завокзальная,5","Екатеринбург","АТЛ'Екатеринбург"]
[null,null,null,null,null,null,null,"Лента","Краснодар",null,"АТЛ'Новосибирск'Толмачевское ш, 43/4,","АТЛСИБСКЛ","АТЛ","Толмачевское ш, 43/4,","Новосибирск","АТЛ'Новосибирск"]
[null,null,null,null,null,null,null,"Лента","Ленинградская обл.",null,"Ашан'Верхняя Пышма'пр-д Индустриальный, д.1, к.1","АШАНВПЫШМА","Ашан","пр-д Индустриальный, д.1, к.1","Верхняя Пышма","Ашан'Верхняя Пышма"]
[null,null,null,null,null,null,null,"Лента","Московская обл.",null,"Ашан'Воронежская обл.'Рамонский р-н, пос.Солнечный,","АШАНВОРОНЕ","Ашан","Рамонский р-н, пос.Солнечный,","Воронежская обл.","Ашан'Воронежская обл."]
[null,null,null,null,null,null,null,"Лента","Набережные Челны",null,"Ашан'Екатеринбург'ул.Металлургов,87","АШАНЕКАТ3","Ашан","ул.Металлургов,87","Екатеринбург","Ашан'Екатеринбург"]
[null,null,null,null,null,null,null,"Лента","Нижний Новгород",null,"Ашан'Екатеринбург'ул.Халтурина,55","АШАНЕКАТ4","Ашан","ул.Халтурина,55","Екатеринбург","Ашан'Екатеринбург"]
[null,null,null,null,null,null,null,"Лента","Новороссийск",null,"Ашан'Казань'пр. Победы, д.91","АШАНКАЗАНЬ","Ашан","пр. Победы, д.91","Казань","Ашан'Казань"]
[null,null,null,null,null,null,null,"Лента","Новосибирск",null,"Ашан'Краснодар'ул.Уральская,79","АШАНКРДАР","Ашан","ул.Уральская,79","Краснодар","Ашан'Краснодар"]
[null,null,null,null,null,null,null,"Лента","Омск",null,"Ашан'Ленинградская обл.'Всеволожский р-н, Западнее п.Бугры,","АШАНПАРНАС","Ашан","Всеволожский р-н, Западнее п.Бугры,","Ленинградская обл.","Ашан'Ленинградская обл."]
[null,null,null,null,null,null,null,"Лента","Пенза",null,"Ашан'Ленинградская обл.'Мурманское ш., 12 км","АШАНДЫБ","Ашан","Мурманское ш., 12 км","Ленинградская обл.","Ашан'Ленинградская обл."]
[null,null,null,null,null,null,null,"Лента","Ростовская обл.",null,"Ашан'Москва'66 км МКАД","АШАН66МКАД","Ашан","66 км МКАД","Москва","Ашан'Москва"]
[null,null,null,null,null,null,null,"Лента","Рязань",null,"Ашан'Москва'Багратионовский пр-д, д.5","АШАНБАГРАТ","Ашан","Багратионовский пр-д, д.5","Москва","Ашан'Москва"]
[null,null,null,null,null,null,null,"Лента","Санкт-Петербург",null,"Ашан'Москва'Каширское ш., д.61, кор.2","АШАНКАШИР","Ашан","Каширское ш., д.61, кор.2","Москва","Ашан'Москва"]
[null,null,null,null,null,null,null,"Лента","Саратов",null,"Ашан'Москва'пр-т Вернадского, д.6","АШАНВЕРНАД","Ашан","пр-т Вернадского, д.6","Москва","Ашан'Москва"]
[null,null,null,null,null,null,null,"Лента","Тольятти",null,"Ашан'Москва'Рублевское ш., д.62","АШАНРУБЛЕВ","Ашан","Рублевское ш., д.62","Москва",{"$f":"M88&\"'\"&O88","v":"Ашан'Москва"}]
[null,null,null,null,null,null,null,"Лента","Тюмень",null,{"$f":"M89&\"'\"&O89&\"'\"&N89","v":"Ашан'Москва'Рязанский пр-т, д.2, кор.2"},"АШАНРЯЗАНС","Ашан","Рязанский пр-т, д.2, кор.2","Москва","Ашан'Москва"]
[null,null,null,null,null,null,null,"Лента","Череповец",null,"Ашан'Москва'Севастопольский пр-т, д.11 Е","АШАНСЕВАСТ","Ашан","Севастопольский пр-т, д.11 Е","Москва","Ашан'Москва"]
[null,null,null,null,null,null,null,"Леруа Мерлен","Воронежская обл.",null,"Ашан'Москва'ул. Верхняя-Красноскльска","АШАНСОКОЛ","Ашан","ул. Верхняя-Красноскльска","Москва","Ашан'Москва"]
[null,null,null,null,null,null,null,"Леруа Мерлен","Краснодар",null,"Ашан'Москва'ул.Вавилова, 3","АШАНВАВИЛО","Ашан","ул.Вавилова, 3","Москва","Ашан'Москва"]
[null,null,null,null,null,null,null,"Леруа Мерлен","Москва",null,"Ашан'Москва'ул.Верхняя Красносельская, д.3А","АШАНКОТ","Ашан","ул.Верхняя Красносельская, д.3А","Москва","Ашан'Москва"]
[null,null,null,null,null,null,null,"Леруа Мерлен","Московская обл.",null,"Ашан'Москва'ул.Люблинская, д.153","АШАНЛЮБЛИН","Ашан","ул.Люблинская, д.153","Москва","Ашан'Москва"]
[null,null,null,null,null,null,null,"Леруа Мерлен","Новосибирск",null,"Ашан'Москва'ул.Миклухо-Маклая, д.32 А","АШАНМИКЛУХ","Ашан","ул.Миклухо-Маклая, д.32 А","Москва","Ашан'Москва"]
[null,null,null,null,null,null,null,"Леруа Мерлен","Омск",null,"Ашан'Москва'ул.Правобережная, д.1 Б","АШАНПРАВОБ","Ашан","ул.Правобережная, д.1 Б","Москва","Ашан'Москва"]
[null,null,null,null,null,null,null,"Леруа Мерлен","Ростовская обл.",null,"Ашан'Москва'ул.Шереметьевская, д.60 А","АШАНШЕРЕМЕ","Ашан","ул.Шереметьевская, д.60 А","Москва","Ашан'Москва"]
[null,null,null,null,null,null,null,"Леруа Мерлен","Самара",null,"Ашан'Москва'ул.Ярцевская, 19/1","АШАНКУНЦЕВ","Ашан","ул.Ярцевская, 19/1","Москва","Ашан'Москва"]
[null,null,null,null,null,null,null,"Леруа Мерлен","Санкт-Петербург",null,"Ашан'Москва'ш.Энтузиастов, д.12, корп.2","АШАНЭНТУЗ","Ашан","ш.Энтузиастов, д.12, корп.2","Москва","Ашан'Москва"]
[null,null,null,null,null,null,null,"Мега","Московская обл.",null,"Ашан'Московская обл.'21 км Калужского ш.","АШАНКАЛУЖ","Ашан","21 км Калужского ш.","Московская обл.","Ашан'Московская обл."]
[null,null,null,null,null,null,null,"Мега","Ленинградская обл.",null,"Ашан'Московская обл.'Котельники, 1-й Покровский пр-д,","АШАНБЕЛДАЧ","Ашан","Котельники, 1-й Покровский пр-д,","Московская обл.","Ашан'Московская обл."]
[null,null,null,null,null,null,null,"Метро","Астрахань",null,"Ашан'Московская обл.'Люберецкий р-н, пос.Котельники,","АШАНЛЮБЕР","Ашан","Люберецкий р-н, пос.Котельники,","Московская обл.","Ашан'Московская обл."]
[null,null,null,null,null,null,null,"Метро","Барнаул",null,"Ашан'Московская обл.'Микрорайон \"ИКЕА\", корп.4","АШАНХИМКИ","Ашан","Микрорайон \"ИКЕА\", корп.4","Московская обл.","Ашан'Московская обл."]
[null,null,null,null,null,null,null,"Метро","Брянск",null,"Ашан'Московская обл.'Мытищинский р-н, МКАД 84км,","АШАНАЛТУФ","Ашан","Мытищинский р-н, МКАД 84км,","Московская обл.","Ашан'Московская обл."]
[null,null,null,null,null,null,null,"Метро","Волгоград",null,"Ашан'Московская обл.'Новое шоссе, дом 34/4","АШАНФМХИМ","Ашан","Новое шоссе, дом 34/4","Московская обл.","Ашан'Московская обл."]
[null,null,null,null,null,null,null,"Метро","Вологда",null,"Ашан'Московская обл.'Одинцовский р-н, д.Марфино","АШАНМАРФ","Ашан","Одинцовский р-н, д.Марфино","Московская обл.","Ашан'Московская обл."]
[null,null,null,null,null,null,null,"Метро","Воронеж",null,"Ашан'Московская обл.'Осташковское ш.,1, 91 км МКАД","АШАНМЫТИЩ","Ашан","Осташковское ш.,1, 91 км МКАД","Московская обл.","Ашан'Московская обл."]
[null,null,null,null,null,null,null,"Метро","Екатеринбург",null,"Ашан'Московская обл.'п. Октябрьский, Заводская 5","АШАНЗАВОД","Ашан","п. Октябрьский, Заводская 5","Московская обл.","Ашан'Московская обл."]
[null,null,null,null,null,null,null,"Метро","Казань",null,"Ашан'Московская обл.'Подольск, ул.Б.Серпуховская, д.45","АШАНПОДОЛЬ","Ашан","Подольск, ул.Б.Серпуховская, д.45","Московская обл.","Ашан'Московская обл."]
[null,null,null,null,null,null,null,"Метро","Калининград",null,"Ашан'Московская обл.'Совхоз имени Ленина,24 км МКАД","АШАНТВОЙДО","Ашан","Совхоз имени Ленина,24 км МКАД","Московская обл.","Ашан'Московская обл."]
[null,null,null,null,null,null,null,"Метро","Калуга",null,"Ашан'Московская обл.'Ступинский р-н, д.Сидорово","АШАНСИДОРО","Ашан","Ступинский р-н, д.Сидорово","Московская обл.","Ашан'Московская обл."]
[null,null,null,null,null,null,null,"Метро","Кемерово",null,"Ашан'Московская обл.'ул.Пушкинское поле д.10 стр.3","АШАНПУШКИН","Ашан","ул.Пушкинское поле д.10 стр.3","Московская обл.","Ашан'Московская обл."]
[null,null,null,null,null,null,null,"Метро","Киров",null,"Ашан'Московская обл.'ул.Якова Флиера,4","АШАНОРЕХОВ","Ашан","ул.Якова Флиера,4","Московская обл.","Ашан'Московская обл."]
[null,null,null,null,null,null,null,"Метро","Краснодар",null,"Ашан'Московская обл.'Чеховский р-н, д.Люторецкое","АШАНЧЕХОВ","Ашан","Чеховский р-н, д.Люторецкое","Московская обл.","Ашан'Московская обл."]
[null,null,null,null,null,null,null,"Метро","Красноярский край",null,"Ашан'Нижний Новгород'Кстовский р-н, д.Федяково","АШАННОВГ","Ашан","Кстовский р-н, д.Федяково","Нижний Новгород","Ашан'Нижний Новгород"]
[null,null,null,null,null,null,null,"Метро","Курск",null,"Ашан'Новосибирск'ул. Петухова, д.35/2","АШАННОВОС4","Ашан","ул. Петухова, д.35/2","Новосибирск","Ашан'Новосибирск"]
[null,null,null,null,null,null,null,"Метро","Липецк",null,"Ашан'Новосибирск'ул.Ватутина д.107","АШАННОВОС1","Ашан","ул.Ватутина д.107","Новосибирск","Ашан'Новосибирск"]
[null,null,null,null,null,null,null,"Метро","Магнитогорск",null,"Ашан'Новосибирск'ул.Курчатова д.1","АШАННОВОС3","Ашан","ул.Курчатова д.1","Новосибирск","Ашан'Новосибирск"]
[null,null,null,null,null,null,null,"Метро","Москва",null,"Ашан'Новосибирск'ул.Курчатова д.1","АШАННОВКУР","Ашан","ул.Курчатова д.1","Новосибирск","Ашан'Новосибирск"]
[null,null,null,null,null,null,null,"Метро","Московская обл.",null,"Ашан'Новосибирск'ул.Петухова, 71","АШАННОВОС2","Ашан","ул.Петухова, 71","Новосибирск","Ашан'Новосибирск"]
[null,null,null,null,null,null,null,"Метро","Набережные Челны",null,"Ашан'Новосибирск'Толмачевский сельсовет,о.п.307 км.","АШАНТОЛМАЧ","Ашан","Толмачевский сельсовет,о.п.307 км.","Новосибирск","Ашан'Новосибирск"]
[null,null,null,null,null,null,null,"Метро","Нижний Новгород",null,"Ашан'Новосибирск'ул.Фрунзе д.238","АШАНФРУНЗЕ","Ашан","ул.Фрунзе д.238","Новосибирск","Ашан'Новосибирск"]
[null,null,null,null,null,null,null,"Метро","Новокузнецк",null,"Ашан'Омск'ул.Бульвар Архитекторов, д.35","АШАНОМСК","Ашан","ул.Бульвар Архитекторов, д.35","Омск","Ашан'Омск"]
[null,null,null,null,null,null,null,"Метро","Новосибирск",null,"Ашан'Пенза'ул.Центральная, д.1","АШАНПЕНЗА","Ашан","ул.Центральная, д.1","Пенза","Ашан'Пенза"]
[null,null,null,null,null,null,null,"Метро","Омск",null,"Ашан'респ.Адыгея'Тахтамукайский р-н,","АШАНАДЫГЕЯ","Ашан","Тахтамукайский р-н,","респ.Адыгея","Ашан'респ.Адыгея"]
[null,null,null,null,null,null,null,"Метро","Оренбург",null,"Ашан'Ростовская обл.'Аксай, пр.Аксайский, 23","АШАНАКСАЙ","Ашан","Аксай, пр.Аксайский, 23","Ростовская обл.","Ашан'Ростовская обл."]
[null,null,null,null,null,null,null,"Метро","Пензенская обл.",null,"Ашан'Ростовская обл.'Аксайский р-н, ч. Большой Лог","АШАНРОСТ1","Ашан","Аксайский р-н, ч. Большой Лог","Ростовская обл.","Ашан'Ростовская обл."]
[null,null,null,null,null,null,null,"Метро","Пермь",null,"Ашан'Ростовская обл.'Аксайский р-н,п.Верхнетемерницкий,","АШАНОРБИТА","Ашан","Аксайский р-н,п.Верхнетемерницкий,","Ростовская обл.","Ашан'Ростовская обл."]
[null,null,null,null,null,null,null,"Метро","Пятигорск",null,"Ашан'Ростов-на-Дону'ул. Пойменная, д.1","АШАНРОСТОВ","Ашан","ул. Пойменная, д.1","Ростов-на-Дону","Ашан'Ростов-на-Дону"]
[null,null,null,null,null,null,null,"Метро","респ.Адыгея",null,"Ашан'Самара'Московское ш. 27","АШАНСАМАР","Ашан","Московское ш. 27","Самара","Ашан'Самара"]
[null,null,null,null,null,null,null,"Метро","Ростов-на-Дону",null,"Ашан'Самара'ул.Дыбенко, д.30","АШАНСАМАР2","Ашан","ул.Дыбенко, д.30","Самара","Ашан'Самара"]
[null,null,null,null,null,null,null,"Метро","Рязань",null,"Ашан'Санкт-Петербург'1-й Верхний пер.","АШАНПИТЕР","Ашан","1-й Верхний пер.","Санкт-Петербург","Ашан'Санкт-Петербург"]
[null,null,null,null,null,null,null,"Метро","Самара",null,"Ашан'Санкт-Петербург'Пулковское ш., участок 7","АШАНЛЕТО","Ашан","Пулковское ш., участок 7","Санкт-Петербург","Ашан'Санкт-Петербург"]
[null,null,null,null,null,null,null,"Метро","Санкт-Петербург",null,"Ашан'Санкт-Петербург'ул.Боровая, д.47","АШАНБОРОВА","Ашан","ул.Боровая, д.47","Санкт-Петербург","Ашан'Санкт-Петербург"]
[null,null,null,null,null,null,null,"Метро","Саратов",null,"Ашан'Санкт-Петербург'ул.Пулковское шоссе д.7","АШАНПУЛКОВ","Ашан","ул.Пулковское шоссе д.7","Санкт-Петербург","Ашан'Санкт-Петербург"]
[null,null,null,null,null,null,null,"Метро","Смоленск",null,"Ашан'Санкт-Петербург'ул.Седова, д.11, лит.А","АШАНПИТЕР1","Ашан","ул.Седова, д.11, лит.А","Санкт-Петербург","Ашан'Санкт-Петербург"]
[null,null,null,null,null,null,null,"Метро","Ставрополь",null,"Ашан'Санкт-Петербург'ул.Торфяная дорога, д.7","АШАНПИТЕР2","Ашан","ул.Торфяная дорога, д.7","Санкт-Петербург","Ашан'Санкт-Петербург"]
[null,null,null,null,null,null,null,"Метро","Тольятти",null,"Ашан'Челябинск'ул.Труда д.203","АШАНЧЕЛЯБ","Ашан","ул.Труда д.203","Челябинск","Ашан'Челябинск"]
[null,null,null,null,null,null,null,"Метро","Томск",null,"ГиперГлобус'Владимир'Суздальский пр-кт, 28","ГИПЕРГЛОВЛ","ГиперГлобус","Суздальский пр-кт, 28","Владимир","ГиперГлобус'Владимир"]
[null,null,null,null,null,null,null,"Метро","Тульская обл.",null,"ГиперГлобус'Московская обл.'Пролетарский пр-т, д.18","ГИПЕРГЛЩЕЛ","ГиперГлобус","Пролетарский пр-т, д.18","Московская обл.","ГиперГлобус'Московская обл."]
[null,null,null,null,null,null,null,"Метро","Тюмень",null,"ГиперГлобус'Московская обл.'ул. Молодежная, д.11","ГИПЕРГЛОБ","ГиперГлобус","ул. Молодежная, д.11","Московская обл.","ГиперГлобус'Московская обл."]
[null,null,null,null,null,null,null,"Метро","Ульяновск",null,"ГиперГлобус'Рязанская обл.'Рязанский р-н,с.Дядьково,1","ГИПЕРГЛОРЯ","ГиперГлобус","Рязанский р-н,с.Дядьково,1","Рязанская обл.","ГиперГлобус'Рязанская обл."]
[null,null,null,null,null,null,null,"Метро","Уфа",null,"ГиперГлобус'Ярославская обл.'пос.Красный Бор, стр.1","ГИПЕРГЛОЯР","ГиперГлобус","пос.Красный Бор, стр.1","Ярославская обл.","ГиперГлобус'Ярославская обл."]
[null,null,null,null,null,null,null,"Метро","Чебоксары",null,"Дикси'Московская обл.'Серпуховский р-н, д.Всходы, д.100","ДИКСИВСХОД","Дикси","Серпуховский р-н, д.Всходы, д.100","Московская обл.","Дикси'Московская обл."]
[null,null,null,null,null,null,null,"Метро","Челябинская обл.",null,"Дикси'Санкт-Петербург'Митрофаньевское шоссе, д.2 к.7,","ДИКСИМИТРО","Дикси","Митрофаньевское шоссе, д.2 к.7,","Санкт-Петербург","Дикси'Санкт-Петербург"]
[null,null,null,null,null,null,null,"Метро","Ярославль",null,"Дикси'Санкт-Петербург'Московское ш., д.77 лит.В, к.1","ДИКСИМОСКШ","Дикси","Московское ш., д.77 лит.В, к.1","Санкт-Петербург","Дикси'Санкт-Петербург"]
[null,null,null,null,null,null,null,"Наири","Пятигорск",null,"Дикси'Санкт-Петербург'наб.Обводного канала, 118 А","ДИКСИОБ","Дикси","наб.Обводного канала, 118 А","Санкт-Петербург","Дикси'Санкт-Петербург"]
[null,null,null,null,null,null,null,"Окей","Астрахань",null,"Дикси'Санкт-Петербург'Московское ш.,70,к.4","ДИКСИСПБ","Дикси","Московское ш.,70,к.4","Санкт-Петербург","Дикси'Санкт-Петербург"]
[null,null,null,null,null,null,null,"Окей","Волгоград",null,"Дикси'Санкт-Петербург'ул.Кубинская, д.75, к.1","ДИКСИКУБИН","Дикси","ул.Кубинская, д.75, к.1","Санкт-Петербург","Дикси'Санкт-Петербург"]
[null,null,null,null,null,null,null,"Окей","Волжский",null,"Дикси'Хабаровск'ул.Суворова,51","ДИКСИХАБ","Дикси","ул.Суворова,51","Хабаровск","Дикси'Хабаровск"]
[null,null,null,null,null,null,null,"Окей","Воронеж",null,"Дикси'Челябинск'ул.Первомайская д.1-а,литера А,А/1","ДИКСИЧЕЛ2","Дикси","ул.Первомайская д.1-а,литера А,А/1","Челябинск","Дикси'Челябинск"]
[null,null,null,null,null,null,null,"Окей","Краснодар",null,"Дикси'Челябинск'ул.Севанская 2","ДИКСИЧЕЛ1","Дикси","ул.Севанская 2","Челябинск","Дикси'Челябинск"]
[null,null,null,null,null,null,null,"Окей","Красноярск",null,"Дикси'Ярославль'ул.2-я Транспортная, д.1А","ДИКСИЯРОСЛ","Дикси","ул.2-я Транспортная, д.1А","Ярославль","Дикси'Ярославль"]
[null,null,null,null,null,null,null,"Окей","Ленинградская обл.",null,"Зельгрос'Казань'Мамадышский тракт, д.32","ЗЕЛЬГРОСКА","Зельгрос","Мамадышский тракт, д.32","Казань",{"$f":"M154&\"'\"&O154","v":"Зельгрос'Казань"}]
[null,null,null,null,null,null,null,"Окей","Липецк",null,{"$f":"M155&\"'\"&O155&\"'\"&N155","v":"ИП Молотов'Ростов-на-Дону'ул. Малиновского,д.37Б, база"},"МОЛОТОВ","ИП Молотов","ул. Малиновского,д.37Б, база","Ростов-на-Дону","ИП Молотов'Ростов-на-Дону"]
[null,null,null,null,null,null,null,"Окей","Москва",null,"Карусель'Ленинградская обл.'Выборг, ул.Госпитальная, 1","КАРУСВЫБ","Карусель","Выборг, ул.Госпитальная, 1","Ленинградская обл.","Карусель'Ленинградская обл."]
[null,null,null,null,null,null,null,"Окей","Московская обл.",null,"Карусель'Ленинградская обл.'Сосновый Бор, ул.Красных Фортов,","КАРУССБОР","Карусель","Сосновый Бор, ул.Красных Фортов,","Ленинградская обл.","Карусель'Ленинградская обл."]
[null,null,null,null,null,null,null,"Окей","Мурманск",null,"Карусель'Москва'Ленинградское ш., д.16А","КАРУСМСК02","Карусель","Ленинградское ш., д.16А","Москва","Карусель'Москва"]
[null,null,null,null,null,null,null,"Окей","Нижний Новгород",null,"Карусель'Москва'пр-т Андропова, 8","КАРУСМСК01","Карусель","пр-т Андропова, 8","Москва","Карусель'Москва"]
[null,null,null,null,null,null,null,"Окей","Новосибирск",null,"Карусель'Санкт-Петербург'Коломяжский пр., 17 А","КАРУССПБ07","Карусель","Коломяжский пр., 17 А","Санкт-Петербург","Карусель'Санкт-Петербург"]
[null,null,null,null,null,null,null,"Окей","Новочеркасск",null,"Карусель'Санкт-Петербург'Ленинский пр,100/1","КАРУССПБ02","Карусель","Ленинский пр,100/1","Санкт-Петербург","Карусель'Санкт-Петербург"]
[null,null,null,null,null,null,null,"Окей","Омск",null,"Карусель'Санкт-Петербург'пр. Большевиков, 32 А","КАРУССПБ08","Карусель","пр. Большевиков, 32 А","Санкт-Петербург","Карусель'Санкт-Петербург"]
[null,null,null,null,null,null,null,"Окей","Ростов-на-Дону",null,"Карусель'Санкт-Петербург'пр. Маршала Блюхера,41","КАРУССПБ06","Карусель","пр. Маршала Блюхера,41","Санкт-Петербург","Карусель'Санкт-Петербург"]
[null,null,null,null,null,null,null,"Окей","Санкт-Петербург",null,"Карусель'Санкт-Петербург'пр. Просвещения, 74, к 2","КАРУССПБ13","Карусель","пр. Просвещения, 74, к 2","Санкт-Петербург","Карусель'Санкт-Петербург"]
[null,null,null,null,null,null,null,"Окей","Саратовская обл.",null,"Карусель'Санкт-Петербург'Пулковское шоссе,19","КАРУССПБ01","Карусель","Пулковское шоссе,19","Санкт-Петербург","Карусель'Санкт-Петербург"]
[null,null,null,null,null,null,null,"Окей","Ставрополь",null,"Карусель'Санкт-Петербург'ул. Бухарестская,89","КАРУССПБ12","Карусель","ул. Бухарестская,89","Санкт-Петербург","Карусель'Санкт-Петербург"]
[null,null,null,null,null,null,null,"Окей","Тольятти",null,"Карусель'Санкт-Петербург'ул. Карбышева,9","КАРУССПБ03","Карусель","ул. Карбышева,9","Санкт-Петербург","Карусель'Санкт-Петербург"]
[null,null,null,null,null,null,null,"Окей","Томск",null,"Карусель'Санкт-Петербург'ул. Коллонтай, 3А","КАРУССПБ05","Карусель","ул. Коллонтай, 3А","Санкт-Петербург","Карусель'Санкт-Петербург"]
[null,null,null,null,null,null,null,"Окей","Тюмень",null,"Карусель'Санкт-Петербург'ул. Кузнецовская, 31","КАРУССПБ11","Карусель","ул. Кузнецовская, 31","Санкт-Петербург","Карусель'Санкт-Петербург"]
[null,null,null,null,null,null,null,"Окей","Уфа",null,"Карусель'Санкт-Петербург'ул. Партизана Германа, 47","КАРУССПБ10","Карусель","ул. Партизана Германа, 47","Санкт-Петербург","Карусель'Санкт-Петербург"]
[null,null,null,null,null,null,null,"Перекресток","Воронежская обл.",null,"Карусель'Санкт-Петербург'ул. Руставели, 43 А","КАРУССПБ04","Карусель","ул. Руставели, 43 А","Санкт-Петербург","Карусель'Санкт-Петербург"]
[null,null,null,null,null,null,null,"Перекресток","Верхняя Пышма",null,"Карусель'Санкт-Петербург'ул.Савушкина,116","КАРУССПБ09","Карусель","ул.Савушкина,116","Санкт-Петербург","Карусель'Санкт-Петербург"]
[null,null,null,null,null,null,null,"Перекресток","Екатеринбург",null,"Копейка'Воронеж'проспект Патриотов,д.57А","КОПЕЙКАВОР","Копейка","проспект Патриотов,д.57А","Воронеж","Копейка'Воронеж"]
[null,null,null,null,null,null,null,"Перекресток","Ижевск",null,"Копейка'Московская обл.'Белокаменное ш., 14","КОПЕЙКАВИД","Копейка","Белокаменное ш., 14","Московская обл.","Копейка'Московская обл."]
[null,null,null,null,null,null,null,"Перекресток","Казань",null,"Копейка'Нижний Новгород'ул.Нартова, д.6, к.6","КОПЕЙКАНН2","Копейка","ул.Нартова, д.6, к.6","Нижний Новгород","Копейка'Нижний Новгород"]
[null,null,null,null,null,null,null,"Перекресток","Ленинградская обл.",null,"Копейка'Нижний Новгород'ул.Федосеенко, д.43","КОПЕЙКАНН1","Копейка","ул.Федосеенко, д.43","Нижний Новгород","Копейка'Нижний Новгород"]
[null,null,null,null,null,null,null,"Перекресток","Москва",null,"Копейка'Самара'Заводское ш., д.15","КОПЕЙКАСМ2","Копейка","Заводское ш., д.15","Самара","Копейка'Самара"]
[null,null,null,null,null,null,null,"Перекресток","Московская обл.",null,"Копейка'Самара'ул.22 Партсъезда,д.7 А","КОПЕЙКАСМ1","Копейка","ул.22 Партсъезда,д.7 А","Самара","Копейка'Самара"]
[null,null,null,null,null,null,null,"Перекресток","Ростов-на-Дону",null,"Лента'Астрахань'ул.Н.Островского, д.146а","ЛЕНТААСТР","Лента","ул.Н.Островского, д.146а","Астрахань","Лента'Астрахань"]
[null,null,null,null,null,null,null,"Перекресток","Ростовская обл.",null,"Лента'Барнаул'ул.Павловский тракт, 156","ЛЕНТАБАРНА","Лента","ул.Павловский тракт, 156","Барнаул","Лента'Барнаул"]
[null,null,null,null,null,null,null,"Перекресток","Самара",null,"Лента'Великий Новгород'ул.Великая, д.22а","ЛЕНТАВНОВГ","Лента","ул.Великая, д.22а","Великий Новгород","Лента'Великий Новгород"]
[null,null,null,null,null,null,null,"Перекресток","Самарская обл.",null,"Лента'Волгоград'Университетский пр., д.105","ЛЕНТАВОЛГО","Лента","Университетский пр., д.105","Волгоград","Лента'Волгоград"]
[null,null,null,null,null,null,null,"Перекресток","Санкт-Петербург",null,"Лента'Краснодар'ул.Восточный обход, д.19","ЛЕНТАКРДА1","Лента","ул.Восточный обход, д.19","Краснодар","Лента'Краснодар"]
[null,null,null,null,null,null,null,"Перекресток","Старый Оскол",null,"Лента'Краснодар'ул.Российская, д.257","ЛЕНТАКРДА2","Лента","ул.Российская, д.257","Краснодар","Лента'Краснодар"]
[null,null,null,null,null,null,null,"Перекресток","Тюмень",null,"Лента'Ленинградская обл.'ул.Ленинградская, д.13","ЛЕНТАПЕТР","Лента","ул.Ленинградская, д.13","Ленинградская обл.","Лента'Ленинградская обл."]
[null,null,null,null,null,null,null,"Перекресток","Челябинск",null,"Лента'Московская обл.'Солнечногорски р-н, п.Черная Грязь,","ЛЕНТАСОЛН","Лента","Солнечногорски р-н, п.Черная Грязь,","Московская обл.","Лента'Московская обл."]
[null,null,null,null,null,null,null,"Перекресток","Ярославль",null,"Лента'Набережные Челны'Автозаводский пр., д.62","ЛЕНТАЧЕЛНЫ","Лента","Автозаводский пр., д.62","Набережные Челны","Лента'Набережные Челны"]
[null,null,null,null,null,null,null,"Реал","Волгоград",null,"Лента'Нижний Новгород'Московское шоссе,д.30","ЛЕНТАНИЖН1","Лента","Московское шоссе,д.30","Нижний Новгород","Лента'Нижний Новгород"]
[null,null,null,null,null,null,null,"Реал","Казань",null,"Лента'Нижний Новгород'ул.Родионова,д.200","ЛЕНТАНИЖН2","Лента","ул.Родионова,д.200","Нижний Новгород","Лента'Нижний Новгород"]
[null,null,null,null,null,null,null,"Реал","Липецк",null,"Лента'Новороссийск'пос.Цемдолина, ул.Ленина, д.7","ЛЕНТАНОВОР","Лента","пос.Цемдолина, ул.Ленина, д.7","Новороссийск","Лента'Новороссийск"]
[null,null,null,null,null,null,null,"Реал","Москва",null,"Лента'Новосибирск'Гусинобородское шоссе, д.64","ЛЕНТАНОВ2","Лента","Гусинобородское шоссе, д.64","Новосибирск","Лента'Новосибирск"]
[null,null,null,null,null,null,null,"Реал","Московская обл.",null,"Лента'Новосибирск'ул.Большевистская, д.52/1","ЛЕНТАНОВ3","Лента","ул.Большевистская, д.52/1","Новосибирск","Лента'Новосибирск"]
[null,null,null,null,null,null,null,"Реал","Нижний Новгород",null,"Лента'Новосибирск'ул.Кирзаводская, д.1а","ЛЕНТАНОВ4","Лента","ул.Кирзаводская, д.1а","Новосибирск","Лента'Новосибирск"]
[null,null,null,null,null,null,null,"Реал","Ростов-на-Дону",null,"Лента'Новосибирск'ул.Петухова д.35/2","ЛЕНТАНОВОС","Лента","ул.Петухова д.35/2","Новосибирск","Лента'Новосибирск"]
[null,null,null,null,null,null,null,"Реал","Санкт-Петербург",null,"Лента'Новосибирск'ул.Энергетиков, д.9","ЛЕНТАНОВ1","Лента","ул.Энергетиков, д.9","Новосибирск","Лента'Новосибирск"]
[null,null,null,null,null,null,null,"Реал","Саратов",null,"Лента'Омск'ул.70 лет Октября, д.25","ЛЕНТАОМСК2","Лента","ул.70 лет Октября, д.25","Омск","Лента'Омск"]
[null,null,null,null,null,null,null,"Реал","Тамбов",null,"Лента'Омск'ул.Амурская, д.21","ЛЕНТАОМСК1","Лента","ул.Амурская, д.21","Омск","Лента'Омск"]
[null,null,null,null,null,null,null,"Реал","Тольятти",null,"Лента'Пенза'пр.Строителей, д.2Б","ЛЕНТАПЕНЗА","Лента","пр.Строителей, д.2Б","Пенза","Лента'Пенза"]
[null,null,null,null,null,null,null,"Реал","Ярославль",null,"Лента'Ростовская обл.'Аксай, пр.Аксайский, д.2","ЛЕНТАРОСТО","Лента","Аксай, пр.Аксайский, д.2","Ростовская обл.","Лента'Ростовская обл."]
[null,null,null,null,null,null,null,"Реал","Ярославская обл.",null,"Лента'Рязань'ул.Тимуровцев, д.3","ЛЕНТАРЯЗАН","Лента","ул.Тимуровцев, д.3","Рязань","Лента'Рязань"]
[null,null,null,null,null,null,null,"Рыбинская маркет","Санкт-Петербург",null,"Лента'Санкт-Петербург'Выборгское ш.11","ЛЕНТАСПБ5","Лента","Выборгское ш.11","Санкт-Петербург","Лента'Санкт-Петербург"]
[null,null,null,null,null,null,null,"Седьмой Континент","Белгород",null,"Лента'Санкт-Петербург'Дальневосточный пр.,д.16, кор.1","ЛЕНТАСПБ7","Лента","Дальневосточный пр.,д.16, кор.1","Санкт-Петербург","Лента'Санкт-Петербург"]
[null,null,null,null,null,null,null,"Седьмой Континент","Вологда",null,"Лента'Санкт-Петербург'Московское ш.16","ЛЕНТАСПБ8","Лента","Московское ш.16","Санкт-Петербург","Лента'Санкт-Петербург"]
[null,null,null,null,null,null,null,"Седьмой Континент","Иваново",null,"Лента'Санкт-Петербург'Московское шоссе, 345","ЛЕНТАРЦ","Лента","Московское шоссе, 345","Санкт-Петербург","Лента'Санкт-Петербург"]
[null,null,null,null,null,null,null,"Седьмой Континент","Москва",null,"Лента'Санкт-Петербург'Наб.Обводного канала, 118, кор.7","ЛЕНТАСПБ10","Лента","Наб.Обводного канала, 118, кор.7","Санкт-Петербург","Лента'Санкт-Петербург"]
[null,null,null,null,null,null,null,"Седьмой Континент","Московская обл.",null,"Лента'Санкт-Петербург'Петергофское шоссе,98","ЛЕНТАСПБ17","Лента","Петергофское шоссе,98","Санкт-Петербург","Лента'Санкт-Петербург"]
[null,null,null,null,null,null,null,"Седьмой Континент","Нижний Новгород",null,"Лента'Санкт-Петербург'пос.Парголово, Выборгское ш.,216/1","ЛЕНТАСПБ15","Лента","пос.Парголово, Выборгское ш.,216/1","Санкт-Петербург","Лента'Санкт-Петербург"]
[null,null,null,null,null,null,null,"Седьмой Континент","Ростов-на-Дону",null,"Лента'Санкт-Петербург'пр.Энергетиков, д.16","ЛЕНТАСПБ1","Лента","пр.Энергетиков, д.16","Санкт-Петербург","Лента'Санкт-Петербург"]
[null,null,null,null,null,null,null,"Седьмой Континент","Пермь",null,"Лента'Санкт-Петербург'Пулковское ш.,д.33","ЛЕНТАСПБ-3","Лента","Пулковское ш.,д.33","Санкт-Петербург","Лента'Санкт-Петербург"]
[null,null,null,null,null,null,null,"Седьмой Континент","Рязань",null,"Лента'Санкт-Петербург'Таллинское ш.,д.159","ЛЕНТАСПБ6","Лента","Таллинское ш.,д.159","Санкт-Петербург","Лента'Санкт-Петербург"]
[null,null,null,null,null,null,null,"Седьмой Континент","Санкт-Петербург",null,"Лента'Санкт-Петербург'ул. Руставели,61","ЛЕНТАСПБ11","Лента","ул. Руставели,61","Санкт-Петербург","Лента'Санкт-Петербург"]
[null,null,null,null,null,null,null,"Седьмой Континент","Уфа",null,"Лента'Санкт-Петербург'ул.Бухарестская,д.69","ЛЕНТАСПБ4","Лента","ул.Бухарестская,д.69","Санкт-Петербург","Лента'Санкт-Петербург"]
[null,null,null,null,null,null,null,"Седьмой Континент","Челябинск",null,"Лента'Санкт-Петербург'ул.Савушкина, д.112","ЛЕНТАСПБ2","Лента","ул.Савушкина, д.112","Санкт-Петербург","Лента'Санкт-Петербург"]
[null,null,null,null,null,null,null,"Седьмой Континент","Ярославль",null,"Лента'Санкт-Петербург'ул.Уральская,д.29,корп.1","ЛЕНТАСПБ9","Лента","ул.Уральская,д.29,корп.1","Санкт-Петербург","Лента'Санкт-Петербург"]
[null,null,null,null,null,null,null,"Сити Строй","Екатеринбург",null,"Лента'Санкт-Петербург'ул.Хасанская, д.17, кор.1","ЛЕНТАСПБ12","Лента","ул.Хасанская, д.17, кор.1","Санкт-Петербург","Лента'Санкт-Петербург"]
[null,null,null,null,null,null,null,"Сити центр","Санкт-Петербург",null,"Лента'Санкт-Петербург'ул.Шереметьевская д.11","ЛЕНТАСПБ18","Лента","ул.Шереметьевская д.11","Санкт-Петербург","Лента'Санкт-Петербург"]
[null,null,null,null,null,null,null,"Сладкая Жизнь","Нижний Новгород",null,"Лента'Саратов'пос.Зональный, ул.Молодежная,д.2а","ЛЕНТАСАРАТ","Лента","пос.Зональный, ул.Молодежная,д.2а","Саратов","Лента'Саратов"]
[null,null,null,null,null,null,null,"СтройАрсенал","Екатеринбург",null,"Лента'Тольятти'Южное ш., д.4","ЛЕНТАТОЛЬЯ","Лента","Южное ш., д.4","Тольятти","Лента'Тольятти"]
[null,null,null,null,null,null,null,"СуперСтройУфа","Екатеринбург",null,{"$f":"M219&\"'\"&O219&\"'\"&N219","v":"Лента'Тюмень'ул.Мельникайте, д.139"},"ЛЕНТАТЮМ","Лента","ул.Мельникайте, д.139","Тюмень","Лента'Тюмень"]
[null,null,null,null,null,null,null,"СуперСтройУфа","Уфа",null,"Лента'Череповец'ул.Годовикова, д.37","ЛЕНТАЧЕРЕП","Лента","ул.Годовикова, д.37","Череповец",{"$f":"M220&\"'\"&O220","v":"Лента'Череповец"}]
[null,null,null,null,null,null,null,"Урал трейд","Верхняя Пышма",null,"Леруа Мерлен'Воронежская обл.'Рамонский р-н, пос.Солнечный,","ЛЕРУАВОРОН","Леруа Мерлен","Рамонский р-н, пос.Солнечный,","Воронежская обл.","Леруа Мерлен'Воронежская обл."]
[null,null,null,null,null,null,null,"Холидей","Новосибирск",null,"Леруа Мерлен'Краснодар'Тургеневское шоссе, 27","ЛЕРУАКРДА1","Леруа Мерлен","Тургеневское шоссе, 27","Краснодар","Леруа Мерлен'Краснодар"]
[null,null,null,null,null,null,null,"Элемент Трейд","Екатеринбург",null,"Леруа Мерлен'Краснодар'ул.Новороссийская, 234","ЛЕРУАКРДА2","Леруа Мерлен","ул.Новороссийская, 234","Краснодар","Леруа Мерлен'Краснодар"]
[null,null,null,null,null,null,null,"Юг Трейд","Ростов-на-Дону",null,"Леруа Мерлен'Москва'Алтуфьево, 84 км МКАД","ЛЕРУААЛТУФ","Леруа Мерлен","Алтуфьево, 84 км МКАД","Москва","Леруа Мерлен'Москва"]
[null,null,null,null,null,null,null,"Юнилэнд","Екатеринбург",null,"Леруа Мерлен'Москва'Душинская, 1-3","ЛЕРУАДУШИН","Леруа Мерлен","Душинская, 1-3","Москва","Леруа Мерлен'Москва"]
[null,null,null,null,null,null,null,"Юнилэнд","Каменск-Уральский",null,"Леруа Мерлен'Москва'Ильинское ш.,5км от МКАД","ЛЕРУАИЛЬИН","Леруа Мерлен","Ильинское ш.,5км от МКАД","Москва","Леруа Мерлен'Москва"]
[null,null,null,null,null,null,null,"Юнилэнд","Москва",null,"Леруа Мерлен'Москва'Красногорск, 66 км МКАД","ЛЕРУАКРАСН","Леруа Мерлен","Красногорск, 66 км МКАД","Москва","Леруа Мерлен'Москва"]
[null,null,null,null,null,null,null,"Юнилэнд","Нижний Тагил",null,"Леруа Мерлен'Москва'Нарофоминский р-н, Крекшино","ЛЕРУА3","Леруа Мерлен","Нарофоминский р-н, Крекшино","Москва","Леруа Мерлен'Москва"]
[null,null,null,null,null,null,null,"Юнилэнд","Новоуральск",null,"Леруа Мерлен'Москва'ул.Верхняя Красносельская, вл.3а,","ЛЕРУАВКРАС","Леруа Мерлен","ул.Верхняя Красносельская, вл.3а,","Москва","Леруа Мерлен'Москва"]
[null,null,null,null,null,null,null,"Юнилэнд","Сысерть",null,"Леруа Мерлен'Москва'ш.Энтузиастов, д.12, корп.2,","ЛЕРУАЭНТУЗ","Леруа Мерлен","ш.Энтузиастов, д.12, корп.2,","Москва","Леруа Мерлен'Москва"]
[null,null,null,null,null,null,null,"Юнилэнд","Тюменская обл.",null,"Леруа Мерлен'Москва'Шереметьевское ш.,склад Шерланд","ЛЕРУАШЕРЕМ","Леруа Мерлен","Шереметьевское ш.,склад Шерланд","Москва","Леруа Мерлен'Москва"]
[null,null,null,null,null,null,null,"Юнилэнд","Тюмень",null,"Леруа Мерлен'Московская обл.'91 км МКАД","ЛЕРУАМЫТИЩ","Леруа Мерлен","91 км МКАД","Московская обл.","Леруа Мерлен'Московская обл."]
[null,null,null,null,null,null,null,"Юнилэнд","Челябинск",null,"Леруа Мерлен'Московская обл.'д.Дубровки, ул.Аэропортовская","ЛЕРУАДУБРО","Леруа Мерлен","д.Дубровки, ул.Аэропортовская","Московская обл.","Леруа Мерлен'Московская обл."]
[null,null,null,null,null,null,null,null,null,null,"Леруа Мерлен'Московская обл.'Климовск, ул.Молодежная,д.15","ЛЕРУАКЛИМ","Леруа Мерлен","Климовск, ул.Молодежная,д.15","Московская обл.","Леруа Мерлен'Московская обл."]
[null,null,null,null,null,null,null,null,null,null,"Леруа Мерлен'Московская обл.'Красногорск, Ильимское шоссе 2 км.","ЛЕРУАИЛЬ2","Леруа Мерлен","Красногорск, Ильимское шоссе 2 км.","Московская обл.","Леруа Мерлен'Московская обл."]
[null,null,null,null,null,null,null,null,null,null,"Леруа Мерлен'Московская обл.'Пшукинское поле влад 10","ЛЕРУА2","Леруа Мерлен","Пшукинское поле влад 10","Московская обл.","Леруа Мерлен'Московская обл."]
[null,null,null,null,null,null,null,null,null,null,"Леруа Мерлен'Московская обл.'Химки, между Ленинградским ш. и","ЛЕРУАХИМКИ","Леруа Мерлен","Химки, между Ленинградским ш. и","Московская обл.","Леруа Мерлен'Московская обл."]
[null,null,null,null,null,null,null,null,null,null,"Леруа Мерлен'Новосибирск'ул.Ватутина,д.107","ЛЕРУАНОВОС","Леруа Мерлен","ул.Ватутина,д.107","Новосибирск","Леруа Мерлен'Новосибирск"]
[null,null,null,null,null,null,null,null,null,null,"Леруа Мерлен'Омск'б-р Архитекторов, 35","ЛЕРУАОМСК","Леруа Мерлен","б-р Архитекторов, 35","Омск","Леруа Мерлен'Омск"]
[null,null,null,null,null,null,null,null,null,null,"Леруа Мерлен'Ростовская обл.'Аксай, Новочеркасское ш.33","ЛЕРУАРОСТ1","Леруа Мерлен","Аксай, Новочеркасское ш.33","Ростовская обл.","Леруа Мерлен'Ростовская обл."]
[null,null,null,null,null,null,null,null,null,null,"Леруа Мерлен'Ростовская обл.'Аксайский р-н, п.Верхнетемерницкий,","ЛЕРУАРОСТ2","Леруа Мерлен","Аксайский р-н, п.Верхнетемерницкий,","Ростовская обл.","Леруа Мерлен'Ростовская обл."]
[null,null,null,null,null,null,null,null,null,null,"Леруа Мерлен'Самара'ул.Дыбенко, 30","ЛЕРУАСАМАР","Леруа Мерлен","ул.Дыбенко, 30","Самара","Леруа Мерлен'Самара"]
[null,null,null,null,null,null,null,null,null,null,"Леруа Мерлен'Санкт-Петербург'пр.Испытателей,5","ЛЕРУАСПБ1","Леруа Мерлен","пр.Испытателей,5","Санкт-Петербург","Леруа Мерлен'Санкт-Петербург"]
[null,null,null,null,null,null,null,null,null,null,"Леруа Мерлен'Санкт-Петербург'ул.Коллонтай, д.3","ЛЕРУАСПБ2","Леруа Мерлен","ул.Коллонтай, д.3","Санкт-Петербург","Леруа Мерлен'Санкт-Петербург"]
[null,null,null,null,null,null,null,null,null,null,"Мега'Ленинградская обл.'Мурманское ш.,12км","МЕГАДЫБЕНК","Мега","Мурманское ш.,12км","Ленинградская обл.","Мега'Ленинградская обл."]
[null,null,null,null,null,null,null,null,null,null,"Мега'Московская обл.'Котельники,1-й Покровский пр-д,1","МЕГАКОТЕЛЬ","Мега","Котельники,1-й Покровский пр-д,1","Московская обл.","Мега'Московская обл."]
[null,null,null,null,null,null,null,null,null,null,"Мега'Московская обл.'Котельники,Яничкин проезд, 2","МЕГАБД","Мега","Котельники,Яничкин проезд, 2","Московская обл.","Мега'Московская обл."]
[null,null,null,null,null,null,null,null,null,null,"Мега'Московская обл.'Ленинский р-н, Калужское шоссе,","МЕГАТЕПЛЫЙ","Мега","Ленинский р-н, Калужское шоссе,","Московская обл.","Мега'Московская обл."]
[null,null,null,null,null,null,null,null,null,null,"Мега'Московская обл.'Микрорайон 8, стр.1","МЕГАХИМКИ","Мега","Микрорайон 8, стр.1","Московская обл.","Мега'Московская обл."]
[null,null,null,null,null,null,null,null,null,null,"Метро'Астрахань'ул.Заводская 54/ул.Набережнаяреки","МЕТРОАСТРА","Метро","ул.Заводская 54/ул.Набережнаяреки","Астрахань","Метро'Астрахань"]
[null,null,null,null,null,null,null,null,null,null,"Метро'Барнаул'Павловский тракт, 309","МЕТРОБАРН","Метро","Павловский тракт, 309","Барнаул","Метро'Барнаул"]
[null,null,null,null,null,null,null,null,null,null,"Метро'Брянск'пр-т Московский, 1Д","МЕТРОБРЯНС","Метро","пр-т Московский, 1Д","Брянск","Метро'Брянск"]
[null,null,null,null,null,null,null,null,null,null,"Метро'Волгоград'ул.Историческая, д.164","МЕТРОВОЛГО","Метро","ул.Историческая, д.164","Волгоград","Метро'Волгоград"]
[null,null,null,null,null,null,null,null,null,null,"Метро'Вологда'ул.Окружное шоссе,д.11а","МЕТРОВОЛОГДА","Метро","ул.Окружное шоссе,д.11а","Вологда","Метро'Вологда"]
[null,null,null,null,null,null,null,null,null,null,"Метро'Воронеж'ул.Остужева, д.56","МЕТРОВОРОН","Метро","ул.Остужева, д.56","Воронеж","Метро'Воронеж"]
[null,null,null,null,null,null,null,null,null,null,"Метро'Екатеринбург'Дублер Сибирского Тракта, д.21","МЕТРОЕКАТ1","Метро","Дублер Сибирского Тракта, д.21","Екатеринбург","Метро'Екатеринбург"]
[null,null,null,null,null,null,null,null,null,null,"Метро'Екатеринбург'пр.Космонавтов, 102а","МЕТРОЕКАТ3","Метро","пр.Космонавтов, 102а","Екатеринбург","Метро'Екатеринбург"]
[null,null,null,null,null,null,null,null,null,null,"Метро'Екатеринбург'ул.Металлургов, д.85","МЕТРОЕКАТ2","Метро","ул.Металлургов, д.85","Екатеринбург","Метро'Екатеринбург"]
[null,null,null,null,null,null,null,null,null,null,"Метро'Казань'ул.Вахитова, д.4","МЕТРОКАЗАН","Метро","ул.Вахитова, д.4","Казань","Метро'Казань"]
[null,null,null,null,null,null,null,null,null,null,"Метро'Казань'ул.Тихорецкая, д.4","МЕТРОКАЗ1","Метро","ул.Тихорецкая, д.4","Казань","Метро'Казань"]
[null,null,null,null,null,null,null,null,null,null,"Метро'Калининград'пересечение Московского пр-таи","МЕТРОКАЛИН","Метро","пересечение Московского пр-таи","Калининград","Метро'Калининград"]
[null,null,null,null,null,null,null,null,null,null,"Метро'Калуга'Тульское шоссе, д.51","МЕТРОКАЛУГ","Метро","Тульское шоссе, д.51","Калуга","Метро'Калуга"]
[null,null,null,null,null,null,null,null,null,null,"Метро'Кемерово'ул.Волгоградская, 58","МЕТРОКЕМЕР","Метро","ул.Волгоградская, 58","Кемерово","Метро'Кемерово"]
[null,null,null,null,null,null,null,null,null,null,"Метро'Киров'ул.Московская, 205","МЕТРОКИРОВ","Метро","ул.Московская, 205","Киров","Метро'Киров"]
[null,null,null,null,null,null,null,null,null,null,"Метро'Краснодар'Ростовское шоссе, д.30","МЕТРОКРДАР","Метро","Ростовское шоссе, д.30","Краснодар","Метро'Краснодар"]
[null,null,null,null,null,null,null,null,null,null,"Метро'Красноярский край'Емельяновский р-н, п.Солонцы,","МЕТРОКРАСН","Метро","Емельяновский р-н, п.Солонцы,","Красноярский край","Метро'Красноярский край"]
[null,null,null,null,null,null,null,null,null,null,"Метро'Курск'ул.Карла Маркса, д.85","МЕТРОКУРСК","Метро","ул.Карла Маркса, д.85","Курск","Метро'Курск"]
[null,null,null,null,null,null,null,null,null,null,"Метро'Липецк'ул. 50 лет НЛМК, 8","МЕТРОЛИПЕЦ","Метро","ул. 50 лет НЛМК, 8","Липецк","Метро'Липецк"]
[null,null,null,null,null,null,null,null,null,null,"Метро'Магнитогорск'ул.50-летия Магнитки д.69","МЕТРОМАГН2","Метро","ул.50-летия Магнитки д.69","Магнитогорск","Метро'Магнитогорск"]
[null,null,null,null,null,null,null,null,null,null,"Метро'Москва'104 км МКАд","МЕТРО104КМ","Метро","104 км МКАд","Москва","Метро'Москва"]
[null,null,null,null,null,null,null,null,null,null,"Метро'Москва'д. Картмазово стр.7","МЕТРОКАРТМ","Метро","д. Картмазово стр.7","Москва","Метро'Москва"]
[null,null,null,null,null,null,null,null,null,null,"Метро'Москва'Дмитровское ш., 165б","МЕТРОДМИТР","Метро","Дмитровское ш., 165б","Москва","Метро'Москва"]
[null,null,null,null,null,null,null,null,null,null,"Метро'Москва'Дорожная, 1","МЕТРОДОРОЖ","Метро","Дорожная, 1","Москва","Метро'Москва"]
[null,null,null,null,null,null,null,null,null,null,"Метро'Москва'Ленинградское ш., 71г","МЕТРОЛЕНИН","Метро","Ленинградское ш., 71г","Москва","Метро'Москва"]
[null,null,null,null,null,null,null,null,null,null,"Метро'Москва'проезд № 607 д. 14","МЕТРОСТРОГ","Метро","проезд № 607 д. 14","Москва","Метро'Москва"]
[null,null,null,null,null,null,null,null,null,null,"Метро'Москва'пр-т Мира, 211/1","МЕТРОМИРА","Метро","пр-т Мира, 211/1","Москва","Метро'Москва"]
[null,null,null,null,null,null,null,null,null,null,"Метро'Москва'ул. Рябиновая, д. 59","МЕТРОРЯБИН","Метро","ул. Рябиновая, д. 59","Москва","Метро'Москва"]
[null,null,null,null,null,null,null,null,null,null,"Метро'Москва'Шоссейная 2Б","МЕТРОШОССЕ","Метро","Шоссейная 2Б","Москва","Метро'Москва"]
[null,null,null,null,null,null,null,null,null,null,"Метро'Московская обл.'Ивановский р-н,д.Игнатово","МЕТРОИВАНО","Метро","Ивановский р-н,д.Игнатово","Московская обл.","Метро'Московская обл."]
[null,null,null,null,null,null,null,null,null,null,"Метро'Московская обл.'Ногинский р-н,\"Ногинск-Технопарк\",8","МЕТРОНОГРЦ","Метро","Ногинский р-н,\"Ногинск-Технопарк\",8","Московская обл.","Метро'Московская обл."]
[null,null,null,null,null,null,null,null,null,null,"Метро'Московская обл.'пос.Томилино, 23км Ново-Рязанского","МЕТРОТОМИЛ","Метро","пос.Томилино, 23км Ново-Рязанского","Московская обл.","Метро'Московская обл."]
[null,null,null,null,null,null,null,null,null,null,"Метро'Московская обл.'пос.Черная грязь, Ленинградское ш.","МЕТРОЗЕЛЕН","Метро","пос.Черная грязь, Ленинградское ш.","Московская обл.","Метро'Московская обл."]
[null,null,null,null,null,null,null,null,null,null,"Метро'Московская обл.'Советская д.60","МЕТРОЖЕЛ","Метро","Советская д.60","Московская обл.","Метро'Московская обл."]
[null,null,null,null,null,null,null,null,null,null,{"$f":"M284&\"'\"&O284&\"'\"&N284","v":"Метро'Московская обл.'ул. Рябиновая, д. 59"},"МЕТРОНОГ","Метро","ул. Рябиновая, д. 59","Московская обл.","Метро'Московская обл."]
[null,null,null,null,null,null,null,null,null,null,"Метро'Московская обл.'ул.Склизкова, 122","МЕТРОТВЕРЬ","Метро","ул.Склизкова, 122","Московская обл.",{"$f":"M285&\"'\"&O285","v":"Метро'Московская обл."}]
[null,null,null,null,null,null,null,null,null,null,"Метро'Набережные Челны'Проспект Чулман, д.33","МЕТРОЧЕЛНЫ","Метро","Проспект Чулман, д.33","Набережные Челны","Метро'Набережные Челны"]
[null,null,null,null,null,null,null,null,null,null,"Метро'Нижний Новгород'Мещерский бульвар, д.3А","МЕТРОНИЖН2","Метро","Мещерский бульвар, д.3А","Нижний Новгород","Метро'Нижний Новгород"]
[null,null,null,null,null,null,null,null,null,null,"Метро'Нижний Новгород'ул.Нартова, д.4А","МЕТРОНИЖН1","Метро","ул.Нартова, д.4А","Нижний Новгород","Метро'Нижний Новгород"]
[null,null,null,null,null,null,null,null,null,null,"Метро'Новокузнецк'ул. Карьерная 54","МЕТРОКАРЬЕ","Метро","ул. Карьерная 54","Новокузнецк","Метро'Новокузнецк"]
[null,null,null,null,null,null,null,null,null,null,"Метро'Новокузнецк'ш. Кондомское, 19","МЕТРОНКУЗН","Метро","ш. Кондомское, 19","Новокузнецк","Метро'Новокузнецк"]
[null,null,null,null,null,null,null,null,null,null,"Метро'Новосибирск'Толмачевский р-он,","МЕТРОНОВ3","Метро","Толмачевский р-он,","Новосибирск","Метро'Новосибирск"]
[null,null,null,null,null,null,null,null,null,null,"Метро'Новосибирск'ул. Большевистская 290","МЕТРОНОВ1","Метро","ул. Большевистская 290","Новосибирск","Метро'Новосибирск"]
[null,null,null,null,null,null,null,null,null,null,"Метро'Новосибирск'ул.Северная, 11","МЕТРОНОВ2","Метро","ул.Северная, 11","Новосибирск","Метро'Новосибирск"]
[null,null,null,null,null,null,null,null,null,null,"Метро'Омск'пр-т. Академика Королева, д.15, к.1","МЕТРООМСК","Метро","пр-т. Академика Королева, д.15, к.1","Омск","Метро'Омск"]
[null,null,null,null,null,null,null,null,null,null,"Метро'Оренбург'пр-т Победы, 155","МЕТРООРЕНБ","Метро","пр-т Победы, 155","Оренбург","Метро'Оренбург"]
[null,null,null,null,null,null,null,null,null,null,"Метро'Пензенская обл.'с.Засечное, ул.Звездная 1","МЕТРОПЕНЗА","Метро","с.Засечное, ул.Звездная 1","Пензенская обл.","Метро'Пензенская обл."]
[null,null,null,null,null,null,null,null,null,null,"Метро'Пермь'шосcе Космонавтов д.393","МЕТРОПЕРМЬ","Метро","шосcе Космонавтов д.393","Пермь","Метро'Пермь"]
[null,null,null,null,null,null,null,null,null,null,"Метро'Пятигорск'Бештаугорское ш,94","МЕТРОПЯТИГ","Метро","Бештаугорское ш,94","Пятигорск","Метро'Пятигорск"]
[null,null,null,null,null,null,null,null,null,null,"Метро'респ.Адыгея'аул Новая Адыгея,Тургеневское ш.27","МЕТРОАДЫГЕ","Метро","аул Новая Адыгея,Тургеневское ш.27","респ.Адыгея","Метро'респ.Адыгея"]
[null,null,null,null,null,null,null,null,null,null,"Метро'Ростов-на-Дону'пр-т 40-летия Победы, д.340","МЕТРОРОСТ2","Метро","пр-т 40-летия Победы, д.340","Ростов-на-Дону","Метро'Ростов-на-Дону"]
[null,null,null,null,null,null,null,null,null,null,"Метро'Ростов-на-Дону'ул.Доватора, д.255","МЕТРОРОСТ1","Метро","ул.Доватора, д.255","Ростов-на-Дону","Метро'Ростов-на-Дону"]
[null,null,null,null,null,null,null,null,null,null,"Метро'Рязань'Московское шоссе, д.25","МЕТРОРЯЗАН","Метро","Московское шоссе, д.25","Рязань","Метро'Рязань"]
[null,null,null,null,null,null,null,null,null,null,"Метро'Самара'18 км. Московского шоссе д.5А","МЕТРОСАМАР","Метро","18 км. Московского шоссе д.5А","Самара","Метро'Самара"]
[null,null,null,null,null,null,null,null,null,null,"Метро'Санкт-Петербург'Комендантский пр-т, д.3, лит.А","МЕТРОСПБ1","Метро","Комендантский пр-т, д.3, лит.А","Санкт-Петербург","Метро'Санкт-Петербург"]
[null,null,null,null,null,null,null,null,null,null,"Метро'Санкт-Петербург'пр-т Косыгина, д.4, лит.А","МЕТРОСПБ2","Метро","пр-т Косыгина, д.4, лит.А","Санкт-Петербург","Метро'Санкт-Петербург"]
[null,null,null,null,null,null,null,null,null,null,"Метро'Санкт-Петербург'Пулковское шоссе, д.23, лит. А","МЕТРОСПБ3","Метро","Пулковское шоссе, д.23, лит. А","Санкт-Петербург",{"$f":"M306&\"'\"&O306","v":"Метро'Санкт-Петербург"}]
[null,null,null,null,null,null,null,null,null,null,"Метро'Саратов'ул.Аэропорт, д.14","МЕТРОСАРАТ","Метро","ул.Аэропорт, д.14","Саратов",{"$f":"M307&\"'\"&O307","v":"Метро'Саратов"}]
[null,null,null,null,null,null,null,null,null,null,"Метро'Смоленск'ул. Кутузова, 54","МЕТРОСМОЛ","Метро","ул. Кутузова, 54","Смоленск","Метро'Смоленск"]
[null,null,null,null,null,null,null,null,null,null,"Метро'Ставрополь'ул.Южный обход, 13","МЕТРОСТАВР","Метро","ул.Южный обход, 13","Ставрополь","Метро'Ставрополь"]
[null,null,null,null,null,null,null,null,null,null,"Метро'Тольятти'Южное шоссе, д.2а","МЕТРОТОЛЬЯ","Метро","Южное шоссе, д.2а","Тольятти","Метро'Тольятти"]
[null,null,null,null,null,null,null,null,null,null,"Метро'Томск'ул. Лебедева д. 57","МЕТРОЛЕБ","Метро","ул. Лебедева д. 57","Томск","Метро'Томск"]
[null,null,null,null,null,null,null,null,null,null,"Метро'Томск'ул.Клюева, 44","МЕТРОТОМСК","Метро","ул.Клюева, 44","Томск","Метро'Томск"]
[null,null,null,null,null,null,null,null,null,null,"Метро'Тульская обл.'дер.Прудное, 104","МЕТРОТУЛА","Метро","дер.Прудное, 104","Тульская обл.","Метро'Тульская обл."]
[null,null,null,null,null,null,null,null,null,null,"Метро'Тюмень'ул.Мельникайте, д.141","МЕТРОТЮМЕН","Метро","ул.Мельникайте, д.141","Тюмень","Метро'Тюмень"]
[null,null,null,null,null,null,null,null,null,null,"Метро'Ульяновск'ул.Урицкого, д.100 Д","МЕТРОУЛЬЯН","Метро","ул.Урицкого, д.100 Д","Ульяновск","Метро'Ульяновск"]
[null,null,null,null,null,null,null,null,null,null,"Метро'Уфа'ул. Рубежная д.170","МЕТРОУФА","Метро","ул. Рубежная д.170","Уфа","Метро'Уфа"]
[null,null,null,null,null,null,null,null,null,null,"Метро'Чебоксары'ул.Марпосадское шоссе д.15 к.2","МЕТРОЧЕБОК","Метро","ул.Марпосадское шоссе д.15 к.2","Чебоксары","Метро'Чебоксары"]
[null,null,null,null,null,null,null,null,null,null,"Метро'Челябинская обл.'Копейск, пр.Победы, 76","МЕТРОКОПЕЙ","Метро","Копейск, пр.Победы, 76","Челябинская обл.","Метро'Челябинская обл."]
[null,null,null,null,null,null,null,null,null,null,"Метро'Ярославль'пр-т. Фрунзе, д.32","МЕТРОЯРОСЛ","Метро","пр-т. Фрунзе, д.32","Ярославль","Метро'Ярославль"]
[null,null,null,null,null,null,null,null,null,null,"Наири'Пятигорск'ул.Ермолова, д.24","НАИРИПЯТИГОРСК","Наири","ул.Ермолова, д.24","Пятигорск","Наири'Пятигорск"]
[null,null,null,null,null,null,null,null,null,null,"Окей'Астрахань'Вокзальная площадь, д. 13","ОКЕЙАСТР1","Окей","Вокзальная площадь, д. 13","Астрахань","Окей'Астрахань"]
[null,null,null,null,null,null,null,null,null,null,"Окей'Астрахань'ул.Боевая д.25","ОКЕЙАСТР","Окей","ул.Боевая д.25","Астрахань","Окей'Астрахань"]
[null,null,null,null,null,null,null,null,null,null,"Окей'Астрахань'ул.Минусинская, д.8","ОКЕЙАСТР2","Окей","ул.Минусинская, д.8","Астрахань","Окей'Астрахань"]
[null,null,null,null,null,null,null,null,null,null,"Окей'Волгоград'пл.Дзержинского, д.1Б","ОКЕЙВОЛГР1","Окей","пл.Дзержинского, д.1Б","Волгоград","Окей'Волгоград"]
[null,null,null,null,null,null,null,null,null,null,"Окей'Волгоград'ул.Краснознаменская, д.9","ОКЕЙВОЛГР2","Окей","ул.Краснознаменская, д.9","Волгоград","Окей'Волгоград"]
[null,null,null,null,null,null,null,null,null,null,"Окей'Волгоград'ул.Рабоче-Крестянская, д.9б","ОКЕЙВОЛГР3","Окей","ул.Рабоче-Крестянская, д.9б","Волгоград","Окей'Волгоград"]
[null,null,null,null,null,null,null,null,null,null,"Окей'Волжский'ул.Им.Генерала Карбышева, 47А","ОКЕЙВОЛЖСК","Окей","ул.Им.Генерала Карбышева, 47А","Волжский","Окей'Волжский"]
[null,null,null,null,null,null,null,null,null,null,"Окей'Воронеж'ул.Кольцовская д.35 лит.А","ОКЕЙВОР","Окей","ул.Кольцовская д.35 лит.А","Воронеж","Окей'Воронеж"]
[null,null,null,null,null,null,null,null,null,null,"Окей'Воронеж'ул.Шишкова, д.72","ОКЕЙВОР1","Окей","ул.Шишкова, д.72","Воронеж","Окей'Воронеж"]
[null,null,null,null,null,null,null,null,null,null,"Окей'Краснодар'Карасунский округ, Восточный обход","ОКЕЙКРДАР3","Окей","Карасунский округ, Восточный обход","Краснодар","Окей'Краснодар"]
[null,null,null,null,null,null,null,null,null,null,"Окей'Краснодар'отделение 27 почтовое","ОКЕЙПОЧТОВ","Окей","отделение 27 почтовое","Краснодар","Окей'Краснодар"]
[null,null,null,null,null,null,null,null,null,null,"Окей'Краснодар'ул.Атабекова,д.1,корп.1","ОКЕЙКРДАР5","Окей","ул.Атабекова,д.1,корп.1","Краснодар","Окей'Краснодар"]
[null,null,null,null,null,null,null,null,null,null,"Окей'Краснодар'ул.им.Стасова, д.178","ОКЕЙКРДАР4","Окей","ул.им.Стасова, д.178","Краснодар","Окей'Краснодар"]
[null,null,null,null,null,null,null,null,null,null,"Окей'Краснодар'ул.Мачуги, 2","ОКЕЙКРДАР1","Окей","ул.Мачуги, 2","Краснодар","Окей'Краснодар"]
[null,null,null,null,null,null,null,null,null,null,"Окей'Краснодар'ул.Минская, 120/8","ОКЕЙКРДАР2","Окей","ул.Минская, 120/8","Краснодар","Окей'Краснодар"]
[null,null,null,null,null,null,null,null,null,null,"Окей'Красноярск'ул. Норильская,д.7,стр.7","ОКЕЙКРАСН1","Окей","ул. Норильская,д.7,стр.7","Красноярск","Окей'Красноярск"]
[null,null,null,null,null,null,null,null,null,null,"Окей'Красноярск'ул.9 мая, д.77","ОКЕЙКРАСН","Окей","ул.9 мая, д.77","Красноярск","Окей'Красноярск"]
[null,null,null,null,null,null,null,null,null,null,"Окей'Красноярск'ул.Краснодарская, 40 а","ОКЕЙКРАСН2","Окей","ул.Краснодарская, 40 а","Красноярск","Окей'Красноярск"]
[null,null,null,null,null,null,null,null,null,null,"Окей'Красноярск'ул.Партизана Железняка, д.23","ОКЕЙКРАСН3","Окей","ул.Партизана Железняка, д.23","Красноярск","Окей'Красноярск"]
[null,null,null,null,null,null,null,null,null,null,"Окей'Ленинградская обл.'Кингисепп, ул.Октябрьская, д.9","ОКЕЙКИНГ","Окей","Кингисепп, ул.Октябрьская, д.9","Ленинградская обл.","Окей'Ленинградская обл."]
[null,null,null,null,null,null,null,null,null,null,"Окей'Ленинградская обл.'Колпино,ул.Октябрьская, д.8","ОКЕЙКОЛПИН","Окей","Колпино,ул.Октябрьская, д.8","Ленинградская обл.","Окей'Ленинградская обл."]
[null,null,null,null,null,null,null,null,null,null,"Окей'Ленинградская обл.'Красное Село, Стрельнинскоеш.,1","ОКЕЙКРСЕЛО","Окей","Красное Село, Стрельнинскоеш.,1","Ленинградская обл.","Окей'Ленинградская обл."]
[null,null,null,null,null,null,null,null,null,null,"Окей'Ленинградская обл.'Сестрорецк, ул.Володарского, д.2,","ОКЕЙСЕСТРО","Окей","Сестрорецк, ул.Володарского, д.2,","Ленинградская обл.","Окей'Ленинградская обл."]
[null,null,null,null,null,null,null,null,null,null,"Окей'Липецк'ул.Советская, д.66","ОКЕЙЛИПЕЦК","Окей","ул.Советская, д.66","Липецк","Окей'Липецк"]
[null,null,null,null,null,null,null,null,null,null,"Окей'Москва'3 проезд Перово поля","ОКЕЙПЕРОВО","Окей","3 проезд Перово поля","Москва","Окей'Москва"]
[null,null,null,null,null,null,null,null,null,null,"Окей'Москва'ул.Проектируемый пр-д 4062","ОКЕЙПРОЕК","Окей","ул.Проектируемый пр-д 4062","Москва","Окей'Москва"]
[null,null,null,null,null,null,null,null,null,null,"Окей'Москва'ул.Проспект Мира, вл.211, кор.2","ОКЕЙМИРА","Окей","ул.Проспект Мира, вл.211, кор.2","Москва","Окей'Москва"]
[null,null,null,null,null,null,null,null,null,null,"Окей'Московская обл.'50км + 400м М-7 \"Волга\", д.5","ОКЕЙНОГИНС","Окей","50км + 400м М-7 \"Волга\", д.5","Московская обл.","Окей'Московская обл."]
[null,null,null,null,null,null,null,null,null,null,"Окей'Московская обл.'Краснополянский проезд, д.2","ОКЕЙЛОБНЯ","Окей","Краснополянский проезд, д.2","Московская обл.","Окей'Московская обл."]
[null,null,null,null,null,null,null,null,null,null,"Окей'Московская обл.'Одинцовский район,","ОКЕЙХАМЕ","Окей","Одинцовский район,","Московская обл.","Окей'Московская обл."]
[null,null,null,null,null,null,null,null,null,null,{"$f":"M351&\"'\"&O351&\"'\"&N351","v":"Окей'Московская обл.'ул. Силикатная, д. 39 Ж"},"ОКЕЙ","Окей","ул. Силикатная, д. 39 Ж","Московская обл.","Окей'Московская обл."]
[null,null,null,null,null,null,null,null,null,null,"Окей'Московская обл.'ул.Логистическая корпус 8 блок5","ОКЕЙДОМОД","Окей","ул.Логистическая корпус 8 блок5","Московская обл.","Окей'Московская обл."]
[null,null,null,null,null,null,null,null,null,null,"Окей'Московская обл.'ул.Ремесленная д.1","ОКЕЙНОГИН","Окей","ул.Ремесленная д.1","Московская обл.","Окей'Московская обл."]
[null,null,null,null,null,null,null,null,null,null,"Окей'Мурманск'пр-т Кольский, д.134","ОКЕЙМУРМ","Окей","пр-т Кольский, д.134","Мурманск","Окей'Мурманск"]
[null,null,null,null,null,null,null,null,null,null,"Окей'Мурманск'пр-т Ленина, д.34","ОКЕЙМУРМ1","Окей","пр-т Ленина, д.34","Мурманск","Окей'Мурманск"]
[null,null,null,null,null,null,null,null,null,null,"Окей'Нижний Новгород'пр-т Ленина, д.113","ОКЕЙНИЖН","Окей","пр-т Ленина, д.113","Нижний Новгород","Окей'Нижний Новгород"]
[null,null,null,null,null,null,null,null,null,null,"Окей'Новосибирск'ул.Военная, д.5","ОКЕЙВОЕН","Окей","ул.Военная, д.5","Новосибирск","Окей'Новосибирск"]
[null,null,null,null,null,null,null,null,null,null,"Окей'Новосибирск'ул.Орджоникидзе д.40","ОКЕЙНОВОС","Окей","ул.Орджоникидзе д.40","Новосибирск","Окей'Новосибирск"]
[null,null,null,null,null,null,null,null,null,null,"Окей'Новочеркасск'пер.Магнитный д.1, лит. А","ОКЕЙНОВОЧ","Окей","пер.Магнитный д.1, лит. А","Новочеркасск","Окей'Новочеркасск"]
[null,null,null,null,null,null,null,null,null,null,"Окей'Омск'ул. Энтузиастов, д. 2/1","ОКЕЙОМСК","Окей","ул. Энтузиастов, д. 2/1","Омск","Окей'Омск"]
[null,null,null,null,null,null,null,null,null,null,"Окей'Ростов-на-Дону'б-р Комарова, д.24, лит.А","ОКЕЙРОСТ1","Окей","б-р Комарова, д.24, лит.А","Ростов-на-Дону","Окей'Ростов-на-Дону"]
[null,null,null,null,null,null,null,null,null,null,"Окей'Ростов-на-Дону'ул.Малиновского, д.23","ОКЕЙРОСТ2","Окей","ул.Малиновского, д.23","Ростов-на-Дону","Окей'Ростов-на-Дону"]
[null,null,null,null,null,null,null,null,null,null,"Окей'Санкт-Петербург'Богатырский пр., д.13, лит.А","ОКЕЙБОГАТ","Окей","Богатырский пр., д.13, лит.А","Санкт-Петербург","Окей'Санкт-Петербург"]
[null,null,null,null,null,null,null,null,null,null,"Окей'Санкт-Петербург'Выборгское ш., д.19/1","ОКЕЙВЫБ19","Окей","Выборгское ш., д.19/1","Санкт-Петербург","Окей'Санкт-Петербург"]
[null,null,null,null,null,null,null,null,null,null,"Окей'Санкт-Петербург'Выборгское ш., д.3/1","ОКЕЙВЫБ3","Окей","Выборгское ш., д.3/1","Санкт-Петербург","Окей'Санкт-Петербург"]
[null,null,null,null,null,null,null,null,null,null,"Окей'Санкт-Петербург'Заневский пр., д.65/1, лит.А","ОКЕЙЗАНЕВС","Окей","Заневский пр., д.65/1, лит.А","Санкт-Петербург","Окей'Санкт-Петербург"]
[null,null,null,null,null,null,null,null,null,null,"Окей'Санкт-Петербург'Искровский пр-д, д.6, корп.1","ОКЕЙИСКР","Окей","Искровский пр-д, д.6, корп.1","Санкт-Петербург","Окей'Санкт-Петербург"]
[null,null,null,null,null,null,null,null,null,null,"Окей'Санкт-Петербург'Лиговский пр., д.30,лит А","ОКЕЙЛИГОВС","Окей","Лиговский пр., д.30,лит А","Санкт-Петербург","Окей'Санкт-Петербург"]
[null,null,null,null,null,null,null,null,null,null,"Окей'Санкт-Петербург'Московский пр.,137","ОКЕЙМОС137","Окей","Московский пр.,137","Санкт-Петербург","Окей'Санкт-Петербург"]
[null,null,null,null,null,null,null,null,null,null,"Окей'Санкт-Петербург'пр. Ленинский, д. 94","ОКЕЙЛЕНИНС","Окей","пр. Ленинский, д. 94","Санкт-Петербург","Окей'Санкт-Петербург"]
[null,null,null,null,null,null,null,null,null,null,"Окей'Санкт-Петербург'пр.Большевиков, д.10/1","ОКЕЙБОЛ10","Окей","пр.Большевиков, д.10/1","Санкт-Петербург","Окей'Санкт-Петербург"]
[null,null,null,null,null,null,null,null,null,null,"Окей'Санкт-Петербург'пр.Большевиков, д.27,лит.А","ОКЕЙБОЛ27","Окей","пр.Большевиков, д.27,лит.А","Санкт-Петербург","Окей'Санкт-Петербург"]
[null,null,null,null,null,null,null,null,null,null,"Окей'Санкт-Петербург'пр.Индустриальный, д.25","ОКЕЙИНДУСТ","Окей","пр.Индустриальный, д.25","Санкт-Петербург","Окей'Санкт-Петербург"]
[null,null,null,null,null,null,null,null,null,null,"Окей'Санкт-Петербург'пр.Искровский д.6, корп.1","ОКЕЙИСКРОВ","Окей","пр.Искровский д.6, корп.1","Санкт-Петербург",{"$f":"M374&\"'\"&O374","v":"Окей'Санкт-Петербург"}]
[null,null,null,null,null,null,null,null,null,null,"Окей'Санкт-Петербург'пр.Испытателей, д.27, лит.А","ОКЕЙИСПЫТ","Окей","пр.Испытателей, д.27, лит.А","Санкт-Петербург","Окей'Санкт-Петербург"]
[null,null,null,null,null,null,null,null,null,null,"Окей'Санкт-Петербург'пр.Космонавтов,45, лит.А","ОКЕЙКОСМ","Окей","пр.Космонавтов,45, лит.А","Санкт-Петербург","Окей'Санкт-Петербург"]
[null,null,null,null,null,null,null,null,null,null,"Окей'Санкт-Петербург'пр.Маршала Жукова, д.31/1","ОКЕЙЖУК31","Окей","пр.Маршала Жукова, д.31/1","Санкт-Петербург","Окей'Санкт-Петербург"]
[null,null,null,null,null,null,null,null,null,null,"Окей'Санкт-Петербург'пр.Наставников, д.33, корп.1,лит.А","ОКЕЙНАСТ","Окей","пр.Наставников, д.33, корп.1,лит.А","Санкт-Петербург","Окей'Санкт-Петербург"]
[null,null,null,null,null,null,null,null,null,null,"Окей'Санкт-Петербург'пр.Науки, д.17, корп.1","ОКЕЙНАУКИ","Окей","пр.Науки, д.17, корп.1","Санкт-Петербург","Окей'Санкт-Петербург"]
[null,null,null,null,null,null,null,null,null,null,"Окей'Санкт-Петербург'пр.Просвещения, д.80, кор.2, лит.А","ОКЕЙПРОСВЕ","Окей","пр.Просвещения, д.80, кор.2, лит.А","Санкт-Петербург","Окей'Санкт-Петербург"]
[null,null,null,null,null,null,null,null,null,null,"Окей'Санкт-Петербург'пр.Энгельса, д.154, лит.А","ОКЕЙЭНГЕЛЬ","Окей","пр.Энгельса, д.154, лит.А","Санкт-Петербург","Окей'Санкт-Петербург"]
[null,null,null,null,null,null,null,null,null,null,"Окей'Санкт-Петербург'Пулковское шоссе, д.17/2","ОКЕЙПУЛК","Окей","Пулковское шоссе, д.17/2","Санкт-Петербург","Окей'Санкт-Петербург"]
[null,null,null,null,null,null,null,null,null,null,"Окей'Санкт-Петербург'ул. Восстания 8","ОКЕЙВОССТ","Окей","ул. Восстания 8","Санкт-Петербург","Окей'Санкт-Петербург"]
[null,null,null,null,null,null,null,null,null,null,"Окей'Санкт-Петербург'ул.Ленская, д.12, кор.1, лит.А","ОКЕЙЛЕНС","Окей","ул.Ленская, д.12, кор.1, лит.А","Санкт-Петербург","Окей'Санкт-Петербург"]
[null,null,null,null,null,null,null,null,null,null,"Окей'Санкт-Петербург'ул.Малая Балканская, 27","ОКЕЙБАЛКАН","Окей","ул.Малая Балканская, 27","Санкт-Петербург","Окей'Санкт-Петербург"]
[null,null,null,null,null,null,null,null,null,null,"Окей'Санкт-Петербург'ул.Планерная, д.25, корп.1 лит.А","ОКЕЙПЛАНЕР","Окей","ул.Планерная, д.25, корп.1 лит.А","Санкт-Петербург","Окей'Санкт-Петербург"]
[null,null,null,null,null,null,null,null,null,null,"Окей'Санкт-Петербург'ул.Подвойского д.37,лит.А","ОКЕЙПОДВ","Окей","ул.Подвойского д.37,лит.А","Санкт-Петербург","Окей'Санкт-Петербург"]
[null,null,null,null,null,null,null,null,null,null,"Окей'Санкт-Петербург'ул.Прибрежная, д.13А","ОКЕЙПРИБРЕ","Окей","ул.Прибрежная, д.13А","Санкт-Петербург","Окей'Санкт-Петербург"]
[null,null,null,null,null,null,null,null,null,null,"Окей'Санкт-Петербург'ул.Савушкина, д.119, кор.3, лит.А","ОКЕЙСАВ119","Окей","ул.Савушкина, д.119, кор.3, лит.А","Санкт-Петербург","Окей'Санкт-Петербург"]
[null,null,null,null,null,null,null,null,null,null,"Окей'Санкт-Петербург'ул.Савушкина, д.132, корп.1, лит.А","ОКЕЙСАВ132","Окей","ул.Савушкина, д.132, корп.1, лит.А","Санкт-Петербург","Окей'Санкт-Петербург"]
[null,null,null,null,null,null,null,null,null,null,"Окей'Санкт-Петербург'ул.Тверская, д.36/9, лит.А","ОКЕЙТВЕРСК","Окей","ул.Тверская, д.36/9, лит.А","Санкт-Петербург","Окей'Санкт-Петербург"]
[null,null,null,null,null,null,null,null,null,null,"Окей'Санкт-Петербург'ул. Фучика, д. 2","ОКЕЙФУЧИКА","Окей","ул. Фучика, д. 2","Санкт-Петербург","Окей'Санкт-Петербург"]
[null,null,null,null,null,null,null,null,null,null,"Окей'Санкт-Петербург'ул.Щербакова, д.7, корп.1, лит.А","ОКЕЙЩЕРБАК","Окей","ул.Щербакова, д.7, корп.1, лит.А","Санкт-Петербург","Окей'Санкт-Петербург"]
[null,null,null,null,null,null,null,null,null,null,"Окей'Саратовская обл.'п.Расково, Вольский тракт, д.2","ОКЕЙСАРАТ","Окей","п.Расково, Вольский тракт, д.2","Саратовская обл.","Окей'Саратовская обл."]
[null,null,null,null,null,null,null,null,null,null,"Окей'Ставрополь'ул.Доваторцев,д.61","ОКЕЙСТАВР","Окей","ул.Доваторцев,д.61","Ставрополь","Окей'Ставрополь"]
[null,null,null,null,null,null,null,null,null,null,"Окей'Тольятти'ул.Борковская, д.81, лит.А","ОКЕЙТОЛЬЯТ","Окей","ул.Борковская, д.81, лит.А","Тольятти","Окей'Тольятти"]
[null,null,null,null,null,null,null,null,null,null,"Окей'Томск'пр. Белинского, д. 8","ОКЕЙБЕЛ","Окей","пр. Белинского, д. 8","Томск","Окей'Томск"]
[null,null,null,null,null,null,null,null,null,null,"Окей'Тюмень'ул. Широтная, 195","ОКЕЙТЮМЕН","Окей","ул. Широтная, 195","Тюмень","Окей'Тюмень"]
[null,null,null,null,null,null,null,null,null,null,"Окей'Уфа'ул. Комсомольская, д. 112","ОКЕЙУФА1","Окей","ул. Комсомольская, д. 112","Уфа","Окей'Уфа"]
[null,null,null,null,null,null,null,null,null,null,"Окей'Уфа'ул.Маршала Жукова, 37, лит.А","ОКЕЙУФА","Окей","ул.Маршала Жукова, 37, лит.А","Уфа","Окей'Уфа"]
[null,null,null,null,null,null,null,null,null,null,"Перекресток'Верхняя Пышма'пр.Индустриальный д.1 к.2","ПЕРЕКРВП","Перекресток","пр.Индустриальный д.1 к.2","Верхняя Пышма","Перекресток'Верхняя Пышма"]
[null,null,null,null,null,null,null,null,null,null,"Перекресток'Воронежская обл.'Рамонский р-н","ПЕРЕКРЕВОР","Перекресток","Рамонский р-н","Воронежская обл.","Перекресток'Воронежская обл."]
[null,null,null,null,null,null,null,null,null,null,"Перекресток'Екатеринбург'Дублер Сибирского Тракта, д.2","ПЕРЕКРЕК1","Перекресток","Дублер Сибирского Тракта, д.2","Екатеринбург","Перекресток'Екатеринбург"]
[null,null,null,null,null,null,null,null,null,null,"Перекресток'Екатеринбург'ул.Малышева д.5","ПЕРЕКРЕК3","Перекресток","ул.Малышева д.5","Екатеринбург","Перекресток'Екатеринбург"]
[null,null,null,null,null,null,null,null,null,null,"Перекресток'Екатеринбург'ул.Сулимова д.50","ПЕРЕКРЕК2","Перекресток","ул.Сулимова д.50","Екатеринбург","Перекресток'Екатеринбург"]
[null,null,null,null,null,null,null,null,null,null,"Перекресток'Ижевск'ул.Автозаводская д.3а","ПЕРЕКРИЖЕВ","Перекресток","ул.Автозаводская д.3а","Ижевск","Перекресток'Ижевск"]
[null,null,null,null,null,null,null,null,null,null,"Перекресток'Казань'Лаишевский р-н,11км","ПЕРЕКРКАЗА","Перекресток","Лаишевский р-н,11км","Казань","Перекресток'Казань"]
[null,null,null,null,null,null,null,null,null,null,"Перекресток'Ленинградская обл.'Всеволожский р-н,п. им.Свердлова,","ПЕРЕКРСПБ6","Перекресток","Всеволожский р-н,п. им.Свердлова,","Ленинградская обл.","Перекресток'Ленинградская обл."]
[null,null,null,null,null,null,null,null,null,null,"Перекресток'Ленинградская обл.'Выборг ,ул.Госпитальная, д.1","ПЕРЕКРСВЫБ","Перекресток","Выборг ,ул.Госпитальная, д.1","Ленинградская обл.","Перекресток'Ленинградская обл."]
[null,null,null,null,null,null,null,null,null,null,"Перекресток'Ленинградская обл.'Сосновый Бор","ПЕРЕКРСОСН","Перекресток","Сосновый Бор","Ленинградская обл.","Перекресток'Ленинградская обл."]
[null,null,null,null,null,null,null,null,null,null,"Перекресток'Москва'Декабристов, 12","ПЕРЕКРЕС7","Перекресток","Декабристов, 12","Москва","Перекресток'Москва"]
[null,null,null,null,null,null,null,null,null,null,"Перекресток'Москва'Домодедово","ПЕРЕКРЕС10","Перекресток","Домодедово","Москва","Перекресток'Москва"]
[null,null,null,null,null,null,null,null,null,null,"Перекресток'Москва'Ленинградское ш., 5","ПЕРЕКРЕС6","Перекресток","Ленинградское ш., 5","Москва","Перекресток'Москва"]
[null,null,null,null,null,null,null,null,null,null,"Перекресток'Москва'Ленинградское ш.,16","ПЕРЕРЕС8","Перекресток","Ленинградское ш.,16","Москва","Перекресток'Москва"]
[null,null,null,null,null,null,null,null,null,null,{"$f":"M415&\"'\"&O415&\"'\"&N415","v":"Перекресток'Москва'Новоясеневский пр-т,вл.1"},"ПЕРЕКРНОВО","Перекресток","Новоясеневский пр-т,вл.1","Москва","Перекресток'Москва"]
[null,null,null,null,null,null,null,null,null,null,"Перекресток'Москва'проспект Андропова, вл.8","ПЕРЕКРЕТОК","Перекресток","проспект Андропова, вл.8","Москва","Перекресток'Москва"]
[null,null,null,null,null,null,null,null,null,null,"Перекресток'Москва'ул.Поляны,8","ПЕРЕКРЕСПО","Перекресток","ул.Поляны,8","Москва","Перекресток'Москва"]
[null,null,null,null,null,null,null,null,null,null,"Перекресток'Москва'Фуражная","ПЕРЕКРЕС5","Перекресток","Фуражная","Москва","Перекресток'Москва"]
[null,null,null,null,null,null,null,null,null,null,"Перекресток'Москва'Шолохово","ПЕРЕКРЕСТ2","Перекресток","Шолохово","Москва","Перекресток'Москва"]
[null,null,null,null,null,null,null,null,null,null,"Перекресток'Московская обл.'0","ПЕРЕКРЕС3","Перекресток","00:00:00","Московская обл.","Перекресток'Московская обл."]
[null,null,null,null,null,null,null,null,null,null,"Перекресток'Московская обл.'0","ПЕРЕКРЕС9","Перекресток","00:00:00","Московская обл.","Перекресток'Московская обл."]
[null,null,null,null,null,null,null,null,null,null,"Перекресток'Московская обл.'Баранцевский с.о., д.Новоселки","ПЕРЕКРНОВ","Перекресток","Баранцевский с.о., д.Новоселки","Московская обл.","Перекресток'Московская обл."]
[null,null,null,null,null,null,null,null,null,null,"Перекресток'Московская обл.'Каширский пер-к,66","ПЕРЕКРЕС4","Перекресток","Каширский пер-к,66","Московская обл.","Перекресток'Московская обл."]
[null,null,null,null,null,null,null,null,null,null,"Перекресток'Московская обл.'Коммунистическая","ПЕРЕКРРМЫТ","Перекресток","Коммунистическая","Московская обл.","Перекресток'Московская обл."]
[null,null,null,null,null,null,null,null,null,null,"Перекресток'Московская обл.'Краснополянскй пр., д.1","ПЕРЕКРЛОБН","Перекресток","Краснополянскй пр., д.1","Московская обл.","Перекресток'Московская обл."]
[null,null,null,null,null,null,null,null,null,null,"Перекресток'Московская обл.'Павельцево","ПЕРЕКРЕСТ1","Перекресток","Павельцево","Московская обл.","Перекресток'Московская обл."]
[null,null,null,null,null,null,null,null,null,null,"Перекресток'Московская обл.'Симферопольское ш. 20 А 2","ПЕРЕКРПОД","Перекресток","Симферопольское ш. 20 А 2","Московская обл.","Перекресток'Московская обл."]
[null,null,null,null,null,null,null,null,null,null,"Перекресток'Московская обл.'ул. Бирлово Поле","ПЕРЕКР","Перекресток","ул. Бирлово Поле","Московская обл.","Перекресток'Московская обл."]
[null,null,null,null,null,null,null,null,null,null,"Перекресток'Московская обл.'ул.Краснодарская, д.2","ПЕРЕКРЕСТО","Перекресток","ул.Краснодарская, д.2","Московская обл.","Перекресток'Московская обл."]
[null,null,null,null,null,null,null,null,null,null,"Перекресток'Московская обл.'Химки Ленинградское ш.,вл.5","ПЕРЕКРХИМ","Перекресток","Химки Ленинградское ш.,вл.5","Московская обл.","Перекресток'Московская обл."]
[null,null,null,null,null,null,null,null,null,null,"Перекресток'Ростов-на-Дону'Буденовский пр-кт, д.49","ПЕРЕКРРОС1","Перекресток","Буденовский пр-кт, д.49","Ростов-на-Дону","Перекресток'Ростов-на-Дону"]
[null,null,null,null,null,null,null,null,null,null,"Перекресток'Ростов-на-Дону'Новочеркасское ш., д.111 корп.2","ПЕРЕКРРОСТ","Перекресток","Новочеркасское ш., д.111 корп.2","Ростов-на-Дону","Перекресток'Ростов-на-Дону"]
[null,null,null,null,null,null,null,null,null,null,"Перекресток'Ростовская обл.'Аксайский р-н, поле №16","ПЕРЕКРОСТ","Перекресток","Аксайский р-н, поле №16","Ростовская обл.","Перекресток'Ростовская обл."]
[null,null,null,null,null,null,null,null,null,null,"Перекресток'Самара'Московское шоссе, 18км, 25Д","ПЕРЕКРСАМ5","Перекресток","Московское шоссе, 18км, 25Д","Самара","Перекресток'Самара"]
[null,null,null,null,null,null,null,null,null,null,"Перекресток'Самара'Московское шоссе, 81А","ПЕРЕКРСАМ3","Перекресток","Московское шоссе, 81А","Самара","Перекресток'Самара"]
[null,null,null,null,null,null,null,null,null,null,"Перекресток'Самара'ул.Кирова, 147","ПЕРЕКРСАМ1","Перекресток","ул.Кирова, 147","Самара","Перекресток'Самара"]
[null,null,null,null,null,null,null,null,null,null,"Перекресток'Самара'ул.Ново-Садовая, 160М","ПЕРЕКРСАМ4","Перекресток","ул.Ново-Садовая, 160М","Самара","Перекресток'Самара"]
[null,null,null,null,null,null,null,null,null,null,"Перекресток'Самарская обл.'Кинель, ул.Промышленная, д.13","ПЕРЕКРСАМ2","Перекресток","Кинель, ул.Промышленная, д.13","Самарская обл.",{"$f":"M438&\"'\"&O438","v":"Перекресток'Самарская обл."}]
[null,null,null,null,null,null,null,null,null,null,"Перекресток'Санкт-Петербург'Коломяжский пр-т, д.17А","ПЕРЕКРКОЛО","Перекресток","Коломяжский пр-т, д.17А","Санкт-Петербург","Перекресток'Санкт-Петербург"]
[null,null,null,null,null,null,null,null,null,null,"Перекресток'Санкт-Петербург'Ленинский пр,100","ПЕРЕКРСПБ2","Перекресток","Ленинский пр,100","Санкт-Петербург","Перекресток'Санкт-Петербург"]
[null,null,null,null,null,null,null,null,null,null,"Перекресток'Санкт-Петербург'п.Шушары,Московское щ.,19 /2,лит.А","ПЕРЕКШУШАР","Перекресток","п.Шушары,Московское щ.,19 /2,лит.А","Санкт-Петербург","Перекресток'Санкт-Петербург"]
[null,null,null,null,null,null,null,null,null,null,"Перекресток'Санкт-Петербург'пр. Индустриальный, 24/А","ПЕРЕКРИНДУ","Перекресток","пр. Индустриальный, 24/А","Санкт-Петербург","Перекресток'Санкт-Петербург"]
[null,null,null,null,null,null,null,null,null,null,"Перекресток'Санкт-Петербург'пр-кт Просвещения, д.74","ПЕРЕКРСПБ5","Перекресток","пр-кт Просвещения, д.74","Санкт-Петербург","Перекресток'Санкт-Петербург"]
[null,null,null,null,null,null,null,null,null,null,"Перекресток'Санкт-Петербург'Промзона \"Уткина Заводь\"","ПЕРЕКРСПБ7","Перекресток","Промзона \"Уткина Заводь\"","Санкт-Петербург","Перекресток'Санкт-Петербург"]
[null,null,null,null,null,null,null,null,null,null,"Перекресток'Санкт-Петербург'Пулковское шоссе, 19","ПЕРЕКРСПБ1","Перекресток","Пулковское шоссе, 19","Санкт-Петербург","Перекресток'Санкт-Петербург"]
[null,null,null,null,null,null,null,null,null,null,"Перекресток'Санкт-Петербург'ул. Бухаретская, д. 89А","ПЕРЕКРБУХ","Перекресток","ул. Бухаретская, д. 89А","Санкт-Петербург","Перекресток'Санкт-Петербург"]
[null,null,null,null,null,null,null,null,null,null,"Перекресток'Санкт-Петербург'ул. Коллонтай,3","ПЕРЕКРСПБ3","Перекресток","ул. Коллонтай,3","Санкт-Петербург","Перекресток'Санкт-Петербург"]
[null,null,null,null,null,null,null,null,null,null,"Перекресток'Санкт-Петербург'ул.Карбышева, д.9А","ПЕРЕКРКАРБ","Перекресток","ул.Карбышева, д.9А","Санкт-Петербург","Перекресток'Санкт-Петербург"]
[null,null,null,null,null,null,null,null,null,null,"Перекресток'Санкт-Петербург'ул.Кузнецовская, д.31А","ПЕРЕКРКУЗН","Перекресток","ул.Кузнецовская, д.31А","Санкт-Петербург","Перекресток'Санкт-Петербург"]
[null,null,null,null,null,null,null,null,null,null,"Перекресток'Санкт-Петербург'ул.Партизана Германа, д.47А","ПЕРЕКРПАРТ","Перекресток","ул.Партизана Германа, д.47А","Санкт-Петербург","Перекресток'Санкт-Петербург"]
[null,null,null,null,null,null,null,null,null,null,"Перекресток'Санкт-Петербург'ул.Руставели, д.43А","ПЕРЕКРСПБ4","Перекресток","ул.Руставели, д.43А","Санкт-Петербург","Перекресток'Санкт-Петербург"]
[null,null,null,null,null,null,null,null,null,null,"Перекресток'Санкт-Петербург'ул.Седова, д.9 лит.А","ПЕРЕКРСЕДО","Перекресток","ул.Седова, д.9 лит.А","Санкт-Петербург","Перекресток'Санкт-Петербург"]
[null,null,null,null,null,null,null,null,null,null,"Перекресток'Старый Оскол'мкр.Дубрава,квартал 1","ПЕРЕКРЕСТ6","Перекресток","мкр.Дубрава,квартал 1","Старый Оскол","Перекресток'Старый Оскол"]
[null,null,null,null,null,null,null,null,null,null,"Перекресток'Тюмень'ул.2-ая Луговая д.30","ПЕРЕКРТЮМ1","Перекресток","ул.2-ая Луговая д.30","Тюмень","Перекресток'Тюмень"]
[null,null,null,null,null,null,null,null,null,null,"Перекресток'Тюмень'ул.Максима Горького д.70","ПЕРЕКРТЮМ2","Перекресток","ул.Максима Горького д.70","Тюмень","Перекресток'Тюмень"]
[null,null,null,null,null,null,null,null,null,null,"Перекресток'Тюмень'ул.Пермякова д.50Б","ПЕРЕКРТЮМ3","Перекресток","ул.Пермякова д.50Б","Тюмень","Перекресток'Тюмень"]
[null,null,null,null,null,null,null,null,null,null,"Перекресток'Челябинск'ул. Кашириных 99 А","ПЕРЕКРЧЕЛ","Перекресток","ул. Кашириных 99 А","Челябинск","Перекресток'Челябинск"]
[null,null,null,null,null,null,null,null,null,null,"Перекресток'Челябинск'ул. Первомайская д.1-а","ПЕРЕКЧЕЛЯ","Перекресток","ул. Первомайская д.1-а","Челябинск","Перекресток'Челябинск"]
[null,null,null,null,null,null,null,null,null,null,"Перекресток'Челябинск'ул.Худякова,12а","ПЕРЕКЧЕЛЯБ","Перекресток","ул.Худякова,12а","Челябинск","Перекресток'Челябинск"]
[null,null,null,null,null,null,null,null,null,null,"Перекресток'Ярославль'Ленинградский пр-т,123","ПЕРЕКРЯРОС","Перекресток","Ленинградский пр-т,123","Ярославль","Перекресток'Ярославль"]
[null,null,null,null,null,null,null,null,null,null,"Реал'Волгоград'ул.Историческая, д.175","РЕАЛВОЛГОГ","Реал","ул.Историческая, д.175","Волгоград","Реал'Волгоград"]
[null,null,null,null,null,null,null,null,null,null,"Реал'Казань'пр-т Ямашева, д.46/33","РЕАЛКАЗАНЬ","Реал","пр-т Ямашева, д.46/33","Казань","Реал'Казань"]
[null,null,null,null,null,null,null,null,null,null,"Реал'Липецк'ул.Эдуарда Белана, д.26","РЕАЛЛИПЕЦК","Реал","ул.Эдуарда Белана, д.26","Липецк","Реал'Липецк"]
[null,null,null,null,null,null,null,null,null,null,"Реал'Москва'Остаповский пр-д,22","РЕАЛЭЛЕКТР","Реал","Остаповский пр-д,22","Москва","Реал'Москва"]
[null,null,null,null,null,null,null,null,null,null,"Реал'Москва'пересечение ул.Люблинской и МКАД","РЕАЛБРАТЕЕ","Реал","пересечение ул.Люблинской и МКАД","Москва","Реал'Москва"]
[null,null,null,null,null,null,null,null,null,null,"Реал'Москва'Сигнальный проезд, д.17","РЕАЛОТРАДН","Реал","Сигнальный проезд, д.17","Москва","Реал'Москва"]
[null,null,null,null,null,null,null,null,null,null,"Реал'Москва'ул.Проектируемый пр-д 5396 вл.15","РЕАЛПРОЕК","Реал","ул.Проектируемый пр-д 5396 вл.15","Москва","Реал'Москва"]
[null,null,null,null,null,null,null,null,null,null,"Реал'Московская обл.'Новорязанское шоссе, д.5","РЕАЛКОТЕЛЬ","Реал","Новорязанское шоссе, д.5","Московская обл.","Реал'Московская обл."]
[null,null,null,null,null,null,null,null,null,null,"Реал'Московская обл.'ул. Жилинская, д.1,стр.1","РЕАЛЖИЛИН","Реал","ул. Жилинская, д.1,стр.1","Московская обл.","Реал'Московская обл."]
[null,null,null,null,null,null,null,null,null,null,"Реал'Московская обл.'ул.Куконковых, 141","РЕАЛИВАНОВ","Реал","ул.Куконковых, 141","Московская обл.","Реал'Московская обл."]
[null,null,null,null,null,null,null,null,null,null,"Реал'Нижний Новгород'ул.Родионова, д.187В","РЕАЛНИЖНИЙ","Реал","ул.Родионова, д.187В","Нижний Новгород","Реал'Нижний Новгород"]
[null,null,null,null,null,null,null,null,null,null,"Реал'Ростов-на-Дону'ул.Омская, д.2 \"К\"","РЕАЛРОСТОВ","Реал","ул.Омская, д.2 \"К\"","Ростов-на-Дону","Реал'Ростов-на-Дону"]
[null,null,null,null,null,null,null,null,null,null,"Реал'Санкт-Петербург'пр-т Космонавтов, д.14","РЕАЛСПБ1","Реал","пр-т Космонавтов, д.14","Санкт-Петербург","Реал'Санкт-Петербург"]
[null,null,null,null,null,null,null,null,null,null,"Реал'Санкт-Петербург'пр-т Культуры, 41","РЕАЛСПБ2","Реал","пр-т Культуры, 41","Санкт-Петербург","Реал'Санкт-Петербург"]
[null,null,null,null,null,null,null,null,null,null,"Реал'Саратов'ул.Верхняя, д.17","РЕАЛСАРАТО","Реал","ул.Верхняя, д.17","Саратов","Реал'Саратов"]
[null,null,null,null,null,null,null,null,null,null,"Реал'Тамбов'ул.Советская, д.194 Б","РЕАЛТАМБОВ","Реал","ул.Советская, д.194 Б","Тамбов","Реал'Тамбов"]
[null,null,null,null,null,null,null,null,null,null,"Реал'Тольятти'Автозаводское шоссе, д.6","РЕАЛТОЛЬЯТ","Реал","Автозаводское шоссе, д.6","Тольятти","Реал'Тольятти"]
[null,null,null,null,null,null,null,null,null,null,"Реал'Ярославль'пересечение Московского пр-таи","РЕАЛЯРОСЛ1","Реал","пересечение Московского пр-таи","Ярославль","Реал'Ярославль"]
[null,null,null,null,null,null,null,null,null,null,{"$f":"M479&\"'\"&O479&\"'\"&N479","v":"Реал'Ярославская обл.'пос.Нагорный,ул.Дорожная,д.6А"},"РЕАЛЯРОСЛ2","Реал","пос.Нагорный,ул.Дорожная,д.6А","Ярославская обл.","Реал'Ярославская обл."]
[null,null,null,null,null,null,null,null,null,null,"Рыбинская маркет'Санкт-Петербург'пр-т.Обуховской обороны д.49 лит.К","РЫБИНСКАЯ","Рыбинская маркет","пр-т.Обуховской обороны д.49 лит.К","Санкт-Петербург","Рыбинская маркет'Санкт-Петербург"]
[null,null,null,null,null,null,null,null,null,null,"Седьмой Континент'Белгород'Пр.Б.Хмельницкого,164","7БЕЛГОРОД","Седьмой Континент","Пр.Б.Хмельницкого,164","Белгород","Седьмой Континент'Белгород"]
[null,null,null,null,null,null,null,null,null,null,"Седьмой Континент'Вологда'ул.Окружное ш-е д.13","7ВОЛОГДА","Седьмой Континент","ул.Окружное ш-е д.13","Вологда","Седьмой Континент'Вологда"]
[null,null,null,null,null,null,null,null,null,null,"Седьмой Континент'Иваново'Кохомское шоссе, 5","7ИВАНОВО","Седьмой Континент","Кохомское шоссе, 5","Иваново","Седьмой Континент'Иваново"]
[null,null,null,null,null,null,null,null,null,null,"Седьмой Континент'Калининград'Лесопарская улица, 1 -7","7КАЛЛЕСОПА","Седьмой Континент","Лесопарская улица, 1 -7","Калининград","Седьмой Континент'Калининград"]
[null,null,null,null,null,null,null,null,null,null,"Седьмой Континент'Калининград'Мариупольская улица, 14","7КАЛМАРИУП","Седьмой Континент","Мариупольская улица, 14","Калининград","Седьмой Континент'Калининград"]
[null,null,null,null,null,null,null,null,null,null,"Седьмой Континент'Калининград'Подполковника Емельянова,215","7КАЛПОДПОЛ","Седьмой Континент","Подполковника Емельянова,215","Калининград","Седьмой Континент'Калининград"]
[null,null,null,null,null,null,null,null,null,null,"Седьмой Континент'Калининград'пос.Прибрежный,ул.Строительная,9а","7КАЛПРИБРЕ","Седьмой Континент","пос.Прибрежный,ул.Строительная,9а","Калининград","Седьмой Континент'Калининград"]
[null,null,null,null,null,null,null,null,null,null,"Седьмой Континент'Калининград'ул. Батальная, 62 а","7КАЛБАТАЛЬ","Седьмой Континент","ул. Батальная, 62 а","Калининград","Седьмой Континент'Калининград"]
[null,null,null,null,null,null,null,null,null,null,"Седьмой Континент'Калининград'ул.Согласия, 1","7КАЛСОГЛАС","Седьмой Континент","ул.Согласия, 1","Калининград","Седьмой Континент'Калининград"]
[null,null,null,null,null,null,null,null,null,null,"Седьмой Континент'Калининград'Улица Фрунзе, 15 а","7КАЛФРУНЗЕ","Седьмой Континент","Улица Фрунзе, 15 а","Калининград","Седьмой Континент'Калининград"]
[null,null,null,null,null,null,null,null,null,null,"Седьмой Континент'Калининград'Уральская улица, 18","7КАЛУРАЛЬС","Седьмой Континент","Уральская улица, 18","Калининград","Седьмой Континент'Калининград"]
[null,null,null,null,null,null,null,null,null,null,"Седьмой Континент'Москва'2-я Качаровская улица,6/16","7КАРАЧ","Седьмой Континент","2-я Качаровская улица,6/16","Москва","Седьмой Континент'Москва"]
[null,null,null,null,null,null,null,null,null,null,"Седьмой Континент'Москва'2-я Мелитопольская, 3 а","7МЕЛИТОПОЛ","Седьмой Континент","2-я Мелитопольская, 3 а","Москва","Седьмой Континент'Москва"]
[null,null,null,null,null,null,null,null,null,null,"Седьмой Континент'Москва'5-я Кожуховская улица,13","7КОЖУХОВСК","Седьмой Континент","5-я Кожуховская улица,13","Москва","Седьмой Континент'Москва"]
[null,null,null,null,null,null,null,null,null,null,"Седьмой Континент'Москва'5-я улица Сооклинской горы,25,2","7СОКОЛИНАЯ","Седьмой Континент","5-я улица Сооклинской горы,25,2","Москва","Седьмой Континент'Москва"]
[null,null,null,null,null,null,null,null,null,null,"Седьмой Континент'Москва'73-й км МКАД, 7","7КМ73МКАД","Седьмой Континент","73-й км МКАД, 7","Москва","Седьмой Континент'Москва"]
[null,null,null,null,null,null,null,null,null,null,"Седьмой Континент'Москва'800-летия Москвы, 11","7800ЛЕТИЯМ","Седьмой Континент","800-летия Москвы, 11","Москва","Седьмой Континент'Москва"]
[null,null,null,null,null,null,null,null,null,null,"Седьмой Континент'Москва'Авиамоторная, 22 /12","7АВИАМОТОР","Седьмой Континент","Авиамоторная, 22 /12","Москва","Седьмой Континент'Москва"]
[null,null,null,null,null,null,null,null,null,null,"Седьмой Континент'Москва'Академика варги улица,36","7АКАДЕМИКА","Седьмой Континент","Академика варги улица,36","Москва","Седьмой Континент'Москва"]
[null,null,null,null,null,null,null,null,null,null,"Седьмой Континент'Москва'Анадырский пр-д, 57","7АНАДЫРСКИ","Седьмой Континент","Анадырский пр-д, 57","Москва","Седьмой Континент'Москва"]
[null,null,null,null,null,null,null,null,null,null,"Седьмой Континент'Москва'Арбат улица, 54/2 1","7АРБАТ","Седьмой Континент","Арбат улица, 54/2 1","Москва","Седьмой Континент'Москва"]
[null,null,null,null,null,null,null,null,null,null,"Седьмой Континент'Москва'Б.Новодмитрвоская, 23, 3","7БНОВОДМИТ","Седьмой Континент","Б.Новодмитрвоская, 23, 3","Москва",{"$f":"M502&\"'\"&O502","v":"Седьмой Континент'Москва"}]
[null,null,null,null,null,null,null,null,null,null,"Седьмой Континент'Москва'Б.Черемушкинская,д.1","7БЧЕРЕМУШК","Седьмой Континент","Б.Черемушкинская,д.1","Москва","Седьмой Континент'Москва"]
[null,null,null,null,null,null,null,null,null,null,"Седьмой Континент'Москва'Байкальская улица,12","7БАЙКАЛЬЯС","Седьмой Континент","Байкальская улица,12","Москва","Седьмой Континент'Москва"]
[null,null,null,null,null,null,null,null,null,null,"Седьмой Континент'Москва'Барвихинская улица,6","7БАРВИХИН","Седьмой Континент","Барвихинская улица,6","Москва","Седьмой Континент'Москва"]
[null,null,null,null,null,null,null,null,null,null,"Седьмой Континент'Москва'Беговая улица,4","7БЕГОВАЯ","Седьмой Континент","Беговая улица,4","Москва","Седьмой Континент'Москва"]
[null,null,null,null,null,null,null,null,null,null,"Седьмой Континент'Москва'Белозерская улица, 11\"Г\"","7БЕЛОЗЕРСК","Седьмой Континент","Белозерская улица, 11\"Г\"","Москва","Седьмой Континент'Москва"]
[null,null,null,null,null,null,null,null,null,null,"Седьмой Континент'Москва'Бешняковская, 13а","7ВЕШНЯКОВС","Седьмой Континент","Бешняковская, 13а","Москва","Седьмой Континент'Москва"]
[null,null,null,null,null,null,null,null,null,null,"Седьмой Континент'Москва'Бибиревская улица,10,2","7БИБИРЕВО","Седьмой Континент","Бибиревская улица,10,2","Москва","Седьмой Континент'Москва"]
[null,null,null,null,null,null,null,null,null,null,"Седьмой Континент'Москва'Бирюлевская улица,21,1","7БИРЮЛЕВСК","Седьмой Континент","Бирюлевская улица,21,1","Москва","Седьмой Континент'Москва"]
[null,null,null,null,null,null,null,null,null,null,"Седьмой Континент'Москва'Богданова улица, д.32","7БОГДАНОВА","Седьмой Континент","Богданова улица, д.32","Москва","Седьмой Континент'Москва"]
[null,null,null,null,null,null,null,null,null,null,"Седьмой Континент'Москва'Богородский вал,д.6,к.2","7БОГОРОДВА","Седьмой Континент","Богородский вал,д.6,к.2","Москва","Седьмой Континент'Москва"]
[null,null,null,null,null,null,null,null,null,null,"Седьмой Континент'Москва'Большая Грузинская,63,1","7БГРУЗИНСК","Седьмой Континент","Большая Грузинская,63,1","Москва","Седьмой Континент'Москва"]
[null,null,null,null,null,null,null,null,null,null,"Седьмой Континент'Москва'Большая Косинская,16,1","7БКОСИНСКА","Седьмой Континент","Большая Косинская,16,1","Москва","Седьмой Континент'Москва"]
[null,null,null,null,null,null,null,null,null,null,"Седьмой Континент'Москва'Большая Лубянка,12,1","7ЛУБЯНКА","Седьмой Континент","Большая Лубянка,12,1","Москва","Седьмой Континент'Москва"]
[null,null,null,null,null,null,null,null,null,null,"Седьмой Континент'Москва'Большая Спасская,27","7БСПАССКАЯ","Седьмой Континент","Большая Спасская,27","Москва","Седьмой Континент'Москва"]
[null,null,null,null,null,null,null,null,null,null,"Седьмой Континент'Москва'Большая Тарская, 30","7БТАТАРСКА","Седьмой Континент","Большая Тарская, 30","Москва","Седьмой Континент'Москва"]
[null,null,null,null,null,null,null,null,null,null,"Седьмой Континент'Москва'Борисовский пр-д,д.3,к.1","7БОРИСОВСК","Седьмой Континент","Борисовский пр-д,д.3,к.1","Москва","Седьмой Континент'Москва"]
[null,null,null,null,null,null,null,null,null,null,"Седьмой Континент'Москва'Боровское ш.,д.35","7БОРОВСК35","Седьмой Континент","Боровское ш.,д.35","Москва","Седьмой Континент'Москва"]
[null,null,null,null,null,null,null,null,null,null,"Седьмой Континент'Москва'Боровское ш.,д.56","7БОРОВСК56","Седьмой Континент","Боровское ш.,д.56","Москва","Седьмой Континент'Москва"]
[null,null,null,null,null,null,null,null,null,null,"Седьмой Континент'Москва'Братеевская улица,16,1","7БРАТЕЕВСК","Седьмой Континент","Братеевская улица,16,1","Москва","Седьмой Континент'Москва"]
[null,null,null,null,null,null,null,null,null,null,"Седьмой Континент'Москва'Волгоградский пр-т,175/32","7ВОЛГОГРАД","Седьмой Континент","Волгоградский пр-т,175/32","Москва","Седьмой Континент'Москва"]
[null,null,null,null,null,null,null,null,null,null,"Седьмой Континент'Москва'Габричевского улица, 10, 3","7ГАБРИЧЕВС","Седьмой Континент","Габричевского улица, 10, 3","Москва","Седьмой Континент'Москва"]
[null,null,null,null,null,null,null,null,null,null,"Седьмой Континент'Москва'Ген. Белобородова улица,14,1","7ГЕНБЕЛОБО","Седьмой Континент","Ген. Белобородова улица,14,1","Москва","Седьмой Континент'Москва"]
[null,null,null,null,null,null,null,null,null,null,"Седьмой Континент'Москва'Гурьевский проезд, 15, 1","7ГУРЬЕВСКИ","Седьмой Континент","Гурьевский проезд, 15, 1","Москва","Седьмой Континент'Москва"]
[null,null,null,null,null,null,null,null,null,null,"Седьмой Континент'Москва'Декабристов, 15","7ДЕКАБРИСТ","Седьмой Континент","Декабристов, 15","Москва","Седьмой Континент'Москва"]
[null,null,null,null,null,null,null,null,null,null,"Седьмой Континент'Москва'Делегатская улица,9,1","7ДЕЛЕГАТСК","Седьмой Континент","Делегатская улица,9,1","Москва","Седьмой Континент'Москва"]
[null,null,null,null,null,null,null,null,null,null,"Седьмой Континент'Москва'Дмитровское шоссе,116Д","7ДМИТШО116","Седьмой Континент","Дмитровское шоссе,116Д","Москва","Седьмой Континент'Москва"]
[null,null,null,null,null,null,null,null,null,null,"Седьмой Континент'Москва'Дмитровское шоссе,155,1","7ДМИТШО155","Седьмой Континент","Дмитровское шоссе,155,1","Москва","Седьмой Континент'Москва"]
[null,null,null,null,null,null,null,null,null,null,"Седьмой Континент'Москва'Дмитровское шоссе,163а","7ДМИТШО163","Седьмой Континент","Дмитровское шоссе,163а","Москва","Седьмой Континент'Москва"]
[null,null,null,null,null,null,null,null,null,null,"Седьмой Континент'Москва'Днепропетровская ул., 4а, 1","7ДНЕПРОПЕТ","Седьмой Континент","Днепропетровская ул., 4а, 1","Москва","Седьмой Континент'Москва"]
[null,null,null,null,null,null,null,null,null,null,"Седьмой Континент'Москва'Донбасская улица, 1","7ДОНБАССКА","Седьмой Континент","Донбасская улица, 1","Москва","Седьмой Континент'Москва"]
[null,null,null,null,null,null,null,null,null,null,"Седьмой Континент'Москва'Жулебинский бульвар, 16","7ЖУЛЕБИНО","Седьмой Континент","Жулебинский бульвар, 16","Москва","Седьмой Континент'Москва"]
[null,null,null,null,null,null,null,null,null,null,"Седьмой Континент'Москва'Зарайская улица,53","7ЗАРАЙСКАЯ","Седьмой Континент","Зарайская улица,53","Москва","Седьмой Континент'Москва"]
[null,null,null,null,null,null,null,null,null,null,"Седьмой Континент'Москва'Зеленоградская,3,1","7ЗЕЛЕНОГРА","Седьмой Континент","Зеленоградская,3,1","Москва","Седьмой Континент'Москва"]
[null,null,null,null,null,null,null,null,null,null,"Седьмой Континент'Москва'Зеленодольская,9,2","7ЗЕЛЕНОДОЛ","Седьмой Континент","Зеленодольская,9,2","Москва","Седьмой Континент'Москва"]
[null,null,null,null,null,null,null,null,null,null,"Седьмой Континент'Москва'Изумрудная улица, 3, 1","7ИЗУМРУДНА","Седьмой Континент","Изумрудная улица, 3, 1","Москва","Седьмой Континент'Москва"]
[null,null,null,null,null,null,null,null,null,null,"Седьмой Континент'Москва'Инженерная улица, 3","7ИНЖЕНЕРНА","Седьмой Континент","Инженерная улица, 3","Москва","Седьмой Континент'Москва"]
[null,null,null,null,null,null,null,null,null,null,"Седьмой Континент'Москва'кантемировская улица,16/1 ,1","7КАНТЕМИРО","Седьмой Континент","кантемировская улица,16/1 ,1","Москва","Седьмой Континент'Москва"]
[null,null,null,null,null,null,null,null,null,null,"Седьмой Континент'Москва'Каргопольская улица, 11, 1","7КАРГОПОЛЬ","Седьмой Континент","Каргопольская улица, 11, 1","Москва","Седьмой Континент'Москва"]
[null,null,null,null,null,null,null,null,null,null,"Седьмой Континент'Москва'Коровинское шоссе, 21, 1","7КОРОВИН","Седьмой Континент","Коровинское шоссе, 21, 1","Москва","Седьмой Континент'Москва"]
[null,null,null,null,null,null,null,null,null,null,"Седьмой Континент'Москва'Коровинское шоссе, 24, 1","7КОРОВИН24","Седьмой Континент","Коровинское шоссе, 24, 1","Москва","Седьмой Континент'Москва"]
[null,null,null,null,null,null,null,null,null,null,{"$f":"M543&\"'\"&O543&\"'\"&N543","v":"Седьмой Континент'Москва'Космонавтов улица, 4"},"7КОСМОНАВТ","Седьмой Континент","Космонавтов улица, 4","Москва","Седьмой Континент'Москва"]
[null,null,null,null,null,null,null,null,null,null,"Седьмой Континент'Москва'Коштоянца улица, 21 а","7КОШТОЯНЦА","Седьмой Континент","Коштоянца улица, 21 а","Москва","Седьмой Континент'Москва"]
[null,null,null,null,null,null,null,null,null,null,"Седьмой Континент'Москва'Красного маяка улица, 2 Б","7КРАСНМАЯК","Седьмой Континент","Красного маяка улица, 2 Б","Москва","Седьмой Континент'Москва"]
[null,null,null,null,null,null,null,null,null,null,"Седьмой Континент'Москва'Красный Казанец, 1 а","7КРАСКАЗАН","Седьмой Континент","Красный Казанец, 1 а","Москва","Седьмой Континент'Москва"]
[null,null,null,null,null,null,null,null,null,null,"Седьмой Континент'Москва'Лебедянская удица,14/1,2","7ЛЕБЕДЯНСК","Седьмой Континент","Лебедянская удица,14/1,2","Москва","Седьмой Континент'Москва"]
[null,null,null,null,null,null,null,null,null,null,"Седьмой Континент'Москва'Ленинградское шоссе,68","7ЛЕНИНГРА","Седьмой Континент","Ленинградское шоссе,68","Москва","Седьмой Континент'Москва"]
[null,null,null,null,null,null,null,null,null,null,"Седьмой Континент'Москва'Ленинский проспект,61/1","7ЛЕНИНСКИЙ","Седьмой Континент","Ленинский проспект,61/1","Москва","Седьмой Континент'Москва"]
[null,null,null,null,null,null,null,null,null,null,"Седьмой Континент'Москва'Лескова улица,16","7ЛЕСКОВА","Седьмой Континент","Лескова улица,16","Москва","Седьмой Континент'Москва"]
[null,null,null,null,null,null,null,null,null,null,"Седьмой Континент'Москва'Летниковская улица ,10 ,5","7ЛЕТНИКОВС","Седьмой Континент","Летниковская улица ,10 ,5","Москва","Седьмой Континент'Москва"]
[null,null,null,null,null,null,null,null,null,null,"Седьмой Континент'Москва'Магнитогорская улица, 2, 1","7МАГНИТОГ","Седьмой Континент","Магнитогорская улица, 2, 1","Москва","Седьмой Континент'Москва"]
[null,null,null,null,null,null,null,null,null,null,"Седьмой Континент'Москва'Манежная пл-дь, 1, 2","7МАНЕЖНАЯ","Седьмой Континент","Манежная пл-дь, 1, 2","Москва","Седьмой Континент'Москва"]
[null,null,null,null,null,null,null,null,null,null,"Седьмой Континент'Москва'Мартеневская улица, 35","7МАРТЕНОВС","Седьмой Континент","Мартеневская улица, 35","Москва","Седьмой Континент'Москва"]
[null,null,null,null,null,null,null,null,null,null,"Седьмой Континент'Москва'Маршала Жукова пр-т,42,1","7МАРШАЛА","Седьмой Континент","Маршала Жукова пр-т,42,1","Москва","Седьмой Континент'Москва"]
[null,null,null,null,null,null,null,null,null,null,"Седьмой Континент'Москва'Медынская улица, 7","7МЕДЫНСКАЯ","Седьмой Континент","Медынская улица, 7","Москва","Седьмой Континент'Москва"]
[null,null,null,null,null,null,null,null,null,null,"Седьмой Континент'Москва'Менжинский","7МЕНЖИНСКИ","Седьмой Континент","Менжинский","Москва","Седьмой Континент'Москва"]
[null,null,null,null,null,null,null,null,null,null,"Седьмой Континент'Москва'Мироновская улица, 18","7МИРОНОВСК","Седьмой Континент","Мироновская улица, 18","Москва","Седьмой Континент'Москва"]
[null,null,null,null,null,null,null,null,null,null,"Седьмой Континент'Москва'Мичуринский пр-т, 3, 1","7МИЧУРИНСК","Седьмой Континент","Мичуринский пр-т, 3, 1","Москва","Седьмой Континент'Москва"]
[null,null,null,null,null,null,null,null,null,null,"Седьмой Континент'Москва'Можайское шоссе, 39","7МОЖАЙСКОЕ","Седьмой Континент","Можайское шоссе, 39","Москва","Седьмой Континент'Москва"]
[null,null,null,null,null,null,null,null,null,null,"Седьмой Континент'Москва'Мусы Джалиля улица, 6, 2","7МУСЫДЖАЛИ","Седьмой Континент","Мусы Джалиля улица, 6, 2","Москва","Седьмой Континент'Москва"]
[null,null,null,null,null,null,null,null,null,null,"Седьмой Континент'Москва'Наметкина улица, 3","7НАМЕТКИНА","Седьмой Континент","Наметкина улица, 3","Москва","Седьмой Континент'Москва"]
[null,null,null,null,null,null,null,null,null,null,"Седьмой Континент'Москва'Народного Ополчения улица, 24","7НАРОДНОГО","Седьмой Континент","Народного Ополчения улица, 24","Москва","Седьмой Континент'Москва"]
[null,null,null,null,null,null,null,null,null,null,"Седьмой Континент'Москва'Неверовского улица, 15","7НЕВЕРОВСК","Седьмой Континент","Неверовского улица, 15","Москва","Седьмой Континент'Москва"]
[null,null,null,null,null,null,null,null,null,null,"Седьмой Континент'Москва'Нижегородская улица, 34","7НИЖЕГОР","Седьмой Континент","Нижегородская улица, 34","Москва","Седьмой Континент'Москва"]
[null,null,null,null,null,null,null,null,null,null,"Седьмой Континент'Москва'Никитинская улица, 11","7НИКИТИНС","Седьмой Континент","Никитинская улица, 11","Москва",{"$f":"M566&\"'\"&O566","v":"Седьмой Континент'Москва"}]
[null,null,null,null,null,null,null,null,null,null,"Седьмой Континент'Москва'Новоксинская улица, 47","7НОВОСКСИН","Седьмой Континент","Новоксинская улица, 47","Москва","Седьмой Континент'Москва"]
[null,null,null,null,null,null,null,null,null,null,"Седьмой Континент'Москва'Новомарьинская улица, 14 /15","7НОВОМАРЬИ","Седьмой Континент","Новомарьинская улица, 14 /15","Москва","Седьмой Континент'Москва"]
[null,null,null,null,null,null,null,null,null,null,"Седьмой Континент'Москва'Новопеределкинская улица,16,1","7НОВОПЕРЕД","Седьмой Континент","Новопеределкинская улица,16,1","Москва","Седьмой Континент'Москва"]
[null,null,null,null,null,null,null,null,null,null,"Седьмой Континент'Москва'Новочеркасский бульвар,7","7НОВОЧЕРСК","Седьмой Континент","Новочеркасский бульвар,7","Москва","Седьмой Континент'Москва"]
[null,null,null,null,null,null,null,null,null,null,"Седьмой Континент'Москва'Окская улица,42/1,к.1","7ОКСКАЯ","Седьмой Континент","Окская улица,42/1,к.1","Москва","Седьмой Континент'Москва"]
[null,null,null,null,null,null,null,null,null,null,"Седьмой Континент'Москва'Олимпийский проспект, 30, 1","7ОЛИМПИЙСК","Седьмой Континент","Олимпийский проспект, 30, 1","Москва","Седьмой Континент'Москва"]
[null,null,null,null,null,null,null,null,null,null,"Седьмой Континент'Москва'Ореховый бульвар,22а","7ОРЕХОВЫЙБ","Седьмой Континент","Ореховый бульвар,22а","Москва","Седьмой Континент'Москва"]
[null,null,null,null,null,null,null,null,null,null,"Седьмой Континент'Москва'Осенний бульвар,8,к.1","7ОСЕННИЙБР","Седьмой Континент","Осенний бульвар,8,к.1","Москва","Седьмой Континент'Москва"]
[null,null,null,null,null,null,null,null,null,null,"Седьмой Континент'Москва'Паперника улица, 9","7ПАПЕРНИКА","Седьмой Континент","Паперника улица, 9","Москва","Седьмой Континент'Москва"]
[null,null,null,null,null,null,null,null,null,null,"Седьмой Континент'Москва'Первоская улица, 13, 1","7ПЕРОВСКАЯ","Седьмой Континент","Первоская улица, 13, 1","Москва","Седьмой Континент'Москва"]
[null,null,null,null,null,null,null,null,null,null,"Седьмой Континент'Москва'Перерва улица, 43, 1","7ПЕРЕРВА","Седьмой Континент","Перерва улица, 43, 1","Москва","Седьмой Континент'Москва"]
[null,null,null,null,null,null,null,null,null,null,"Седьмой Континент'Москва'Петровско-Разумовский пр.,д24,корп3","7ПЕТРРАЗУМ","Седьмой Континент","Петровско-Разумовский пр.,д24,корп3","Москва","Седьмой Континент'Москва"]
[null,null,null,null,null,null,null,null,null,null,"Седьмой Континент'Москва'Подольских Курсантов, 10","7КУРСАНТОВ","Седьмой Континент","Подольских Курсантов, 10","Москва","Седьмой Континент'Москва"]
[null,null,null,null,null,null,null,null,null,null,"Седьмой Континент'Москва'Пресненский Вал, 30, 1","7ПРЕСНЕНСК","Седьмой Континент","Пресненский Вал, 30, 1","Москва","Седьмой Континент'Москва"]
[null,null,null,null,null,null,null,null,null,null,"Седьмой Континент'Москва'Привольная улица, 3, 1","7КОНТИНПРИ","Седьмой Континент","Привольная улица, 3, 1","Москва","Седьмой Континент'Москва"]
[null,null,null,null,null,null,null,null,null,null,"Седьмой Континент'Москва'Профсоюзная улица, 98, 1","7ПРОФСОЮЗ","Седьмой Континент","Профсоюзная улица, 98, 1","Москва","Седьмой Континент'Москва"]
[null,null,null,null,null,null,null,null,null,null,"Седьмой Континент'Москва'Пырьева улица, 16","7ПЫРЬЕВА","Седьмой Континент","Пырьева улица, 16","Москва","Седьмой Континент'Москва"]
[null,null,null,null,null,null,null,null,null,null,"Седьмой Континент'Москва'Пятницкое шоссе, 27 , 1","7ПЯТНИЦШ27","Седьмой Континент","Пятницкое шоссе, 27 , 1","Москва","Седьмой Континент'Москва"]
[null,null,null,null,null,null,null,null,null,null,"Седьмой Континент'Москва'Пятницкое шоссе, 8","7ПЯТНИЦШ8","Седьмой Континент","Пятницкое шоссе, 8","Москва","Седьмой Континент'Москва"]
[null,null,null,null,null,null,null,null,null,null,"Седьмой Континент'Москва'Реутов,2-й км МКАД, 2","7РЕУТОВ2КМ","Седьмой Континент","Реутов,2-й км МКАД, 2","Москва","Седьмой Континент'Москва"]
[null,null,null,null,null,null,null,null,null,null,"Седьмой Континент'Москва'Рокотова улица, 5","7РОКОТОВА","Седьмой Континент","Рокотова улица, 5","Москва","Седьмой Континент'Москва"]
[null,null,null,null,null,null,null,null,null,null,"Седьмой Континент'Москва'Россошанская улица, 7, 1","7РОССОШАНС","Седьмой Континент","Россошанская улица, 7, 1","Москва","Седьмой Континент'Москва"]
[null,null,null,null,null,null,null,null,null,null,"Седьмой Континент'Москва'Рублевское шоссе, 52 а","7РУБЛЕВСКО","Седьмой Континент","Рублевское шоссе, 52 а","Москва","Седьмой Континент'Москва"]
[null,null,null,null,null,null,null,null,null,null,"Седьмой Континент'Москва'Рязанский проспект, 14, 2","7РЯЗАНСКИЙ","Седьмой Континент","Рязанский проспект, 14, 2","Москва","Седьмой Континент'Москва"]
[null,null,null,null,null,null,null,null,null,null,"Седьмой Континент'Москва'Савелкинский проезд, 8","7САВЕЛКИНС","Седьмой Континент","Савелкинский проезд, 8","Москва","Седьмой Континент'Москва"]
[null,null,null,null,null,null,null,null,null,null,"Седьмой Континент'Москва'Свободы улица, 44","7СВОБОДЫ","Седьмой Континент","Свободы улица, 44","Москва","Седьмой Континент'Москва"]
[null,null,null,null,null,null,null,null,null,null,"Седьмой Континент'Москва'Серафимовича улица, 2","7СЕРАФИМОВ","Седьмой Континент","Серафимовича улица, 2","Москва","Седьмой Континент'Москва"]
[null,null,null,null,null,null,null,null,null,null,"Седьмой Континент'Москва'Сервер Отдела Обучения","7СЕРВОТДОБ","Седьмой Континент","Сервер Отдела Обучения","Москва","Седьмой Континент'Москва"]
[null,null,null,null,null,null,null,null,null,null,"Седьмой Континент'Москва'Симоновский вал, 12, 2","7СИМОНОВСК","Седьмой Континент","Симоновский вал, 12, 2","Москва","Седьмой Континент'Москва"]
[null,null,null,null,null,null,null,null,null,null,"Седьмой Континент'Москва'Сиреневый б-р, 69, 1","7СИРЕНЕВЫЙ","Седьмой Континент","Сиреневый б-р, 69, 1","Москва","Седьмой Континент'Москва"]
[null,null,null,null,null,null,null,null,null,null,"Седьмой Континент'Москва'Сталеваров улица, 22, 1","7СТАЛЕВАР","Седьмой Континент","Сталеваров улица, 22, 1","Москва","Седьмой Континент'Москва"]
[null,null,null,null,null,null,null,null,null,null,"Седьмой Континент'Москва'Таллинская улица, 18","7ТАЛЛИНСКА","Седьмой Континент","Таллинская улица, 18","Москва","Седьмой Континент'Москва"]
[null,null,null,null,null,null,null,null,null,null,"Седьмой Континент'Москва'Удальцова улица,32,2","7УДАЛЬЦОВА","Седьмой Континент","Удальцова улица,32,2","Москва","Седьмой Континент'Москва"]
[null,null,null,null,null,null,null,null,null,null,"Седьмой Континент'Москва'ул. Миклухо-Маклая, 18, 1","7МИКЛУХО","Седьмой Континент","ул. Миклухо-Маклая, 18, 1","Москва","Седьмой Континент'Москва"]
[null,null,null,null,null,null,null,null,null,null,"Седьмой Континент'Москва'ул.Борисовские пруды,10,1","7БОРПРУД10","Седьмой Континент","ул.Борисовские пруды,10,1","Москва","Седьмой Континент'Москва"]
[null,null,null,null,null,null,null,null,null,null,"Седьмой Континент'Москва'ул.Борисовские пруды,14,5","7БОРПРУД14","Седьмой Континент","ул.Борисовские пруды,14,5","Москва","Седьмой Континент'Москва"]
[null,null,null,null,null,null,null,null,null,null,"Седьмой Континент'Москва'ул.Дубнинская,30,стр.1","7ДУБНИНС30","Седьмой Континент","ул.Дубнинская,30,стр.1","Москва","Седьмой Континент'Москва"]
[null,null,null,null,null,null,null,null,null,null,"Седьмой Континент'Москва'ул.Дубнинская,50","7ДУБНИНС50","Седьмой Континент","ул.Дубнинская,50","Москва","Седьмой Континент'Москва"]
[null,null,null,null,null,null,null,null,null,null,"Седьмой Континент'Москва'Уральская улица, 8","7УРАЛЬСКАЯ","Седьмой Континент","Уральская улица, 8","Москва","Седьмой Континент'Москва"]
[null,null,null,null,null,null,null,null,null,null,"Седьмой Континент'Москва'Ферганская улица, 21","7ФЕРГАНСКА","Седьмой Континент","Ферганская улица, 21","Москва","Седьмой Континент'Москва"]
[null,null,null,null,null,null,null,null,null,null,{"$f":"M607&\"'\"&O607&\"'\"&N607","v":"Седьмой Континент'Москва'Фестивальная улица, 8, 1"},"7ФЕСТИВАЛЬ","Седьмой Континент","Фестивальная улица, 8, 1","Москва","Седьмой Континент'Москва"]
[null,null,null,null,null,null,null,null,null,null,"Седьмой Континент'Москва'Хабаровская улица, 12 /23","7ХАБАРОВСК","Седьмой Континент","Хабаровская улица, 12 /23","Москва","Седьмой Континент'Москва"]
[null,null,null,null,null,null,null,null,null,null,"Седьмой Континент'Москва'Харьковская улица, 2","7ХАРЬК","Седьмой Континент","Харьковская улица, 2","Москва","Седьмой Континент'Москва"]
[null,null,null,null,null,null,null,null,null,null,"Седьмой Континент'Москва'Хорошевское шоссе, 52, 1","7ХОРОШЕСКО","Седьмой Континент","Хорошевское шоссе, 52, 1","Москва","Седьмой Континент'Москва"]
[null,null,null,null,null,null,null,null,null,null,"Седьмой Континент'Москва'Чапаевский переулок, 18 /1","7ЧАПАЕВСКИ","Седьмой Континент","Чапаевский переулок, 18 /1","Москва","Седьмой Континент'Москва"]
[null,null,null,null,null,null,null,null,null,null,"Седьмой Континент'Москва'Череповецкая улица, 4А","7ЧЕРЕПВОВ","Седьмой Континент","Череповецкая улица, 4А","Москва","Седьмой Континент'Москва"]
[null,null,null,null,null,null,null,null,null,null,"Седьмой Континент'Москва'Чертановская улица,45а","7ЧЕРТАНОВС","Седьмой Континент","Чертановская улица,45а","Москва","Седьмой Континент'Москва"]
[null,null,null,null,null,null,null,null,null,null,"Седьмой Континент'Москва'Чусовская улица, 8","7ЧУСОВСКАЯ","Седьмой Континент","Чусовская улица, 8","Москва","Седьмой Континент'Москва"]
[null,null,null,null,null,null,null,null,null,null,"Седьмой Континент'Москва'Щелковское ш., 8","7ЩЕЛКОВСКО","Седьмой Континент","Щелковское ш., 8","Москва","Седьмой Континент'Москва"]
[null,null,null,null,null,null,null,null,null,null,"Седьмой Континент'Москва'Элеваторная улица,12/1,1","7ЭЛЕВАТОРН","Седьмой Континент","Элеваторная улица,12/1,1","Москва","Седьмой Континент'Москва"]
[null,null,null,null,null,null,null,null,null,null,"Седьмой Континент'Москва'Юных Ленинцев улица,10/15,2","7ЛЕНИНЦЕВ","Седьмой Континент","Юных Ленинцев улица,10/15,2","Москва","Седьмой Континент'Москва"]
[null,null,null,null,null,null,null,null,null,null,"Седьмой Континент'Москва'Яна Райниса бульвар, 18 , 1","7РАЙНИСА","Седьмой Континент","Яна Райниса бульвар, 18 , 1","Москва","Седьмой Континент'Москва"]
[null,null,null,null,null,null,null,null,null,null,"Седьмой Континент'Москва'Ярославское шоссе, 115","7ЯРОСЛШ115","Седьмой Континент","Ярославское шоссе, 115","Москва","Седьмой Континент'Москва"]
[null,null,null,null,null,null,null,null,null,null,"Седьмой Континент'Москва'Ярославское шоссе, 54","7ЯРОСЛШ54","Седьмой Континент","Ярославское шоссе, 54","Москва","Седьмой Континент'Москва"]
[null,null,null,null,null,null,null,null,null,null,"Седьмой Континент'Московская обл.'Балашиха,м-н ЦОВБ,20","7БАЛАШИХА2","Седьмой Континент","Балашиха,м-н ЦОВБ,20","Московская обл.","Седьмой Континент'Московская обл."]
[null,null,null,null,null,null,null,null,null,null,"Седьмой Континент'Московская обл.'Балашиха,ш.Энтузиастов,1б","7БАЛАШИХА1","Седьмой Континент","Балашиха,ш.Энтузиастов,1б","Московская обл.","Седьмой Континент'Московская обл."]
[null,null,null,null,null,null,null,null,null,null,"Седьмой Континент'Московская обл.'ВОскресенск,Пл. Ленина,5","7ВОСКРСЕНС","Седьмой Континент","ВОскресенск,Пл. Ленина,5","Московская обл.","Седьмой Континент'Московская обл."]
[null,null,null,null,null,null,null,null,null,null,"Седьмой Континент'Московская обл.'Коломна,ул.Октябрьской Революции","7КОЛОМНА","Седьмой Континент","Коломна,ул.Октябрьской Революции","Московская обл.","Седьмой Континент'Московская обл."]
[null,null,null,null,null,null,null,null,null,null,"Седьмой Континент'Московская обл.'Кохомское шоссе, 5","7ИВАНОВО","Седьмой Континент","Кохомское шоссе, 5","Московская обл.","Седьмой Континент'Московская обл."]
[null,null,null,null,null,null,null,null,null,null,"Седьмой Континент'Московская обл.'Красногорский р-н,д.Путилково,д.16а","7ПУТИЛКОВО","Седьмой Континент","Красногорский р-н,д.Путилково,д.16а","Московская обл.","Седьмой Континент'Московская обл."]
[null,null,null,null,null,null,null,null,null,null,"Седьмой Континент'Московская обл.'Ленинский р-н,д.Говорово, стр20","7ГОВОРОВО","Седьмой Континент","Ленинский р-н,д.Говорово, стр20","Московская обл.","Седьмой Континент'Московская обл."]
[null,null,null,null,null,null,null,null,null,null,"Седьмой Континент'Московская обл.'Обнинск,пр-т Маркса,45,пом.1","7ОБНИНСК","Седьмой Континент","Обнинск,пр-т Маркса,45,пом.1","Московская обл.","Седьмой Континент'Московская обл."]
[null,null,null,null,null,null,null,null,null,null,"Седьмой Континент'Московская обл.'Пос.Горки-10, 23","7ГОРКИ","Седьмой Континент","Пос.Горки-10, 23","Московская обл.","Седьмой Континент'Московская обл."]
[null,null,null,null,null,null,null,null,null,null,"Седьмой Континент'Московская обл.'Электросталь,ул.Мира,22,02","7ЭЛЕКТРО","Седьмой Континент","Электросталь,ул.Мира,22,02","Московская обл.",{"$f":"M630&\"'\"&O630","v":"Седьмой Континент'Московская обл."}]
[null,null,null,null,null,null,null,null,null,null,"Седьмой Континент'Нижний Новгород'ул.Коминтерна,д.11","7НИЖНИЙНОВ","Седьмой Континент","ул.Коминтерна,д.11","Нижний Новгород","Седьмой Континент'Нижний Новгород"]
[null,null,null,null,null,null,null,null,null,null,"Седьмой Континент'Оренбург'ул. Новая,4, ТК\"Ликос\"","7ОРЕНБУРГ","Седьмой Континент","ул. Новая,4, ТК\"Ликос\"","Оренбург","Седьмой Континент'Оренбург"]
[null,null,null,null,null,null,null,null,null,null,"Седьмой Континент'Пермь'ул.Героев Хасана, 105","7ПЕРМЬ","Седьмой Континент","ул.Героев Хасана, 105","Пермь","Седьмой Континент'Пермь"]
[null,null,null,null,null,null,null,null,null,null,"Седьмой Континент'Ростов-на-Дону'пр.М.Нагибина д.17","7РОСТОВ","Седьмой Континент","пр.М.Нагибина д.17","Ростов-на-Дону","Седьмой Континент'Ростов-на-Дону"]
[null,null,null,null,null,null,null,null,null,null,"Седьмой Континент'Рязань'Солотчинское ш., 11","7РЯЗАНЬ2","Седьмой Континент","Солотчинское ш., 11","Рязань","Седьмой Континент'Рязань"]
[null,null,null,null,null,null,null,null,null,null,"Седьмой Континент'Рязань'ул. Есенина, 2 Е","7РЯЗАНЬ1","Седьмой Континент","ул. Есенина, 2 Е","Рязань","Седьмой Континент'Рязань"]
[null,null,null,null,null,null,null,null,null,null,"Седьмой Континент'Санкт-Петербург'пр. Энгельса,154","7КОНТИНЕНТ","Седьмой Континент","пр. Энгельса,154","Санкт-Петербург","Седьмой Континент'Санкт-Петербург"]
[null,null,null,null,null,null,null,null,null,null,"Седьмой Континент'Уфа'Менделеева улица,137А","7УФА","Седьмой Континент","Менделеева улица,137А","Уфа","Седьмой Континент'Уфа"]
[null,null,null,null,null,null,null,null,null,null,"Седьмой Континент'Челябинск'Артиллерийская улица, 136","7ЧЕЛЯБИНСК","Седьмой Континент","Артиллерийская улица, 136","Челябинск","Седьмой Континент'Челябинск"]
[null,null,null,null,null,null,null,null,null,null,"Седьмой Континент'Ярославль'Московский пр-т, 108","7ЯРОСЛАВЛЬ","Седьмой Континент","Московский пр-т, 108","Ярославль","Седьмой Континент'Ярославль"]
[null,null,null,null,null,null,null,null,null,null,"Сити Строй'Екатеринбург'дублер Сибирского Тракта, 6","СИТИСТРОЙЕ","Сити Строй","дублер Сибирского Тракта, 6","Екатеринбург","Сити Строй'Екатеринбург"]
[null,null,null,null,null,null,null,null,null,null,"Сити Строй'Екатеринбург'проезд Промышленный,д.13","СИТИСТрОЙ","Сити Строй","проезд Промышленный,д.13","Екатеринбург","Сити Строй'Екатеринбург"]
[null,null,null,null,null,null,null,null,null,null,"Сити Строй'Екатеринбург'ул.Победы д.63","СИТИСТРОЙ","Сити Строй","ул.Победы д.63","Екатеринбург","Сити Строй'Екатеринбург"]
[null,null,null,null,null,null,null,null,null,null,"Сити Строй'Екатеринбург'ул.Черкасская д.25","СИТИ-СТРОЙ","Сити Строй","ул.Черкасская д.25","Екатеринбург","Сити Строй'Екатеринбург"]
[null,null,null,null,null,null,null,null,null,null,"Сити центр'Санкт-Петербург'Петроградская наб. 18 -А","СИТИЦЕНТР","Сити центр","Петроградская наб. 18 -А","Санкт-Петербург","Сити центр'Санкт-Петербург"]
[null,null,null,null,null,null,null,null,null,null,"Сладкая Жизнь'Нижний Новгород'д.Опалиха, Кстовский индустриальный парк, ком.1","СЛАДКАЯЖИО","Сладкая Жизнь","д.Опалиха, Кстовский индустриальный парк, ком.1","Нижний Новгород","Сладкая Жизнь'Нижний Новгород"]
[null,null,null,null,null,null,null,null,null,null,"СтройАрсенал'Екатеринбург'дублер Сибирского Тракта, 6","СТРОЙАРС2","СтройАрсенал","дублер Сибирского Тракта, 6","Екатеринбург","СтройАрсенал'Екатеринбург"]
[null,null,null,null,null,null,null,null,null,null,"СтройАрсенал'Екатеринбург'Металлургов, д.84","СТРОЙАРС1","СтройАрсенал","Металлургов, д.84","Екатеринбург","СтройАрсенал'Екатеринбург"]
[null,null,null,null,null,null,null,null,null,null,"СуперСтройУфа'Екатеринбург'проезд Промышленный,д.13","СУПСТРОУФА","СуперСтройУфа","проезд Промышленный,д.13","Екатеринбург","СуперСтройУфа'Екатеринбург"]
[null,null,null,null,null,null,null,null,null,null,"СуперСтройУфа'Уфа'Комсомольская, д.2","СУПСТРУФА","СуперСтройУфа","Комсомольская, д.2","Уфа","СуперСтройУфа'Уфа"]
[null,null,null,null,null,null,null,null,null,null,"СуперСтройУфа'Уфа'Уфимское шоссе, д.34","СУПЕРСТРУФ","СуперСтройУфа","Уфимское шоссе, д.34","Уфа","СуперСтройУфа'Уфа"]
[null,null,null,null,null,null,null,null,null,null,"Урал трейд'Верхняя Пышма'п.Залесье, ул.Индустриальная,д.1","УРАЛТРЕЙД","Урал трейд","п.Залесье, ул.Индустриальная,д.1","Верхняя Пышма","Урал трейд'Верхняя Пышма"]
[null,null,null,null,null,null,null,null,null,null,"Холидей'Новосибирск'с.Толмачево, о.п. 3307, д.16, лит.А1","ХОЛИДЕЙ1","Холидей","с.Толмачево, о.п. 3307, д.16, лит.А1","Новосибирск","Холидей'Новосибирск"]
[null,null,null,null,null,null,null,null,null,null,"Элемент Трейд'Екатеринбург'Новосвердловская ТЭЦ, Промзона","ЭЛЕМЕНТТРТ","Элемент Трейд","Новосвердловская ТЭЦ, Промзона","Екатеринбург","Элемент Трейд'Екатеринбург"]
[null,null,null,null,null,null,null,null,null,null,"Юг Трейд'Ростов-на-Дону'ул. Орская, д. 31 В","ЮГТРЕЙД","Юг Трейд","ул. Орская, д. 31 В","Ростов-на-Дону","Юг Трейд'Ростов-на-Дону"]
[null,null,null,null,null,null,null,null,null,null,"Юнилэнд'Екатеринбург'Космонавтов 104","ЮНИЛЭНД-3","Юнилэнд","Космонавтов 104","Екатеринбург","Юнилэнд'Екатеринбург"]
[null,null,null,null,null,null,null,null,null,null,"Юнилэнд'Екатеринбург'Красных Командиров д.19","ЮНИЛЭНД-4","Юнилэнд","Красных Командиров д.19","Екатеринбург","Юнилэнд'Екатеринбург"]
[null,null,null,null,null,null,null,null,null,null,"Юнилэнд'Екатеринбург'Серафимы Дерябиной д.24","ЮНИЛЭНД-6","Юнилэнд","Серафимы Дерябиной д.24","Екатеринбург","Юнилэнд'Екатеринбург"]
[null,null,null,null,null,null,null,null,null,null,"Юнилэнд'Екатеринбург'Совхозная 18","ЮНИЛЭНД-2","Юнилэнд","Совхозная 18","Екатеринбург","Юнилэнд'Екатеринбург"]
[null,null,null,null,null,null,null,null,null,null,"Юнилэнд'Екатеринбург'ул.Айвазовского 53","ЮНИЛЭНД-1","Юнилэнд","ул.Айвазовского 53","Екатеринбург","Юнилэнд'Екатеринбург"]
[null,null,null,null,null,null,null,null,null,null,"Юнилэнд'Екатеринбург'ул.Токарей д.52","ЮНИЛЭНД-13","Юнилэнд","ул.Токарей д.52","Екатеринбург","Юнилэнд'Екатеринбург"]
[null,null,null,null,null,null,null,null,null,null,"Юнилэнд'Екатеринбург'ул.Черепанова д.12 а","ЮНИЛЭНД-8","Юнилэнд","ул.Черепанова д.12 а","Екатеринбург","Юнилэнд'Екатеринбург"]
[null,null,null,null,null,null,null,null,null,null,"Юнилэнд'Екатеринбург'ул.Ясная д.2","ЮНИЛЭНД-9","Юнилэнд","ул.Ясная д.2","Екатеринбург","Юнилэнд'Екатеринбург"]
[null,null,null,null,null,null,null,null,null,null,"Юнилэнд'Екатеринбург'Фронтовых Бригад д.27","ЮНИЛЭНД-5","Юнилэнд","Фронтовых Бригад д.27","Екатеринбург","Юнилэнд'Екатеринбург"]
[null,null,null,null,null,null,null,null,null,null,"Юнилэнд'Екатеринбург'Фурмонова д.37","ЮНИЛЭНД-7","Юнилэнд","Фурмонова д.37","Екатеринбург","Юнилэнд'Екатеринбург"]
[null,null,null,null,null,null,null,null,null,null,"Юнилэнд'Каменск-Уральский'пр.Победы д.33","ЮНИЛЭНД-К","Юнилэнд","пр.Победы д.33","Каменск-Уральский","Юнилэнд'Каменск-Уральский"]
[null,null,null,null,null,null,null,null,null,null,"Юнилэнд'Москва'Перовское ш.,д.45","ЮНИЛЭНД","Юнилэнд","Перовское ш.,д.45","Москва","Юнилэнд'Москва"]
[null,null,null,null,null,null,null,null,null,null,"Юнилэнд'Нижний Тагил'пр.Ленинградский д.28","ЮНИЛЭНД-Л","Юнилэнд","пр.Ленинградский д.28","Нижний Тагил","Юнилэнд'Нижний Тагил"]
[null,null,null,null,null,null,null,null,null,null,"Юнилэнд'Нижний Тагил'пр.Уральский д.58 а","ЮНИЛЭНД-УР","Юнилэнд","пр.Уральский д.58 а","Нижний Тагил","Юнилэнд'Нижний Тагил"]
[null,null,null,null,null,null,null,null,null,null,"Юнилэнд'Нижний Тагил'ул.Красноармейская д.82","ЮНИЛЭНД-КР","Юнилэнд","ул.Красноармейская д.82","Нижний Тагил","Юнилэнд'Нижний Тагил"]
[null,null,null,null,null,null,null,null,null,null,{"$f":"M671&\"'\"&O671&\"'\"&N671","v":"Юнилэнд'Нижний Тагил'ул.Фрунзе д.13"},"ЮНИЛЭНД-ФР","Юнилэнд","ул.Фрунзе д.13","Нижний Тагил","Юнилэнд'Нижний Тагил"]
[null,null,null,null,null,null,null,null,null,null,"Юнилэнд'Нижний Тагил'Черноисточинское шоссе д.49","ЮНИЛЭНД-Ч","Юнилэнд","Черноисточинское шоссе д.49","Нижний Тагил","Юнилэнд'Нижний Тагил"]
[null,null,null,null,null,null,null,null,null,null,"Юнилэнд'Новоуральск'ул.Корнилова д.11","ЮНИЛЭНД-Н","Юнилэнд","ул.Корнилова д.11","Новоуральск","Юнилэнд'Новоуральск"]
[null,null,null,null,null,null,null,null,null,null,"Юнилэнд'Новоуральск'ул.Окрябрьская д.6б","ЮНИЛЭНД-НО","Юнилэнд","ул.Окрябрьская д.6б","Новоуральск","Юнилэнд'Новоуральск"]
[null,null,null,null,null,null,null,null,null,null,"Юнилэнд'Сысерть'ул.Трактовая д.21","ЮНИЛЭНД-С","Юнилэнд","ул.Трактовая д.21","Сысерть","Юнилэнд'Сысерть"]
[null,null,null,null,null,null,null,null,null,null,"Юнилэнд'Тюменская обл.'д.Матмассы,ул.Строителей,д.19,стр.6","ЮНИЛЭНД-Т","Юнилэнд","д.Матмассы,ул.Строителей,д.19,стр.6","Тюменская обл.","Юнилэнд'Тюменская обл."]
[null,null,null,null,null,null,null,null,null,null,"Юнилэнд'Тюмень'ул.50 Лет ВЛКСМ д.63","ЮНИЛЭН-50Л","Юнилэнд","ул.50 Лет ВЛКСМ д.63","Тюмень","Юнилэнд'Тюмень"]
[null,null,null,null,null,null,null,null,null,null,"Юнилэнд'Тюмень'ул.Логунова д.5а","ЮНИЛЭН-ЛОГ","Юнилэнд","ул.Логунова д.5а","Тюмень","Юнилэнд'Тюмень"]
[null,null,null,null,null,null,null,null,null,null,"Юнилэнд'Тюмень'ул.Розы Трениной д.3","ЮНИЛЭН-РОЗ","Юнилэнд","ул.Розы Трениной д.3","Тюмень","Юнилэнд'Тюмень"]
[null,null,null,null,null,null,null,null,null,null,"Юнилэнд'Челябинск'ул.Молдавская д.16","ЮНИЛЭНД-ЧЕ","Юнилэнд","ул.Молдавская д.16","Челябинск","Юнилэнд'Челябинск"]
[null,null,null,null,null,null,null,null,null,null,"Юнилэнд'Челябинск'ул.Черкасская д.15","ЮНИЛЭН-ЧЕЛ","Юнилэнд","ул.Черкасская д.15","Челябинск","Юнилэнд'Челябинск"]

{"sheet":"печатная_форма","index":1,"n_rows":44,"n_cols":11,"rows_kept":44,"cut":false,"hidden":false,"merged":[[8,0,8,10],[41,7,41,8],[5,0,5,3],[5,4,5,10],[6,0,6,3],[6,4,6,10],[7,0,7,3],[7,4,7,10],[4,0,4,3],[4,4,4,10],[0,0,0,10],[1,0,1,10],[2,0,2,10],[3,0,3,3],[3,4,3,10]]}
["Заявка на доставку груза"]
[]
[]
["Заказчик (наименование):"]
["Номер Заказчика в системе Грузополучателя \n(номер поставщика):"]
["Заказчик (ФИО, контактный телефон):"]
["Дата заявки:",null,null,null,{"$f":"Input!C9","v":"00:00:00"}]
["Склад ФМ Ложистик:",null,null,null,"ФМ СИДОРОВО"]
[]
["Номер доставки","Сеть","Город грузополучателя","Адрес грузополучателя","Дата приемки Грузополучателем\n","Время приемки Грузополучателем\n","№ Заказа Грузополучателя","Вес отправки (брутто)","Кол-во паллет","Дата привоза на ФМ Ложистик","Комментарий по заявке"]
[1,{"$f":"IF('Order Input'!L5=0,\"\",VLOOKUP('Order Input'!L5,Input!$L$25:$M$1010,2,FALSE))","v":""},{"$f":"IF(ISERROR(VLOOKUP('Order Input'!H5,Input!$L$25:$Q$1012,4,FALSE)),\"\",VLOOKUP('Order Input'!H5,Input!$L$25:$Q$1012,4,FALSE))","v":""},{"$f":"IF(ISERROR(VLOOKUP('Order Input'!H5,Input!$L$25:$Q$1012,3,FALSE)),\"\",VLOOKUP('Order Input'!H5,Input!$L$25:$Q$1012,3,FALSE))","v":""},{"$f":"IF(B11<>\"\",'Order Input'!I5,\"\")","v":""},{"$f":"IF($B11<>\"\",'Order Input'!J5,\"\")","v":""},{"$f":"IF($B11<>\"\",'Order Input'!O5,\"\")","v":""},{"$f":"IF($B11<>\"\",'Order Input'!P5,\"\")","v":""},{"$f":"IF($B11<>\"\",'Order Input'!R5,\"\")","v":""},{"$f":"IF($B11<>\"\",'Order Input'!V5,\"\")","v":""},{"$f":"IF($B11<>\"\",'Order Input'!S5,\"\")","v":""}]
[2,{"$f":"IF('Order Input'!L6=0,\"\",VLOOKUP('Order Input'!L6,Input!$L$25:$M$1010,2,FALSE))","v":""},{"$f":"IF(ISERROR(VLOOKUP('Order Input'!H6,Input!$L$25:$Q$1012,4,FALSE)),\"\",VLOOKUP('Order Input'!H6,Input!$L$25:$Q$1012,4,FALSE))","v":""},{"$f":"IF(ISERROR(VLOOKUP('Order Input'!H6,Input!$L$25:$Q$1012,3,FALSE)),\"\",VLOOKUP('Order Input'!H6,Input!$L$25:$Q$1012,3,FALSE))","v":""},{"$f":"IF(B12<>\"\",'Order Input'!I6,\"\")","v":""},{"$f":"IF($B12<>\"\",'Order Input'!J6,\"\")","v":""},{"$f":"IF($B12<>\"\",'Order Input'!O6,\"\")","v":""},{"$f":"IF($B12<>\"\",'Order Input'!P6,\"\")","v":""},{"$f":"IF($B12<>\"\",'Order Input'!R6,\"\")","v":""},{"$f":"IF($B12<>\"\",'Order Input'!V6,\"\")","v":""},{"$f":"IF($B12<>\"\",'Order Input'!S6,\"\")","v":""}]
[3,{"$f":"IF('Order Input'!L7=0,\"\",VLOOKUP('Order Input'!L7,Input!$L$25:$M$1010,2,FALSE))","v":""},{"$f":"IF(ISERROR(VLOOKUP('Order Input'!H7,Input!$L$25:$Q$1012,4,FALSE)),\"\",VLOOKUP('Order Input'!H7,Input!$L$25:$Q$1012,4,FALSE))","v":""},{"$f":"IF(ISERROR(VLOOKUP('Order Input'!H7,Input!$L$25:$Q$1012,3,FALSE)),\"\",VLOOKUP('Order Input'!H7,Input!$L$25:$Q$1012,3,FALSE))","v":""},{"$f":"IF(B13<>\"\",'Order Input'!I7,\"\")","v":""},{"$f":"IF($B13<>\"\",'Order Input'!J7,\"\")","v":""},{"$f":"IF($B13<>\"\",'Order Input'!O7,\"\")","v":""},{"$f":"IF($B13<>\"\",'Order Input'!P7,\"\")","v":""},{"$f":"IF($B13<>\"\",'Order Input'!R7,\"\")","v":""},{"$f":"IF($B13<>\"\",'Order Input'!V7,\"\")","v":""},{"$f":"IF($B13<>\"\",'Order Input'!S7,\"\")","v":""}]
[4,{"$f":"IF('Order Input'!L8=0,\"\",VLOOKUP('Order Input'!L8,Input!$L$25:$M$1010,2,FALSE))","v":""},{"$f":"IF(ISERROR(VLOOKUP('Order Input'!H8,Input!$L$25:$Q$1012,4,FALSE)),\"\",VLOOKUP('Order Input'!H8,Input!$L$25:$Q$1012,4,FALSE))","v":""},{"$f":"IF(ISERROR(VLOOKUP('Order Input'!H8,Input!$L$25:$Q$1012,3,FALSE)),\"\",VLOOKUP('Order Input'!H8,Input!$L$25:$Q$1012,3,FALSE))","v":""},{"$f":"IF(B14<>\"\",'Order Input'!I8,\"\")","v":""},{"$f":"IF($B14<>\"\",'Order Input'!J8,\"\")","v":""},{"$f":"IF($B14<>\"\",'Order Input'!O8,\"\")","v":""},{"$f":"IF($B14<>\"\",'Order Input'!P8,\"\")","v":""},{"$f":"IF($B14<>\"\",'Order Input'!R8,\"\")","v":""},{"$f":"IF($B14<>\"\",'Order Input'!V8,\"\")","v":""},{"$f":"IF($B14<>\"\",'Order Input'!S8,\"\")","v":""}]
[5,{"$f":"IF('Order Input'!L9=0,\"\",VLOOKUP('Order Input'!L9,Input!$L$25:$M$1010,2,FALSE))","v":""},{"$f":"IF(ISERROR(VLOOKUP('Order Input'!H9,Input!$L$25:$Q$1012,4,FALSE)),\"\",VLOOKUP('Order Input'!H9,Input!$L$25:$Q$1012,4,FALSE))","v":""},{"$f":"IF(ISERROR(VLOOKUP('Order Input'!H9,Input!$L$25:$Q$1012,3,FALSE)),\"\",VLOOKUP('Order Input'!H9,Input!$L$25:$Q$1012,3,FALSE))","v":""},{"$f":"IF(B15<>\"\",'Order Input'!I9,\"\")","v":""},{"$f":"IF($B15<>\"\",'Order Input'!J9,\"\")","v":""},{"$f":"IF($B15<>\"\",'Order Input'!O9,\"\")","v":""},{"$f":"IF($B15<>\"\",'Order Input'!P9,\"\")","v":""},{"$f":"IF($B15<>\"\",'Order Input'!R9,\"\")","v":""},{"$f":"IF($B15<>\"\",'Order Input'!V9,\"\")","v":""},{"$f":"IF($B15<>\"\",'Order Input'!S9,\"\")","v":""}]
[6,{"$f":"IF('Order Input'!L10=0,\"\",VLOOKUP('Order Input'!L10,Input!$L$25:$M$1010,2,FALSE))","v":""},{"$f":"IF(ISERROR(VLOOKUP('Order Input'!H10,Input!$L$25:$Q$1012,4,FALSE)),\"\",VLOOKUP('Order Input'!H10,Input!$L$25:$Q$1012,4,FALSE))","v":""},{"$f":"IF(ISERROR(VLOOKUP('Order Input'!H10,Input!$L$25:$Q$1012,3,FALSE)),\"\",VLOOKUP('Order Input'!H10,Input!$L$25:$Q$1012,3,FALSE))","v":""},{"$f":"IF(B16<>\"\",'Order Input'!I10,\"\")","v":""},{"$f":"IF($B16<>\"\",'Order Input'!J10,\"\")","v":""},{"$f":"IF($B16<>\"\",'Order Input'!O10,\"\")","v":""},{"$f":"IF($B16<>\"\",'Order Input'!P10,\"\")","v":""},{"$f":"IF($B16<>\"\",'Order Input'!R10,\"\")","v":""},{"$f":"IF($B16<>\"\",'Order Input'!V10,\"\")","v":""},{"$f":"IF($B16<>\"\",'Order Input'!S10,\"\")","v":""}]
[7,{"$f":"IF('Order Input'!L11=0,\"\",VLOOKUP('Order Input'!L11,Input!$L$25:$M$1010,2,FALSE))","v":""},{"$f":"IF(ISERROR(VLOOKUP('Order Input'!H11,Input!$L$25:$Q$1012,4,FALSE)),\"\",VLOOKUP('Order Input'!H11,Input!$L$25:$Q$1012,4,FALSE))","v":""},{"$f":"IF(ISERROR(VLOOKUP('Order Input'!H11,Input!$L$25:$Q$1012,3,FALSE)),\"\",VLOOKUP('Order Input'!H11,Input!$L$25:$Q$1012,3,FALSE))","v":""},{"$f":"IF(B17<>\"\",'Order Input'!I11,\"\")","v":""},{"$f":"IF($B17<>\"\",'Order Input'!J11,\"\")","v":""},{"$f":"IF($B17<>\"\",'Order Input'!O11,\"\")","v":""},{"$f":"IF($B17<>\"\",'Order Input'!P11,\"\")","v":""},{"$f":"IF($B17<>\"\",'Order Input'!R11,\"\")","v":""},{"$f":"IF($B17<>\"\",'Order Input'!V11,\"\")","v":""},{"$f":"IF($B17<>\"\",'Order Input'!S11,\"\")","v":""}]
[8,{"$f":"IF('Order Input'!L12=0,\"\",VLOOKUP('Order Input'!L12,Input!$L$25:$M$1010,2,FALSE))","v":""},{"$f":"IF(ISERROR(VLOOKUP('Order Input'!H12,Input!$L$25:$Q$1012,4,FALSE)),\"\",VLOOKUP('Order Input'!H12,Input!$L$25:$Q$1012,4,FALSE))","v":""},{"$f":"IF(ISERROR(VLOOKUP('Order Input'!H12,Input!$L$25:$Q$1012,3,FALSE)),\"\",VLOOKUP('Order Input'!H12,Input!$L$25:$Q$1012,3,FALSE))","v":""},{"$f":"IF(B18<>\"\",'Order Input'!I12,\"\")","v":""},{"$f":"IF($B18<>\"\",'Order Input'!J12,\"\")","v":""},{"$f":"IF($B18<>\"\",'Order Input'!O12,\"\")","v":""},{"$f":"IF($B18<>\"\",'Order Input'!P12,\"\")","v":""},{"$f":"IF($B18<>\"\",'Order Input'!R12,\"\")","v":""},{"$f":"IF($B18<>\"\",'Order Input'!V12,\"\")","v":""},{"$f":"IF($B18<>\"\",'Order Input'!S12,\"\")","v":""}]
[9,{"$f":"IF('Order Input'!L13=0,\"\",VLOOKUP('Order Input'!L13,Input!$L$25:$M$1010,2,FALSE))","v":""},{"$f":"IF(ISERROR(VLOOKUP('Order Input'!H13,Input!$L$25:$Q$1012,4,FALSE)),\"\",VLOOKUP('Order Input'!H13,Input!$L$25:$Q$1012,4,FALSE))","v":""},{"$f":"IF(ISERROR(VLOOKUP('Order Input'!H13,Input!$L$25:$Q$1012,3,FALSE)),\"\",VLOOKUP('Order Input'!H13,Input!$L$25:$Q$1012,3,FALSE))","v":""},{"$f":"IF(B19<>\"\",'Order Input'!I13,\"\")","v":""},{"$f":"IF($B19<>\"\",'Order Input'!J13,\"\")","v":""},{"$f":"IF($B19<>\"\",'Order Input'!O13,\"\")","v":""},{"$f":"IF($B19<>\"\",'Order Input'!P13,\"\")","v":""},{"$f":"IF($B19<>\"\",'Order Input'!R13,\"\")","v":""},{"$f":"IF($B19<>\"\",'Order Input'!V13,\"\")","v":""},{"$f":"IF($B19<>\"\",'Order Input'!S13,\"\")","v":""}]
[10,{"$f":"IF('Order Input'!L14=0,\"\",VLOOKUP('Order Input'!L14,Input!$L$25:$M$1010,2,FALSE))","v":""},{"$f":"IF(ISERROR(VLOOKUP('Order Input'!H14,Input!$L$25:$Q$1012,4,FALSE)),\"\",VLOOKUP('Order Input'!H14,Input!$L$25:$Q$1012,4,FALSE))","v":""},{"$f":"IF(ISERROR(VLOOKUP('Order Input'!H14,Input!$L$25:$Q$1012,3,FALSE)),\"\",VLOOKUP('Order Input'!H14,Input!$L$25:$Q$1012,3,FALSE))","v":""},{"$f":"IF(B20<>\"\",'Order Input'!I14,\"\")","v":""},{"$f":"IF($B20<>\"\",'Order Input'!J14,\"\")","v":""},{"$f":"IF($B20<>\"\",'Order Input'!O14,\"\")","v":""},{"$f":"IF($B20<>\"\",'Order Input'!P14,\"\")","v":""},{"$f":"IF($B20<>\"\",'Order Input'!R14,\"\")","v":""},{"$f":"IF($B20<>\"\",'Order Input'!V14,\"\")","v":""},{"$f":"IF($B20<>\"\",'Order Input'!S14,\"\")","v":""}]
[11,{"$f":"IF('Order Input'!L15=0,\"\",VLOOKUP('Order Input'!L15,Input!$L$25:$M$1010,2,FALSE))","v":""},{"$f":"IF(ISERROR(VLOOKUP('Order Input'!H15,Input!$L$25:$Q$1012,4,FALSE)),\"\",VLOOKUP('Order Input'!H15,Input!$L$25:$Q$1012,4,FALSE))","v":""},{"$f":"IF(ISERROR(VLOOKUP('Order Input'!H15,Input!$L$25:$Q$1012,3,FALSE)),\"\",VLOOKUP('Order Input'!H15,Input!$L$25:$Q$1012,3,FALSE))","v":""},{"$f":"IF(B21<>\"\",'Order Input'!I15,\"\")","v":""},{"$f":"IF($B21<>\"\",'Order Input'!J15,\"\")","v":""},{"$f":"IF($B21<>\"\",'Order Input'!O15,\"\")","v":""},{"$f":"IF($B21<>\"\",'Order Input'!P15,\"\")","v":""},{"$f":"IF($B21<>\"\",'Order Input'!R15,\"\")","v":""},{"$f":"IF($B21<>\"\",'Order Input'!V15,\"\")","v":""},{"$f":"IF($B21<>\"\",'Order Input'!S15,\"\")","v":""}]
[12,{"$f":"IF('Order Input'!L16=0,\"\",VLOOKUP('Order Input'!L16,Input!$L$25:$M$1010,2,FALSE))","v":""},{"$f":"IF(ISERROR(VLOOKUP('Order Input'!H16,Input!$L$25:$Q$1012,4,FALSE)),\"\",VLOOKUP('Order Input'!H16,Input!$L$25:$Q$1012,4,FALSE))","v":""},{"$f":"IF(ISERROR(VLOOKUP('Order Input'!H16,Input!$L$25:$Q$1012,3,FALSE)),\"\",VLOOKUP('Order Input'!H16,Input!$L$25:$Q$1012,3,FALSE))","v":""},{"$f":"IF(B22<>\"\",'Order Input'!I16,\"\")","v":""},{"$f":"IF($B22<>\"\",'Order Input'!J16,\"\")","v":""},{"$f":"IF($B22<>\"\",'Order Input'!O16,\"\")","v":""},{"$f":"IF($B22<>\"\",'Order Input'!P16,\"\")","v":""},{"$f":"IF($B22<>\"\",'Order Input'!R16,\"\")","v":""},{"$f":"IF($B22<>\"\",'Order Input'!V16,\"\")","v":""},{"$f":"IF($B22<>\"\",'Order Input'!S16,\"\")","v":""}]
[13,{"$f":"IF('Order Input'!L17=0,\"\",VLOOKUP('Order Input'!L17,Input!$L$25:$M$1010,2,FALSE))","v":""},{"$f":"IF(ISERROR(VLOOKUP('Order Input'!H17,Input!$L$25:$Q$1012,4,FALSE)),\"\",VLOOKUP('Order Input'!H17,Input!$L$25:$Q$1012,4,FALSE))","v":""},{"$f":"IF(ISERROR(VLOOKUP('Order Input'!H17,Input!$L$25:$Q$1012,3,FALSE)),\"\",VLOOKUP('Order Input'!H17,Input!$L$25:$Q$1012,3,FALSE))","v":""},{"$f":"IF(B23<>\"\",'Order Input'!I17,\"\")","v":""},{"$f":"IF($B23<>\"\",'Order Input'!J17,\"\")","v":""},{"$f":"IF($B23<>\"\",'Order Input'!O17,\"\")","v":""},{"$f":"IF($B23<>\"\",'Order Input'!P17,\"\")","v":""},{"$f":"IF($B23<>\"\",'Order Input'!R17,\"\")","v":""},{"$f":"IF($B23<>\"\",'Order Input'!V17,\"\")","v":""},{"$f":"IF($B23<>\"\",'Order Input'!S17,\"\")","v":""}]
[14,{"$f":"IF('Order Input'!L18=0,\"\",VLOOKUP('Order Input'!L18,Input!$L$25:$M$1010,2,FALSE))","v":""},{"$f":"IF(ISERROR(VLOOKUP('Order Input'!H18,Input!$L$25:$Q$1012,4,FALSE)),\"\",VLOOKUP('Order Input'!H18,Input!$L$25:$Q$1012,4,FALSE))","v":""},{"$f":"IF(ISERROR(VLOOKUP('Order Input'!H18,Input!$L$25:$Q$1012,3,FALSE)),\"\",VLOOKUP('Order Input'!H18,Input!$L$25:$Q$1012,3,FALSE))","v":""},{"$f":"IF(B24<>\"\",'Order Input'!I18,\"\")","v":""},{"$f":"IF($B24<>\"\",'Order Input'!J18,\"\")","v":""},{"$f":"IF($B24<>\"\",'Order Input'!O18,\"\")","v":""},{"$f":"IF($B24<>\"\",'Order Input'!P18,\"\")","v":""},{"$f":"IF($B24<>\"\",'Order Input'!R18,\"\")","v":""},{"$f":"IF($B24<>\"\",'Order Input'!V18,\"\")","v":""},{"$f":"IF($B24<>\"\",'Order Input'!S18,\"\")","v":""}]
[15,{"$f":"IF('Order Input'!L19=0,\"\",VLOOKUP('Order Input'!L19,Input!$L$25:$M$1010,2,FALSE))","v":""},{"$f":"IF(ISERROR(VLOOKUP('Order Input'!H19,Input!$L$25:$Q$1012,4,FALSE)),\"\",VLOOKUP('Order Input'!H19,Input!$L$25:$Q$1012,4,FALSE))","v":""},{"$f":"IF(ISERROR(VLOOKUP('Order Input'!H19,Input!$L$25:$Q$1012,3,FALSE)),\"\",VLOOKUP('Order Input'!H19,Input!$L$25:$Q$1012,3,FALSE))","v":""},{"$f":"IF(B25<>\"\",'Order Input'!I19,\"\")","v":""},{"$f":"IF($B25<>\"\",'Order Input'!J19,\"\")","v":""},{"$f":"IF($B25<>\"\",'Order Input'!O19,\"\")","v":""},{"$f":"IF($B25<>\"\",'Order Input'!P19,\"\")","v":""},{"$f":"IF($B25<>\"\",'Order Input'!R19,\"\")","v":""},{"$f":"IF($B25<>\"\",'Order Input'!V19,\"\")","v":""},{"$f":"IF($B25<>\"\",'Order Input'!S19,\"\")","v":""}]
[16,{"$f":"IF('Order Input'!L20=0,\"\",VLOOKUP('Order Input'!L20,Input!$L$25:$M$1010,2,FALSE))","v":""},{"$f":"IF(ISERROR(VLOOKUP('Order Input'!H20,Input!$L$25:$Q$1012,4,FALSE)),\"\",VLOOKUP('Order Input'!H20,Input!$L$25:$Q$1012,4,FALSE))","v":""},{"$f":"IF(ISERROR(VLOOKUP('Order Input'!H20,Input!$L$25:$Q$1012,3,FALSE)),\"\",VLOOKUP('Order Input'!H20,Input!$L$25:$Q$1012,3,FALSE))","v":""},{"$f":"IF(B26<>\"\",'Order Input'!I20,\"\")","v":""},{"$f":"IF($B26<>\"\",'Order Input'!J20,\"\")","v":""},{"$f":"IF($B26<>\"\",'Order Input'!O20,\"\")","v":""},{"$f":"IF($B26<>\"\",'Order Input'!P20,\"\")","v":""},{"$f":"IF($B26<>\"\",'Order Input'!R20,\"\")","v":""},{"$f":"IF($B26<>\"\",'Order Input'!V20,\"\")","v":""},{"$f":"IF($B26<>\"\",'Order Input'!S20,\"\")","v":""}]
[17,{"$f":"IF('Order Input'!L21=0,\"\",VLOOKUP('Order Input'!L21,Input!$L$25:$M$1010,2,FALSE))","v":""},{"$f":"IF(ISERROR(VLOOKUP('Order Input'!H21,Input!$L$25:$Q$1012,4,FALSE)),\"\",VLOOKUP('Order Input'!H21,Input!$L$25:$Q$1012,4,FALSE))","v":""},{"$f":"IF(ISERROR(VLOOKUP('Order Input'!H21,Input!$L$25:$Q$1012,3,FALSE)),\"\",VLOOKUP('Order Input'!H21,Input!$L$25:$Q$1012,3,FALSE))","v":""},{"$f":"IF(B27<>\"\",'Order Input'!I21,\"\")","v":""},{"$f":"IF($B27<>\"\",'Order Input'!J21,\"\")","v":""},{"$f":"IF($B27<>\"\",'Order Input'!O21,\"\")","v":""},{"$f":"IF($B27<>\"\",'Order Input'!P21,\"\")","v":""},{"$f":"IF($B27<>\"\",'Order Input'!R21,\"\")","v":""},{"$f":"IF($B27<>\"\",'Order Input'!V21,\"\")","v":""},{"$f":"IF($B27<>\"\",'Order Input'!S21,\"\")","v":""}]
[18,{"$f":"IF('Order Input'!L22=0,\"\",VLOOKUP('Order Input'!L22,Input!$L$25:$M$1010,2,FALSE))","v":""},{"$f":"IF(ISERROR(VLOOKUP('Order Input'!H22,Input!$L$25:$Q$1012,4,FALSE)),\"\",VLOOKUP('Order Input'!H22,Input!$L$25:$Q$1012,4,FALSE))","v":""},{"$f":"IF(ISERROR(VLOOKUP('Order Input'!H22,Input!$L$25:$Q$1012,3,FALSE)),\"\",VLOOKUP('Order Input'!H22,Input!$L$25:$Q$1012,3,FALSE))","v":""},{"$f":"IF(B28<>\"\",'Order Input'!I22,\"\")","v":""},{"$f":"IF($B28<>\"\",'Order Input'!J22,\"\")","v":""},{"$f":"IF($B28<>\"\",'Order Input'!O22,\"\")","v":""},{"$f":"IF($B28<>\"\",'Order Input'!P22,\"\")","v":""},{"$f":"IF($B28<>\"\",'Order Input'!R22,\"\")","v":""},{"$f":"IF($B28<>\"\",'Order Input'!V22,\"\")","v":""},{"$f":"IF($B28<>\"\",'Order Input'!S22,\"\")","v":""}]
[19,{"$f":"IF('Order Input'!L23=0,\"\",VLOOKUP('Order Input'!L23,Input!$L$25:$M$1010,2,FALSE))","v":""},{"$f":"IF(ISERROR(VLOOKUP('Order Input'!H23,Input!$L$25:$Q$1012,4,FALSE)),\"\",VLOOKUP('Order Input'!H23,Input!$L$25:$Q$1012,4,FALSE))","v":""},{"$f":"IF(ISERROR(VLOOKUP('Order Input'!H23,Input!$L$25:$Q$1012,3,FALSE)),\"\",VLOOKUP('Order Input'!H23,Input!$L$25:$Q$1012,3,FALSE))","v":""},{"$f":"IF(B29<>\"\",'Order Input'!I23,\"\")","v":""},{"$f":"IF($B29<>\"\",'Order Input'!J23,\"\")","v":""},{"$f":"IF($B29<>\"\",'Order Input'!O23,\"\")","v":""},{"$f":"IF($B29<>\"\",'Order Input'!P23,\"\")","v":""},{"$f":"IF($B29<>\"\",'Order Input'!R23,\"\")","v":""},{"$f":"IF($B29<>\"\",'Order Input'!V23,\"\")","v":""},{"$f":"IF($B29<>\"\",'Order Input'!S23,\"\")","v":""}]
[20,{"$f":"IF('Order Input'!L24=0,\"\",VLOOKUP('Order Input'!L24,Input!$L$25:$M$1010,2,FALSE))","v":""},{"$f":"IF(ISERROR(VLOOKUP('Order Input'!H24,Input!$L$25:$Q$1012,4,FALSE)),\"\",VLOOKUP('Order Input'!H24,Input!$L$25:$Q$1012,4,FALSE))","v":""},{"$f":"IF(ISERROR(VLOOKUP('Order Input'!H24,Input!$L$25:$Q$1012,3,FALSE)),\"\",VLOOKUP('Order Input'!H24,Input!$L$25:$Q$1012,3,FALSE))","v":""},{"$f":"IF(B30<>\"\",'Order Input'!I24,\"\")","v":""},{"$f":"IF($B30<>\"\",'Order Input'!J24,\"\")","v":""},{"$f":"IF($B30<>\"\",'Order Input'!O24,\"\")","v":""},{"$f":"IF($B30<>\"\",'Order Input'!P24,\"\")","v":""},{"$f":"IF($B30<>\"\",'Order Input'!R24,\"\")","v":""},{"$f":"IF($B30<>\"\",'Order Input'!V24,\"\")","v":""},{"$f":"IF($B30<>\"\",'Order Input'!S24,\"\")","v":""}]
[21,{"$f":"IF('Order Input'!L25=0,\"\",VLOOKUP('Order Input'!L25,Input!$L$25:$M$1010,2,FALSE))","v":""},{"$f":"IF(ISERROR(VLOOKUP('Order Input'!H25,Input!$L$25:$Q$1012,4,FALSE)),\"\",VLOOKUP('Order Input'!H25,Input!$L$25:$Q$1012,4,FALSE))","v":""},{"$f":"IF(ISERROR(VLOOKUP('Order Input'!H25,Input!$L$25:$Q$1012,3,FALSE)),\"\",VLOOKUP('Order Input'!H25,Input!$L$25:$Q$1012,3,FALSE))","v":""},{"$f":"IF(B31<>\"\",'Order Input'!I25,\"\")","v":""},{"$f":"IF($B31<>\"\",'Order Input'!J25,\"\")","v":""},{"$f":"IF($B31<>\"\",'Order Input'!O25,\"\")","v":""},{"$f":"IF($B31<>\"\",'Order Input'!P25,\"\")","v":""},{"$f":"IF($B31<>\"\",'Order Input'!R25,\"\")","v":""},{"$f":"IF($B31<>\"\",'Order Input'!V25,\"\")","v":""},{"$f":"IF($B31<>\"\",'Order Input'!S25,\"\")","v":""}]
[22,{"$f":"IF('Order Input'!L26=0,\"\",VLOOKUP('Order Input'!L26,Input!$L$25:$M$1010,2,FALSE))","v":""},{"$f":"IF(ISERROR(VLOOKUP('Order Input'!H26,Input!$L$25:$Q$1012,4,FALSE)),\"\",VLOOKUP('Order Input'!H26,Input!$L$25:$Q$1012,4,FALSE))","v":""},{"$f":"IF(ISERROR(VLOOKUP('Order Input'!H26,Input!$L$25:$Q$1012,3,FALSE)),\"\",VLOOKUP('Order Input'!H26,Input!$L$25:$Q$1012,3,FALSE))","v":""},{"$f":"IF(B32<>\"\",'Order Input'!I26,\"\")","v":""},{"$f":"IF($B32<>\"\",'Order Input'!J26,\"\")","v":""},{"$f":"IF($B32<>\"\",'Order Input'!O26,\"\")","v":""},{"$f":"IF($B32<>\"\",'Order Input'!P26,\"\")","v":""},{"$f":"IF($B32<>\"\",'Order Input'!R26,\"\")","v":""},{"$f":"IF($B32<>\"\",'Order Input'!V26,\"\")","v":""},{"$f":"IF($B32<>\"\",'Order Input'!S26,\"\")","v":""}]
[23,{"$f":"IF('Order Input'!L27=0,\"\",VLOOKUP('Order Input'!L27,Input!$L$25:$M$1010,2,FALSE))","v":""},{"$f":"IF(ISERROR(VLOOKUP('Order Input'!H27,Input!$L$25:$Q$1012,4,FALSE)),\"\",VLOOKUP('Order Input'!H27,Input!$L$25:$Q$1012,4,FALSE))","v":""},{"$f":"IF(ISERROR(VLOOKUP('Order Input'!H27,Input!$L$25:$Q$1012,3,FALSE)),\"\",VLOOKUP('Order Input'!H27,Input!$L$25:$Q$1012,3,FALSE))","v":""},{"$f":"IF(B33<>\"\",'Order Input'!I27,\"\")","v":""},{"$f":"IF($B33<>\"\",'Order Input'!J27,\"\")","v":""},{"$f":"IF($B33<>\"\",'Order Input'!O27,\"\")","v":""},{"$f":"IF($B33<>\"\",'Order Input'!P27,\"\")","v":""},{"$f":"IF($B33<>\"\",'Order Input'!R27,\"\")","v":""},{"$f":"IF($B33<>\"\",'Order Input'!V27,\"\")","v":""},{"$f":"IF($B33<>\"\",'Order Input'!S27,\"\")","v":""}]
[24,{"$f":"IF('Order Input'!L28=0,\"\",VLOOKUP('Order Input'!L28,Input!$L$25:$M$1010,2,FALSE))","v":""},{"$f":"IF(ISERROR(VLOOKUP('Order Input'!H28,Input!$L$25:$Q$1012,4,FALSE)),\"\",VLOOKUP('Order Input'!H28,Input!$L$25:$Q$1012,4,FALSE))","v":""},{"$f":"IF(ISERROR(VLOOKUP('Order Input'!H28,Input!$L$25:$Q$1012,3,FALSE)),\"\",VLOOKUP('Order Input'!H28,Input!$L$25:$Q$1012,3,FALSE))","v":""},{"$f":"IF(B34<>\"\",'Order Input'!I28,\"\")","v":""},{"$f":"IF($B34<>\"\",'Order Input'!J28,\"\")","v":""},{"$f":"IF($B34<>\"\",'Order Input'!O28,\"\")","v":""},{"$f":"IF($B34<>\"\",'Order Input'!P28,\"\")","v":""},{"$f":"IF($B34<>\"\",'Order Input'!R28,\"\")","v":""},{"$f":"IF($B34<>\"\",'Order Input'!V28,\"\")","v":""},{"$f":"IF($B34<>\"\",'Order Input'!S28,\"\")","v":""}]
[25,{"$f":"IF('Order Input'!L29=0,\"\",VLOOKUP('Order Input'!L29,Input!$L$25:$M$1010,2,FALSE))","v":""},{"$f":"IF(ISERROR(VLOOKUP('Order Input'!H29,Input!$L$25:$Q$1012,4,FALSE)),\"\",VLOOKUP('Order Input'!H29,Input!$L$25:$Q$1012,4,FALSE))","v":""},{"$f":"IF(ISERROR(VLOOKUP('Order Input'!H29,Input!$L$25:$Q$1012,3,FALSE)),\"\",VLOOKUP('Order Input'!H29,Input!$L$25:$Q$1012,3,FALSE))","v":""},{"$f":"IF(B35<>\"\",'Order Input'!I29,\"\")","v":""},{"$f":"IF($B35<>\"\",'Order Input'!J29,\"\")","v":""},{"$f":"IF($B35<>\"\",'Order Input'!O29,\"\")","v":""},{"$f":"IF($B35<>\"\",'Order Input'!P29,\"\")","v":""},{"$f":"IF($B35<>\"\",'Order Input'!R29,\"\")","v":""},{"$f":"IF($B35<>\"\",'Order Input'!V29,\"\")","v":""},{"$f":"IF($B35<>\"\",'Order Input'!S29,\"\")","v":""}]
[26,{"$f":"IF('Order Input'!L30=0,\"\",VLOOKUP('Order Input'!L30,Input!$L$25:$M$1010,2,FALSE))","v":""},{"$f":"IF(ISERROR(VLOOKUP('Order Input'!H30,Input!$L$25:$Q$1012,4,FALSE)),\"\",VLOOKUP('Order Input'!H30,Input!$L$25:$Q$1012,4,FALSE))","v":""},{"$f":"IF(ISERROR(VLOOKUP('Order Input'!H30,Input!$L$25:$Q$1012,3,FALSE)),\"\",VLOOKUP('Order Input'!H30,Input!$L$25:$Q$1012,3,FALSE))","v":""},{"$f":"IF(B36<>\"\",'Order Input'!I30,\"\")","v":""},{"$f":"IF($B36<>\"\",'Order Input'!J30,\"\")","v":""},{"$f":"IF($B36<>\"\",'Order Input'!O30,\"\")","v":""},{"$f":"IF($B36<>\"\",'Order Input'!P30,\"\")","v":""},{"$f":"IF($B36<>\"\",'Order Input'!R30,\"\")","v":""},{"$f":"IF($B36<>\"\",'Order Input'!V30,\"\")","v":""},{"$f":"IF($B36<>\"\",'Order Input'!S30,\"\")","v":""}]
[27,{"$f":"IF('Order Input'!L31=0,\"\",VLOOKUP('Order Input'!L31,Input!$L$25:$M$1010,2,FALSE))","v":""},{"$f":"IF(ISERROR(VLOOKUP('Order Input'!H31,Input!$L$25:$Q$1012,4,FALSE)),\"\",VLOOKUP('Order Input'!H31,Input!$L$25:$Q$1012,4,FALSE))","v":""},{"$f":"IF(ISERROR(VLOOKUP('Order Input'!H31,Input!$L$25:$Q$1012,3,FALSE)),\"\",VLOOKUP('Order Input'!H31,Input!$L$25:$Q$1012,3,FALSE))","v":""},{"$f":"IF(B37<>\"\",'Order Input'!I31,\"\")","v":""},{"$f":"IF($B37<>\"\",'Order Input'!J31,\"\")","v":""},{"$f":"IF($B37<>\"\",'Order Input'!O31,\"\")","v":""},{"$f":"IF($B37<>\"\",'Order Input'!P31,\"\")","v":""},{"$f":"IF($B37<>\"\",'Order Input'!R31,\"\")","v":""},{"$f":"IF($B37<>\"\",'Order Input'!V31,\"\")","v":""},{"$f":"IF($B37<>\"\",'Order Input'!S31,\"\")","v":""}]
[28,{"$f":"IF('Order Input'!L32=0,\"\",VLOOKUP('Order Input'!L32,Input!$L$25:$M$1010,2,FALSE))","v":""},{"$f":"IF(ISERROR(VLOOKUP('Order Input'!H32,Input!$L$25:$Q$1012,4,FALSE)),\"\",VLOOKUP('Order Input'!H32,Input!$L$25:$Q$1012,4,FALSE))","v":""},{"$f":"IF(ISERROR(VLOOKUP('Order Input'!H32,Input!$L$25:$Q$1012,3,FALSE)),\"\",VLOOKUP('Order Input'!H32,Input!$L$25:$Q$1012,3,FALSE))","v":""},{"$f":"IF(B38<>\"\",'Order Input'!I32,\"\")","v":""},{"$f":"IF($B38<>\"\",'Order Input'!J32,\"\")","v":""},{"$f":"IF($B38<>\"\",'Order Input'!O32,\"\")","v":""},{"$f":"IF($B38<>\"\",'Order Input'!P32,\"\")","v":""},{"$f":"IF($B38<>\"\",'Order Input'!R32,\"\")","v":""},{"$f":"IF($B38<>\"\",'Order Input'!V32,\"\")","v":""},{"$f":"IF($B38<>\"\",'Order Input'!S32,\"\")","v":""}]
[29,{"$f":"IF('Order Input'!L33=0,\"\",VLOOKUP('Order Input'!L33,Input!$L$25:$M$1010,2,FALSE))","v":""},{"$f":"IF(ISERROR(VLOOKUP('Order Input'!H33,Input!$L$25:$Q$1012,4,FALSE)),\"\",VLOOKUP('Order Input'!H33,Input!$L$25:$Q$1012,4,FALSE))","v":""},{"$f":"IF(ISERROR(VLOOKUP('Order Input'!H33,Input!$L$25:$Q$1012,3,FALSE)),\"\",VLOOKUP('Order Input'!H33,Input!$L$25:$Q$1012,3,FALSE))","v":""},{"$f":"IF(B39<>\"\",'Order Input'!I33,\"\")","v":""},{"$f":"IF($B39<>\"\",'Order Input'!J33,\"\")","v":""},{"$f":"IF($B39<>\"\",'Order Input'!O33,\"\")","v":""},{"$f":"IF($B39<>\"\",'Order Input'!P33,\"\")","v":""},{"$f":"IF($B39<>\"\",'Order Input'!R33,\"\")","v":""},{"$f":"IF($B39<>\"\",'Order Input'!V33,\"\")","v":""},{"$f":"IF($B39<>\"\",'Order Input'!S33,\"\")","v":""}]
[30,{"$f":"IF('Order Input'!L34=0,\"\",VLOOKUP('Order Input'!L34,Input!$L$25:$M$1010,2,FALSE))","v":""},{"$f":"IF(ISERROR(VLOOKUP('Order Input'!H34,Input!$L$25:$Q$1012,4,FALSE)),\"\",VLOOKUP('Order Input'!H34,Input!$L$25:$Q$1012,4,FALSE))","v":""},{"$f":"IF(ISERROR(VLOOKUP('Order Input'!H34,Input!$L$25:$Q$1012,3,FALSE)),\"\",VLOOKUP('Order Input'!H34,Input!$L$25:$Q$1012,3,FALSE))","v":""},{"$f":"IF(B40<>\"\",'Order Input'!I34,\"\")","v":""},{"$f":"IF($B40<>\"\",'Order Input'!J34,\"\")","v":""},{"$f":"IF($B40<>\"\",'Order Input'!O34,\"\")","v":""},{"$f":"IF($B40<>\"\",'Order Input'!P34,\"\")","v":""},{"$f":"IF($B40<>\"\",'Order Input'!R34,\"\")","v":""},{"$f":"IF($B40<>\"\",'Order Input'!V34,\"\")","v":""},{"$f":"IF($B40<>\"\",'Order Input'!S34,\"\")","v":""}]
[]
[null,null,null,null,null,null,null,"Заказчик",null,null,"________________"]
[null,null,null,null,null,null,"МП"]
[null,null,null,null,null,null,null,null,"расшифровка подписи",null,"_________________"]

{"sheet":"Schedule","index":2,"n_rows":327,"n_cols":13,"rows_kept":327,"cut":false,"hidden":true,"merged":[]}
["ключ","From\nregion","To\nregion","гор","No of days to this region","кл","Unloading\nday of week","Loading\ndays before","Delivery to FM days befor"]
[{"$f":"B2&\"'\"&C2&\"'\"&D2&\"'\"&G2","v":"'''День недели\nАВИЗАЦИЯ"},null,null,null,null,null,"День недели\nАВИЗАЦИЯ","к-во дней \nв пути   \nдо авизации","дней от привоза до авизации"]
[{"$f":"B3&\"'\"&C3&\"'\"&D3&\"'\"&G3","v":"ФМХИМКИ'Атак'Москва'"},"ФМХИМКИ","Атак","Москва",null,"ФМХИМКИ'Атак'Москва","","",""]
["ФМХИМКИ'Атак'Московская обл.'","ФМХИМКИ","Атак","Московская обл.",null,"ФМХИМКИ'Атак'Московская обл.","","",""]
["ФМХИМКИ'Атак'Владимир'","ФМХИМКИ","Атак","Владимир",null,"ФМХИМКИ'Атак'Владимир","","",""]
["ФМХИМКИ'Атак'Чехов'","ФМХИМКИ","Атак","Чехов",null,"ФМХИМКИ'Атак'Чехов","","",""]
["ФМХИМКИ'Атак'Рязань'","ФМХИМКИ","Атак","Рязань",null,"ФМХИМКИ'Атак'Рязань","","",""]
["ФМХИМКИ'Атак'Тверь'","ФМХИМКИ","Атак","Тверь",null,"ФМХИМКИ'Атак'Тверь","","",""]
["ФМХИМКИ'Ашан'Москва'","ФМХИМКИ","Ашан","Москва",null,"ФМХИМКИ'Ашан'Москва","","",""]
["ФМХИМКИ'АШАН'Московская обл.'","ФМХИМКИ","АШАН","Московская обл.",null,"ФМХИМКИ'АШАН'Московская обл.","","",""]
["ФМХИМКИ'Ашан'Санкт-Петербург'3","ФМХИМКИ","Ашан","Санкт-Петербург",null,"ФМХИМКИ'Ашан'Санкт-Петербург",3,1,2]
["ФМХИМКИ'Ашан'Ленинградская обл.'","ФМХИМКИ","Ашан","Ленинградская обл.",null,"ФМХИМКИ'Ашан'Ленинградская обл.","","",""]
["ФМХИМКИ'Ашан'Екатеринбург'","ФМХИМКИ","Ашан","Екатеринбург",null,"ФМХИМКИ'Ашан'Екатеринбург","","",""]
["ФМХИМКИ'Ашан'Верхняя Пышма'7","ФМХИМКИ","Ашан","Верхняя Пышма",null,"ФМХИМКИ'Ашан'Верхняя Пышма",7,4,5]
["ФМХИМКИ'Ашан'Верхняя Пышма'1","ФМХИМКИ","Ашан","Верхняя Пышма",null,"ФМХИМКИ'Ашан'Верхняя Пышма",1,4,5]
["ФМХИМКИ'Ашан'Ростовская обл.'4","ФМХИМКИ","Ашан","Ростовская обл.",null,"ФМХИМКИ'Ашан'Ростовская обл.",4,2,3]
["ФМХИМКИ'Ашан'Ростовская обл.'6","ФМХИМКИ","Ашан","Ростовская обл.",null,"ФМХИМКИ'Ашан'Ростовская обл.",6,2,3]
["ФМХИМКИ'Ашан'Новосибирск'5","ФМХИМКИ","Ашан","Новосибирск",null,"ФМХИМКИ'Ашан'Новосибирск",5,7,8]
["ФМХИМКИ'Ашан'Нижний Новгород'","ФМХИМКИ","Ашан","Нижний Новгород",null,"ФМХИМКИ'Ашан'Нижний Новгород","","",""]
["ФМХИМКИ'Ашан'Омск'","ФМХИМКИ","Ашан","Омск",null,"ФМХИМКИ'Ашан'Омск","","",""]
["ФМХИМКИ'Ашан'Пенза'","ФМХИМКИ","Ашан","Пенза",null,"ФМХИМКИ'Ашан'Пенза","","",""]
["ФМХИМКИ'Ашан'Краснодар'","ФМХИМКИ","Ашан","Краснодар",null,"ФМХИМКИ'Ашан'Краснодар","","",""]
["ФМХИМКИ'Ашан'Казань'","ФМХИМКИ","Ашан","Казань",null,"ФМХИМКИ'Ашан'Казань","","",""]
["ФМХИМКИ'Ашан'Самара'6","ФМХИМКИ","Ашан","Самара",null,"ФМХИМКИ'Ашан'Самара",6,2,6]
["ФМХИМКИ'Ашан'респ.Адыгея'","ФМХИМКИ","Ашан","респ.Адыгея",null,"ФМХИМКИ'Ашан'респ.Адыгея","","",""]
["ФМХИМКИ'ГиперГлобус'Московская обл.'","ФМХИМКИ","ГиперГлобус","Московская обл.",null,"ФМХИМКИ'ГиперГлобус'Московская обл.","","",""]
["ФМХИМКИ'Дикси'Москва'","ФМХИМКИ","Дикси","Москва",null,"ФМХИМКИ'Дикси'Москва","","",""]
["ФМХИМКИ'Дикси'Московская обл.'","ФМХИМКИ","Дикси","Московская обл.",null,"ФМХИМКИ'Дикси'Московская обл.","","",""]
["ФМХИМКИ'Дикси'Санкт-Петербург'","ФМХИМКИ","Дикси","Санкт-Петербург",null,"ФМХИМКИ'Дикси'Санкт-Петербург","","",""]
["ФМХИМКИ'Дикси'Ярославль'","ФМХИМКИ","Дикси","Ярославль",null,"ФМХИМКИ'Дикси'Ярославль","","",""]
["ФМХИМКИ'Дикси'Челябинск'","ФМХИМКИ","Дикси","Челябинск",null,"ФМХИМКИ'Дикси'Челябинск","","",""]
["ФМХИМКИ'Зельгрос'Казань'4","ФМХИМКИ","Зельгрос","Казань",null,{"$f":"B32&\"'\"&C32&\"'\"&D32","v":"ФМХИМКИ'Зельгрос'Казань"},4,2,3]
["ФМХИМКИ'Карусель'Москва'","ФМХИМКИ","Карусель","Москва",null,"ФМХИМКИ'Карусель'Москва","","",""]
["ФМХИМКИ'Карусель'Московская обл.'","ФМХИМКИ","Карусель","Московская обл.",null,"ФМХИМКИ'Карусель'Московская обл.","","",""]
["ФМХИМКИ'Лента'Московская обл.'","ФМХИМКИ","Лента","Московская обл.",null,"ФМХИМКИ'Лента'Московская обл.","","",""]
["ФМХИМКИ'Лента'Санкт-Петербург'","ФМХИМКИ","Лента","Санкт-Петербург",null,"ФМХИМКИ'Лента'Санкт-Петербург","","",""]
["ФМХИМКИ'Лента'Краснодар'","ФМХИМКИ","Лента","Краснодар",null,"ФМХИМКИ'Лента'Краснодар","","",""]
["ФМХИМКИ'Лента'Барнаул'","ФМХИМКИ","Лента","Барнаул",null,"ФМХИМКИ'Лента'Барнаул","","",""]
["ФМХИМКИ'Лента'Новосибирск'","ФМХИМКИ","Лента","Новосибирск",null,"ФМХИМКИ'Лента'Новосибирск","","",""]
["ФМХИМКИ'Лента'Нижний Новгород'","ФМХИМКИ","Лента","Нижний Новгород",null,"ФМХИМКИ'Лента'Нижний Новгород","","",""]
["ФМХИМКИ'Лента'Омск'","ФМХИМКИ","Лента","Омск",null,"ФМХИМКИ'Лента'Омск","","",""]
["ФМХИМКИ'Лента'Ульяновск'","ФМХИМКИ","Лента","Ульяновск",null,"ФМХИМКИ'Лента'Ульяновск","","",""]
["ФМХИМКИ'Лента'Пенза'","ФМХИМКИ","Лента","Пенза",null,"ФМХИМКИ'Лента'Пенза","","",""]
["ФМХИМКИ'Лента'Петрозаводск'","ФМХИМКИ","Лента","Петрозаводск",null,"ФМХИМКИ'Лента'Петрозаводск","","",""]
["ФМХИМКИ'Лента'Рязань'","ФМХИМКИ","Лента","Рязань",null,"ФМХИМКИ'Лента'Рязань","","",""]
["ФМХИМКИ'Лента'ВеликийНовгород'","ФМХИМКИ","Лента","ВеликийНовгород",null,"ФМХИМКИ'Лента'ВеликийНовгород","","",""]
["ФМХИМКИ'Лента'Саратов'","ФМХИМКИ","Лента","Саратов",null,"ФМХИМКИ'Лента'Саратов","","",""]
["ФМХИМКИ'Лента'Тольятти'","ФМХИМКИ","Лента","Тольятти",null,"ФМХИМКИ'Лента'Тольятти","","",""]
["ФМХИМКИ'Лента'Тюмень'","ФМХИМКИ","Лента","Тюмень",null,"ФМХИМКИ'Лента'Тюмень","","",""]
["ФМХИМКИ'Лента'Астрахань'","ФМХИМКИ","Лента","Астрахань",null,"ФМХИМКИ'Лента'Астрахань","","",""]
["ФМХИМКИ'Леруа Мерлен'Москва'","ФМХИМКИ","Леруа Мерлен","Москва",null,"ФМХИМКИ'Леруа Мерлен'Москва","","",""]
["ФМХИМКИ'Леруа Мерлен'Московская обл.'","ФМХИМКИ","Леруа Мерлен","Московская обл.",null,"ФМХИМКИ'Леруа Мерлен'Московская обл.","","",""]
["ФМХИМКИ'Леруа Мерлен'Санкт-Петербург'","ФМХИМКИ","Леруа Мерлен","Санкт-Петербург",null,"ФМХИМКИ'Леруа Мерлен'Санкт-Петербург","","",""]
["ФМХИМКИ'Леруа Мерлен'Ростовская обл.'","ФМХИМКИ","Леруа Мерлен","Ростовская обл.",null,"ФМХИМКИ'Леруа Мерлен'Ростовская обл.","","",""]
["ФМХИМКИ'Леруа Мерлен'Новосибирск'","ФМХИМКИ","Леруа Мерлен","Новосибирск",null,"ФМХИМКИ'Леруа Мерлен'Новосибирск","","",""]
["ФМХИМКИ'Метро'Москва'","ФМХИМКИ","Метро","Москва",null,"ФМХИМКИ'Метро'Москва","","",""]
["ФМХИМКИ'Метро'Московская обл.'","ФМХИМКИ","Метро","Московская обл.",null,"ФМХИМКИ'Метро'Московская обл.","","",""]
["ФМХИМКИ'Метро'Санкт-Петербург'1","ФМХИМКИ","Метро","Санкт-Петербург",null,"ФМХИМКИ'Метро'Санкт-Петербург",1,3,6]
["ФМХИМКИ'Метро'Екатеринбург'2","ФМХИМКИ","Метро","Екатеринбург",null,"ФМХИМКИ'Метро'Екатеринбург",2,5,2]
["ФМХИМКИ'Метро'Воронеж'4","ФМХИМКИ","Метро","Воронеж",null,"ФМХИМКИ'Метро'Воронеж",4,2,3]
["ФМХИМКИ'Метро'Тульская обл.'","ФМХИМКИ","Метро","Тульская обл.",null,"ФМХИМКИ'Метро'Тульская обл.","","",""]
["ФМХИМКИ'Метро'Ярославль'5","ФМХИМКИ","Метро","Ярославль",null,"ФМХИМКИ'Метро'Ярославль",5,1,2]
["ФМХИМКИ'Метро'Красноярск'2","ФМХИМКИ","Метро","Красноярск",null,"ФМХИМКИ'Метро'Красноярск",2,11,12]
["ФМХИМКИ'Метро'Брянск'5","ФМХИМКИ","Метро","Брянск",null,"ФМХИМКИ'Метро'Брянск",5,2,3]
["ФМХИМКИ'Метро'Волгоград'4","ФМХИМКИ","Метро","Волгоград",null,"ФМХИМКИ'Метро'Волгоград",4,2,1]
["ФМХИМКИ'Метро'Зеленоград'","ФМХИМКИ","Метро","Зеленоград",null,"ФМХИМКИ'Метро'Зеленоград","","",""]
[{"$f":"B67&\"'\"&C67&\"'\"&D67&\"'\"&G67","v":"ФМХИМКИ'Метро'Липецк'4"},"ФМХИМКИ","Метро","Липецк",null,"ФМХИМКИ'Метро'Липецк",4,2,3]
["ФМХИМКИ'Метро'Новосибирск'1","ФМХИМКИ","Метро","Новосибирск",null,"ФМХИМКИ'Метро'Новосибирск",1,7,8]
["ФМХИМКИ'Метро'Нижний Новгород'4","ФМХИМКИ","Метро","Нижний Новгород",null,"ФМХИМКИ'Метро'Нижний Новгород",4,2,3]
["ФМХИМКИ'Метро'Новокузнецк'2","ФМХИМКИ","Метро","Новокузнецк",null,"ФМХИМКИ'Метро'Новокузнецк",2,11,12]
["ФМХИМКИ'Метро'Оренбург'","ФМХИМКИ","Метро","Оренбург",null,"ФМХИМКИ'Метро'Оренбург","","",""]
["ФМХИМКИ'Метро'Омск'2","ФМХИМКИ","Метро","Омск",null,"ФМХИМКИ'Метро'Омск",2,5,2]
["ФМХИМКИ'Метро'Ульяновск'","ФМХИМКИ","Метро","Ульяновск",null,"ФМХИМКИ'Метро'Ульяновск","","",""]
["ФМХИМКИ'Метро'Уфа'2","ФМХИМКИ","Метро","Уфа",null,"ФМХИМКИ'Метро'Уфа",2,5,2]
["ФМХИМКИ'Метро'НабережныеЧелны'","ФМХИМКИ","Метро","НабережныеЧелны",null,"ФМХИМКИ'Метро'НабережныеЧелны","","",""]
["ФМХИМКИ'Метро'Железнодорожный'","ФМХИМКИ","Метро","Железнодорожный",null,"ФМХИМКИ'Метро'Железнодорожный","","",""]
["ФМХИМКИ'Метро'Иваново'2","ФМХИМКИ","Метро","Иваново",null,"ФМХИМКИ'Метро'Иваново",2,1,5]
["ФМХИМКИ'Метро'Пятигорск'","ФМХИМКИ","Метро","Пятигорск",null,"ФМХИМКИ'Метро'Пятигорск","","",""]
["ФМХИМКИ'Метро'Пензенскаяобл.'","ФМХИМКИ","Метро","Пензенскаяобл.",null,"ФМХИМКИ'Метро'Пензенскаяобл.","","",""]
["ФМХИМКИ'Метро'Пермь'2","ФМХИМКИ","Метро","Пермь",null,"ФМХИМКИ'Метро'Пермь",2,5,6]
["ФМХИМКИ'Метро'Ростов-на-Дону'4","ФМХИМКИ","Метро","Ростов-на-Дону",null,"ФМХИМКИ'Метро'Ростов-на-Дону",4,2,1]
["ФМХИМКИ'Метро'Рязань'2","ФМХИМКИ","Метро","Рязань",null,"ФМХИМКИ'Метро'Рязань",2,1,4]
["ФМХИМКИ'Метро'Челябинская обл.'2","ФМХИМКИ","Метро","Челябинская обл.",null,"ФМХИМКИ'Метро'Челябинская обл.",2,5,6,null,null,{"$error":"#VALUE!"}]
["ФМХИМКИ'Метро'Курск'","ФМХИМКИ","Метро","Курск",null,"ФМХИМКИ'Метро'Курск","","",""]
["ФМХИМКИ'Метро'Киров'5","ФМХИМКИ","Метро","Киров",null,"ФМХИМКИ'Метро'Киров",5,3,4]
["ФМХИМКИ'Метро'Краснодар'5","ФМХИМКИ","Метро","Краснодар",null,"ФМХИМКИ'Метро'Краснодар",5,3,4]
["ФМХИМКИ'Метро'Красноярский край'2","ФМХИМКИ","Метро","Красноярский край",null,"ФМХИМКИ'Метро'Красноярский край",2,11,12]
["ФМХИМКИ'Метро'Кемерово'2","ФМХИМКИ","Метро","Кемерово",null,"ФМХИМКИ'Метро'Кемерово",2,11,12]
["ФМХИМКИ'Метро'Казань'","ФМХИМКИ","Метро","Казань",null,"ФМХИМКИ'Метро'Казань","","",""]
["ФМХИМКИ'Метро'Калуга'4","ФМХИМКИ","Метро","Калуга",null,"ФМХИМКИ'Метро'Калуга",4,1,2]
["ФМХИМКИ'Метро'Калининград'","ФМХИМКИ","Метро","Калининград",null,"ФМХИМКИ'Метро'Калининград","","",""]
["ФМХИМКИ'Метро'Ставрополь'5","ФМХИМКИ","Метро","Ставрополь",null,"ФМХИМКИ'Метро'Ставрополь",5,3,3]
["ФМХИМКИ'Метро'Саратов'3","ФМХИМКИ","Метро","Саратов",null,"ФМХИМКИ'Метро'Саратов",3,2,4]
["ФМХИМКИ'Метро'Самара'5","ФМХИМКИ","Метро","Самара",null,"ФМХИМКИ'Метро'Самара",5,2,3]
["ФМХИМКИ'Метро'Смоленск'5","ФМХИМКИ","Метро","Смоленск",null,{"$f":"B95&\"'\"&C95&\"'\"&D95","v":"ФМХИМКИ'Метро'Смоленск"},5,3,4]
["ФМХИМКИ'Метро'Тверь'4","ФМХИМКИ","Метро","Тверь",null,"ФМХИМКИ'Метро'Тверь",4,1,5]
["ФМХИМКИ'Метро'Тольятти'5","ФМХИМКИ","Метро","Тольятти",null,"ФМХИМКИ'Метро'Тольятти",5,2,3,null,null,null,{"$error":"#VALUE!"}]
["ФМХИМКИ'Метро'Томск'","ФМХИМКИ","Метро","Томск",null,"ФМХИМКИ'Метро'Томск","","",""]
["ФМХИМКИ'Метро'Тюмень'2","ФМХИМКИ","Метро","Тюмень",null,"ФМХИМКИ'Метро'Тюмень",2,5,2]
["ФМХИМКИ'Метро'Астрахань'5","ФМХИМКИ","Метро","Астрахань",null,"ФМХИМКИ'Метро'Астрахань",5,3,4]
["ФМХИМКИ'Наири'Пятигорск'5","ФМХИМКИ","Наири","Пятигорск",null,{"$f":"B101&\"'\"&C101&\"'\"&D101","v":"ФМХИМКИ'Наири'Пятигорск"},5,3,4]
["ФМХИМКИ'Окей'Москва'","ФМХИМКИ","Окей","Москва",null,"ФМХИМКИ'Окей'Москва","","",""]
["ФМХИМКИ'Окей'Московская обл.'","ФМХИМКИ","Окей","Московская обл.",null,"ФМХИМКИ'Окей'Московская обл.","","",""]
["ФМХИМКИ'Окей'Санкт-Петербург'1","ФМХИМКИ","Окей","Санкт-Петербург",null,"ФМХИМКИ'Окей'Санкт-Петербург",1,3,3]
["ФМХИМКИ'Окей'Ленинградская обл.'1","ФМХИМКИ","Окей","Ленинградская обл.",null,"ФМХИМКИ'Окей'Ленинградская обл.",1,3,3]
["ФМХИМКИ'Окей'Воронеж'4","ФМХИМКИ","Окей","Воронеж",null,"ФМХИМКИ'Окей'Воронеж",4,2,3]
["ФМХИМКИ'Окей'Красноярск'2","ФМХИМКИ","Окей","Красноярск",null,"ФМХИМКИ'Окей'Красноярск",2,11,12]
["ФМХИМКИ'Окей'Волгоград'4","ФМХИМКИ","Окей","Волгоград",null,"ФМХИМКИ'Окей'Волгоград",4,2,1]
["ФМХИМКИ'Окей'Волжский'4","ФМХИМКИ","Окей","Волжский",null,"ФМХИМКИ'Окей'Волжский",4,2,1]
["ФМХИМКИ'Окей'Липецк'3","ФМХИМКИ","Окей","Липецк",null,"ФМХИМКИ'Окей'Липецк",3,1,3]
["ФМХИМКИ'Окей'Новочеркасск'5","ФМХИМКИ","Окей","Новочеркасск",null,"ФМХИМКИ'Окей'Новочеркасск",5,7,0]
["ФМХИМКИ'Окей'Нижний Новгород'3","ФМХИМКИ","Окей","Нижний Новгород",null,"ФМХИМКИ'Окей'Нижний Новгород",3,1,3]
["ФМХИМКИ'Окей'Уфа'2","ФМХИМКИ","Окей","Уфа",null,"ФМХИМКИ'Окей'Уфа",2,5,6]
["ФМХИМКИ'Окей'Ростов-на-Дону'5","ФМХИМКИ","Окей","Ростов-на-Дону",null,"ФМХИМКИ'Окей'Ростов-на-Дону",5,3,1]
["ФМХИМКИ'Окей'Краснодар'5","ФМХИМКИ","Окей","Краснодар",null,"ФМХИМКИ'Окей'Краснодар",5,3,4]
["ФМХИМКИ'Окей'Мурманск'3","ФМХИМКИ","Окей","Мурманск",null,"ФМХИМКИ'Окей'Мурманск",3,5,6]
["ФМХИМКИ'Окей'Ставрополь'5","ФМХИМКИ","Окей","Ставрополь",null,"ФМХИМКИ'Окей'Ставрополь",5,3,4]
["ФМХИМКИ'Окей'Тольятти'6","ФМХИМКИ","Окей","Тольятти",null,"ФМХИМКИ'Окей'Тольятти",6,2,4]
["ФМХИМКИ'Реал'Москва'","ФМХИМКИ","Реал","Москва",null,"ФМХИМКИ'Реал'Москва","","",""]
["ФМХИМКИ'Реал'Московская обл.'","ФМХИМКИ","Реал","Московская обл.",null,"ФМХИМКИ'Реал'Московская обл.","","",""]
["ФМХИМКИ'Реал'Санкт-Петербург'1","ФМХИМКИ","Реал","Санкт-Петербург",null,"ФМХИМКИ'Реал'Санкт-Петербург",1,3,3]
["ФМХИМКИ'Реал'Ярославль'5","ФМХИМКИ","Реал","Ярославль",null,"ФМХИМКИ'Реал'Ярославль",5,1,2]
["ФМХИМКИ'Реал'Ярославская обл.'5","ФМХИМКИ","Реал","Ярославская обл.",null,"ФМХИМКИ'Реал'Ярославская обл.",5,1,2]
["ФМХИМКИ'Реал'Волгоград'4","ФМХИМКИ","Реал","Волгоград",null,"ФМХИМКИ'Реал'Волгоград",4,2,1]
["ФМХИМКИ'Реал'Липецк'3","ФМХИМКИ","Реал","Липецк",null,"ФМХИМКИ'Реал'Липецк",3,1,3]
["ФМХИМКИ'Реал'Нижний Новгород'3","ФМХИМКИ","Реал","Нижний Новгород",null,"ФМХИМКИ'Реал'Нижний Новгород",3,1,2]
["ФМХИМКИ'Реал'Иваново'2","ФМХИМКИ","Реал","Иваново",null,"ФМХИМКИ'Реал'Иваново",2,1,8]
["ФМХИМКИ'Реал'Ростов-на-Дону'5","ФМХИМКИ","Реал","Ростов-на-Дону",null,"ФМХИМКИ'Реал'Ростов-на-Дону",5,3,1]
["ФМХИМКИ'Реал'Казань'","ФМХИМКИ","Реал","Казань",null,"ФМХИМКИ'Реал'Казань","","",""]
["ФМХИМКИ'Реал'Саратов'3","ФМХИМКИ","Реал","Саратов",null,"ФМХИМКИ'Реал'Саратов",3,2,4]
[{"$f":"B131&\"'\"&C131&\"'\"&D131&\"'\"&G131","v":"ФМХИМКИ'Реал'Тольятти'5"},"ФМХИМКИ","Реал","Тольятти",null,"ФМХИМКИ'Реал'Тольятти",5,2,3]
["ФМХИМКИ'Реал'Тамбов'2","ФМХИМКИ","Реал","Тамбов",null,"ФМХИМКИ'Реал'Тамбов",2,1,4]
["ФМХИМКИ'Рив Гош'Москва'","ФМХИМКИ","Рив Гош","Москва",null,"ФМХИМКИ'Рив Гош'Москва","","",""]
["ФМХИМКИ'Рив Гош'Московская обл.'","ФМХИМКИ","Рив Гош","Московская обл.",null,"ФМХИМКИ'Рив Гош'Московская обл.","","",""]
["ФМХИМКИ'Рив Гош'Санкт-Петербург'","ФМХИМКИ","Рив Гош","Санкт-Петербург",null,"ФМХИМКИ'Рив Гош'Санкт-Петербург","","",""]
["ФМХИМКИ'Седьмой Континент'Москва'","ФМХИМКИ","Седьмой Континент","Москва",null,"ФМХИМКИ'Седьмой Континент'Москва","","",""]
["ФМХИМКИ'Седьмой Континент'Московская обл.'","ФМХИМКИ","Седьмой Континент","Московская обл.",null,"ФМХИМКИ'Седьмой Континент'Московская обл.","","",""]
["ФМХИМКИ'Седьмой Континент'Санкт-Петербург'","ФМХИМКИ","Седьмой Континент","Санкт-Петербург",null,"ФМХИМКИ'Седьмой Континент'Санкт-Петербург","","",""]
["ФМХИМКИ'Седьмой Континент'Ярославль'","ФМХИМКИ","Седьмой Континент","Ярославль",null,"ФМХИМКИ'Седьмой Континент'Ярославль","","",""]
["ФМХИМКИ'Седьмой Континент'Белгород'","ФМХИМКИ","Седьмой Континент","Белгород",null,"ФМХИМКИ'Седьмой Континент'Белгород","","",""]
["ФМХИМКИ'Седьмой Континент'Балашиха'","ФМХИМКИ","Седьмой Континент","Балашиха",null,"ФМХИМКИ'Седьмой Континент'Балашиха","","",""]
["ФМХИМКИ'Седьмой Континент'Пермь'","ФМХИМКИ","Седьмой Континент","Пермь",null,"ФМХИМКИ'Седьмой Континент'Пермь","","",""]
["ФМХИМКИ'Седьмой Континент'Рязань'","ФМХИМКИ","Седьмой Континент","Рязань",null,"ФМХИМКИ'Седьмой Континент'Рязань","","",""]
["ФМХИМКИ'Седьмой Континент'Зеленоград'","ФМХИМКИ","Седьмой Континент","Зеленоград",null,"ФМХИМКИ'Седьмой Континент'Зеленоград","","",""]
["ФМХИМКИ'Перекресток'Ярославль'","ФМХИМКИ","Перекресток","Ярославль",null,{"$f":"B145&\"'\"&C145&\"'\"&D145","v":"ФМХИМКИ'Перекресток'Ярославль"},"","",""]
["ФМХИМКИ'Перекресток'Челябинск'","ФМХИМКИ","Перекресток","Челябинск",null,"ФМХИМКИ'Перекресток'Челябинск","","",""]
["ФМХИМКИ'Перекресток'Москва'","ФМХИМКИ","Перекресток","Москва",null,"ФМХИМКИ'Перекресток'Москва","","",""]
["ФМХИМКИ'Перекресток'Московская обл.'","ФМХИМКИ","Перекресток","Московская обл.",null,"ФМХИМКИ'Перекресток'Московская обл.","","",""]
["ФМХИМКИ'Перекресток'Санкт-Петербург'3","ФМХИМКИ","Перекресток","Санкт-Петербург",null,"ФМХИМКИ'Перекресток'Санкт-Петербург",3,1,2]
["ФМХИМКИ'Перекресток'Ленинградская обл.'","ФМХИМКИ","Перекресток","Ленинградская обл.",null,"ФМХИМКИ'Перекресток'Ленинградская обл.","","",""]
["ФМХИМКИ'Перекресток'Екатеринбург'1","ФМХИМКИ","Перекресток","Екатеринбург",null,"ФМХИМКИ'Перекресток'Екатеринбург",1,4,5]
["ФМХИМКИ'Перекресток'Ростовская обл.'","ФМХИМКИ","Перекресток","Ростовская обл.",null,"ФМХИМКИ'Перекресток'Ростовская обл.","","",""]
["ФМХИМКИ'Перекресток'Воронежская обл.'","ФМХИМКИ","Перекресток","Воронежская обл.",null,"ФМХИМКИ'Перекресток'Воронежская обл.","","",""]
["ФМХИМКИ'Перекресток'Тюмень'","ФМХИМКИ","Перекресток","Тюмень",null,"ФМХИМКИ'Перекресток'Тюмень","","",""]
["ФМХИМКИ'Перекресток'Ижевск'","ФМХИМКИ","Перекресток","Ижевск",null,"ФМХИМКИ'Перекресток'Ижевск","","",""]
["ФМХИМКИ'Перекресток'Казань'","ФМХИМКИ","Перекресток","Казань",null,"ФМХИМКИ'Перекресток'Казань","","",""]
["ФМХИМКИ'Перекресток'Бронницы'","ФМХИМКИ","Перекресток","Бронницы",null,"ФМХИМКИ'Перекресток'Бронницы","","",""]
["ФМХИМКИ'Перекресток'СтарыйОскол'","ФМХИМКИ","Перекресток","СтарыйОскол",null,"ФМХИМКИ'Перекресток'СтарыйОскол","","",""]
["ФМХИМКИ'Перекресток'Ростов-на-Дону'5","ФМХИМКИ","Перекресток","Ростов-на-Дону",null,"ФМХИМКИ'Перекресток'Ростов-на-Дону",5,3,4]
["ФМХИМКИ'Перекресток'Выборг'","ФМХИМКИ","Перекресток","Выборг",null,"ФМХИМКИ'Перекресток'Выборг","","",""]
["ФМХИМКИ'Перекресток'Самара'","ФМХИМКИ","Перекресток","Самара",null,"ФМХИМКИ'Перекресток'Самара","","",""]
["ФМХИМКИ'Перекресток'Самарскаяобл.'","ФМХИМКИ","Перекресток","Самарскаяобл.",null,"ФМХИМКИ'Перекресток'Самарскаяобл.","","",""]
["ФМХИМКИ'Сладкая Жизнь'Пятигорск'3","ФМХИМКИ","Сладкая Жизнь","Пятигорск",null,"ФМХИМКИ'Сладкая Жизнь'Пятигорск",3,1,2]
["ФМХИМКИ'Элемент Трейд'Новосибирск'1","ФМХИМКИ","Элемент Трейд","Новосибирск",null,"ФМХИМКИ'Элемент Трейд'Новосибирск",1,4,5]
["ФМСИДОРОВО'Атак'Москва'","ФМСИДОРОВО","Атак","Москва"]
["ФМСИДОРОВО'Атак'Московская обл.'","ФМСИДОРОВО","Атак","Московская обл."]
["ФМСИДОРОВО'Атак'Владимир'","ФМСИДОРОВО","Атак","Владимир"]
["ФМСИДОРОВО'Атак'Чехов'","ФМСИДОРОВО","Атак","Чехов"]
["ФМСИДОРОВО'Атак'Рязань'","ФМСИДОРОВО","Атак","Рязань"]
["ФМСИДОРОВО'Атак'Тверь'","ФМСИДОРОВО","Атак","Тверь",null,null,null,null,null,null,null,40510]
["ФМСИДОРОВО'Метро'Астрахань'5","ФМСИДОРОВО","Метро","Астрахань",null,null,5,3]
["ФМСИДОРОВО'Метро'Брянск'5","ФМСИДОРОВО","Метро","Брянск",null,null,5,2]
["ФМСИДОРОВО'Ашан'Верхняя Пышма'2","ФМСИДОРОВО","Ашан","Верхняя Пышма",null,null,2,4]
["ФМСИДОРОВО'Ашан'Верхняя Пышма'7","ФМСИДОРОВО","Ашан","Верхняя Пышма",null,null,7,4]
["ФМСИДОРОВО'Ашан'Верхняя Пышма'1","ФМСИДОРОВО","Ашан","Верхняя Пышма",null,null,1,4]
["ФМСИДОРОВО'Метро'Волгоград'4","ФМСИДОРОВО","Метро","Волгоград",null,null,4,2]
["ФМСИДОРОВО'Окей'Волгоград'4","ФМСИДОРОВО","Окей","Волгоград",null,null,4,2]
["ФМСИДОРОВО'Реал'Волгоград'4","ФМСИДОРОВО","Реал","Волгоград",null,null,4,2]
["ФМСИДОРОВО'Окей'Волжский'4","ФМСИДОРОВО","Окей","Волжский",null,null,4,2]
["ФМСИДОРОВО'Метро'Воронеж'3","ФМСИДОРОВО","Метро","Воронеж",null,null,3,2]
["ФМСИДОРОВО'Окей'Воронеж'3","ФМСИДОРОВО","Окей","Воронеж",null,null,3,2]
["ФМСИДОРОВО'Метро'Екатеринбург'2","ФМСИДОРОВО","Метро","Екатеринбург",null,null,2,4]
["ФМСИДОРОВО'Метро'Железнодорожный'","ФМСИДОРОВО","Метро","Железнодорожный"]
["ФМСИДОРОВО'Метро'Зеленоград'","ФМСИДОРОВО","Метро","Зеленоград"]
["ФМСИДОРОВО'Метро'Иваново'2","ФМСИДОРОВО","Метро","Иваново",null,null,2,1]
["ФМСИДОРОВО'Реал'Иваново'2","ФМСИДОРОВО","Реал","Иваново",null,null,2,1]
["ФМСИДОРОВО'Ашан'Казань'4","ФМСИДОРОВО","Ашан","Казань",null,null,4,2]
["ФМСИДОРОВО'ГиперГлобус'Московская обл.'","ФМСИДОРОВО","ГиперГлобус","Московская обл."]
["ФМСИДОРОВО'Дикси'Москва'","ФМСИДОРОВО","Дикси","Москва"]
["ФМСИДОРОВО'Дикси'Московская обл.'","ФМСИДОРОВО","Дикси","Московская обл."]
["ФМСИДОРОВО'Дикси'Санкт-Петербург'","ФМСИДОРОВО","Дикси","Санкт-Петербург"]
["ФМСИДОРОВО'Дикси'Ярославль'","ФМСИДОРОВО","Дикси","Ярославль"]
["ФМСИДОРОВО'Дикси'Челябинск'","ФМСИДОРОВО","Дикси","Челябинск"]
["ФМСИДОРОВО'Карусель'Москва'","ФМСИДОРОВО","Карусель","Москва"]
[{"$f":"B195&\"'\"&C195&\"'\"&D195&\"'\"&G195","v":"ФМСИДОРОВО'Карусель'Московская обл.'"},"ФМСИДОРОВО","Карусель","Московская обл."]
["ФМСИДОРОВО'Лента'Московская обл.'","ФМСИДОРОВО","Лента","Московская обл."]
["ФМСИДОРОВО'Лента'Санкт-Петербург'","ФМСИДОРОВО","Лента","Санкт-Петербург"]
["ФМСИДОРОВО'Лента'Краснодар'","ФМСИДОРОВО","Лента","Краснодар"]
["ФМСИДОРОВО'Лента'Барнаул'","ФМСИДОРОВО","Лента","Барнаул"]
["ФМСИДОРОВО'Лента'Новосибирск'","ФМСИДОРОВО","Лента","Новосибирск"]
["ФМСИДОРОВО'Лента'Нижний Новгород'","ФМСИДОРОВО","Лента","Нижний Новгород"]
["ФМСИДОРОВО'Лента'Омск'","ФМСИДОРОВО","Лента","Омск"]
["ФМСИДОРОВО'Лента'Ульяновск'","ФМСИДОРОВО","Лента","Ульяновск"]
["ФМСИДОРОВО'Лента'Пенза'","ФМСИДОРОВО","Лента","Пенза"]
["ФМСИДОРОВО'Лента'Петрозаводск'","ФМСИДОРОВО","Лента","Петрозаводск"]
["ФМСИДОРОВО'Лента'Рязань'","ФМСИДОРОВО","Лента","Рязань"]
["ФМСИДОРОВО'Лента'ВеликийНовгород'","ФМСИДОРОВО","Лента","ВеликийНовгород"]
["ФМСИДОРОВО'Лента'Саратов'","ФМСИДОРОВО","Лента","Саратов"]
["ФМСИДОРОВО'Лента'Тольятти'","ФМСИДОРОВО","Лента","Тольятти"]
["ФМСИДОРОВО'Лента'Тюмень'","ФМСИДОРОВО","Лента","Тюмень"]
["ФМСИДОРОВО'Лента'Астрахань'","ФМСИДОРОВО","Лента","Астрахань"]
["ФМСИДОРОВО'Леруа Мерлен'Москва'","ФМСИДОРОВО","Леруа Мерлен","Москва"]
["ФМСИДОРОВО'Леруа Мерлен'Московская обл.'","ФМСИДОРОВО","Леруа Мерлен","Московская обл."]
["ФМСИДОРОВО'Леруа Мерлен'Санкт-Петербург'","ФМСИДОРОВО","Леруа Мерлен","Санкт-Петербург"]
["ФМСИДОРОВО'Леруа Мерлен'Ростовская обл.'","ФМСИДОРОВО","Леруа Мерлен","Ростовская обл."]
["ФМСИДОРОВО'Леруа Мерлен'Новосибирск'","ФМСИДОРОВО","Леруа Мерлен","Новосибирск"]
["ФМСИДОРОВО'Метро'Казань'4","ФМСИДОРОВО","Метро","Казань",null,null,4,2]
["ФМСИДОРОВО'Реал'Казань'4","ФМСИДОРОВО","Реал","Казань",null,null,4,2]
["ФМСИДОРОВО'Метро'Калининград'","ФМСИДОРОВО","Метро","Калининград"]
["ФМСИДОРОВО'Метро'Калуга'4","ФМСИДОРОВО","Метро","Калуга",null,null,4,1]
["ФМСИДОРОВО'Метро'Кемерово'","ФМСИДОРОВО","Метро","Кемерово"]
["ФМСИДОРОВО'Метро'Киров'","ФМСИДОРОВО","Метро","Киров"]
["ФМСИДОРОВО'Ашан'Краснодар'5","ФМСИДОРОВО","Ашан","Краснодар",null,null,5,2]
["ФМСИДОРОВО'Метро'Краснодар'5","ФМСИДОРОВО","Метро","Краснодар",null,null,5,3]
["ФМСИДОРОВО'Окей'Краснодар'5","ФМСИДОРОВО","Окей","Краснодар",null,null,5,3]
["ФМСИДОРОВО'Метро'Красноярск'3","ФМСИДОРОВО","Метро","Красноярск",null,null,3,9]
["ФМСИДОРОВО'Окей'Красноярск'3","ФМСИДОРОВО","Окей","Красноярск",null,null,3,9]
["ФМСИДОРОВО'Метро'Красноярский край'3","ФМСИДОРОВО","Метро","Красноярский край",null,null,3,9]
["ФМСИДОРОВО'Метро'Курск'2","ФМСИДОРОВО","Метро","Курск",null,null,2,1]
["ФМСИДОРОВО'Ашан'Ленинградская обл.'4","ФМСИДОРОВО","Ашан","Ленинградская обл.",null,null,4,2]
["ФМСИДОРОВО'Окей'Ленинградская обл.'4","ФМСИДОРОВО","Окей","Ленинградская обл.",null,null,4,2]
["ФМСИДОРОВО'Метро'Липецк'3","ФМСИДОРОВО","Метро","Липецк",null,null,3,2]
["ФМСИДОРОВО'Окей'Липецк'3","ФМСИДОРОВО","Окей","Липецк",null,null,3,2]
["ФМСИДОРОВО'Реал'Липецк'3","ФМСИДОРОВО","Реал","Липецк",null,null,3,2]
["ФМСИДОРОВО'Ашан'Москва'","ФМСИДОРОВО","Ашан","Москва"]
["ФМСИДОРОВО'Метро'Москва'","ФМСИДОРОВО","Метро","Москва"]
["ФМСИДОРОВО'Окей'Москва'","ФМСИДОРОВО","Окей","Москва"]
["ФМСИДОРОВО'Реал'Москва'","ФМСИДОРОВО","Реал","Москва"]
["ФМСИДОРОВО'АШАН'Московская обл.'","ФМСИДОРОВО","АШАН","Московская обл."]
["ФМСИДОРОВО'Метро'Московская обл.'","ФМСИДОРОВО","Метро","Московская обл."]
["ФМСИДОРОВО'Окей'Московская обл.'","ФМСИДОРОВО","Окей","Московская обл."]
["ФМСИДОРОВО'Реал'Московская обл.'","ФМСИДОРОВО","Реал","Московская обл."]
["ФМСИДОРОВО'Окей'Мурманск'3","ФМСИДОРОВО","Окей","Мурманск",null,null,3,6]
["ФМСИДОРОВО'Метро'НабережныеЧелны'5","ФМСИДОРОВО","Метро","НабережныеЧелны",null,null,5,3]
["ФМСИДОРОВО'Ашан'Нижний Новгород'3","ФМСИДОРОВО","Ашан","Нижний Новгород",null,null,3,1]
["ФМСИДОРОВО'Метро'Нижний Новгород'3","ФМСИДОРОВО","Метро","Нижний Новгород",null,null,3,1]
["ФМСИДОРОВО'Окей'Нижний Новгород'3","ФМСИДОРОВО","Окей","Нижний Новгород",null,null,3,1]
["ФМСИДОРОВО'Реал'Нижний Новгород'3","ФМСИДОРОВО","Реал","Нижний Новгород",null,null,3,1]
["ФМСИДОРОВО'Метро'Новокузнецк'3","ФМСИДОРОВО","Метро","Новокузнецк",null,null,3,9]
["ФМСИДОРОВО'Ашан'Новосибирск'1","ФМСИДОРОВО","Ашан","Новосибирск",null,null,1,7]
["ФМСИДОРОВО'Ашан'Новосибирск'5","ФМСИДОРОВО","Ашан","Новосибирск",null,null,5,7]
["ФМСИДОРОВО'Метро'Новосибирск'2","ФМСИДОРОВО","Метро","Новосибирск",null,null,2,8]
["ФМСИДОРОВО'Окей'Новочеркасск'","ФМСИДОРОВО","Окей","Новочеркасск"]
["ФМСИДОРОВО'Ашан'Омск'2","ФМСИДОРОВО","Ашан","Омск",null,null,2,6]
["ФМСИДОРОВО'Метро'Омск'2","ФМСИДОРОВО","Метро","Омск",null,null,2,6]
["ФМСИДОРОВО'Метро'Оренбург'2","ФМСИДОРОВО","Метро","Оренбург",null,null,2,6]
["ФМСИДОРОВО'Ашан'Пенза'3","ФМСИДОРОВО","Ашан","Пенза",null,null,3,2]
["ФМСИДОРОВО'Метро'Пензенская обл.'3","ФМСИДОРОВО","Метро","Пензенская обл.",null,null,3,2]
[{"$f":"B259&\"'\"&C259&\"'\"&D259&\"'\"&G259","v":"ФМСИДОРОВО'Метро'Пермь'2"},"ФМСИДОРОВО","Метро","Пермь",null,null,2,6]
["ФМСИДОРОВО'Метро'Пятигорск'","ФМСИДОРОВО","Метро","Пятигорск"]
["ФМСИДОРОВО'Ашан'респ.Адыгея'","ФМСИДОРОВО","Ашан","респ.Адыгея"]
["ФМСИДОРОВО'Метро'Ростов-на-Дону'4","ФМСИДОРОВО","Метро","Ростов-на-Дону",null,null,4,2]
["ФМСИДОРОВО'Окей'Ростов-на-Дону'4","ФМСИДОРОВО","Окей","Ростов-на-Дону",null,null,4,2]
["ФМСИДОРОВО'Реал'Ростов-на-Дону'4","ФМСИДОРОВО","Реал","Ростов-на-Дону",null,null,4,2]
["ФМСИДОРОВО'Ашан'Ростовская обл.'4","ФМСИДОРОВО","Ашан","Ростовская обл.",null,null,4,2]
["ФМСИДОРОВО'Ашан'Ростовская обл.'6","ФМСИДОРОВО","Ашан","Ростовская обл.",null,null,6,2]
["ФМСИДОРОВО'Ашан'Ростовская обл.'3","ФМСИДОРОВО","Ашан","Ростовская обл.",null,null,3,2]
["ФМСИДОРОВО'Метро'Рязань'2","ФМСИДОРОВО","Метро","Рязань",null,null,2,1]
["ФМСИДОРОВО'Ашан'Самара'3","ФМСИДОРОВО","Ашан","Самара",null,null,3,2]
["ФМСИДОРОВО'Ашан'Самара'5","ФМСИДОРОВО","Ашан","Самара",null,null,5,2]
["ФМСИДОРОВО'Метро'Самара'5","ФМСИДОРОВО","Метро","Самара",null,null,5,2]
["ФМСИДОРОВО'Ашан'Санкт-Петербург'6","ФМСИДОРОВО","Ашан","Санкт-Петербург",null,null,6,1]
["ФМСИДОРОВО'Ашан'Санкт-Петербург'4","ФМСИДОРОВО","Ашан","Санкт-Петербург",null,null,4,1]
["ФМСИДОРОВО'Ашан'Санкт-Петербург'3","ФМСИДОРОВО","Ашан","Санкт-Петербург",null,null,3,1]
["ФМСИДОРОВО'Метро'Санкт-Петербург'4","ФМСИДОРОВО","Метро","Санкт-Петербург",null,null,4,2]
["ФМСИДОРОВО'Окей'Санкт-Петербург'4","ФМСИДОРОВО","Окей","Санкт-Петербург",null,null,4,2]
["ФМСИДОРОВО'Реал'Санкт-Петербург'4","ФМСИДОРОВО","Реал","Санкт-Петербург",null,null,4,2]
["ФМСИДОРОВО'Метро'Саратов'4","ФМСИДОРОВО","Метро","Саратов",null,null,4,3]
["ФМСИДОРОВО'Реал'Саратов'4","ФМСИДОРОВО","Реал","Саратов",null,null,4,3]
["ФМСИДОРОВО'Метро'Ставрополь'5","ФМСИДОРОВО","Метро","Ставрополь",null,null,5,3]
["ФМСИДОРОВО'Окей'Ставрополь'5","ФМСИДОРОВО","Окей","Ставрополь",null,null,5,3]
["ФМСИДОРОВО'Реал'Тамбов'3","ФМСИДОРОВО","Реал","Тамбов",null,null,3,1]
["ФМСИДОРОВО'Метро'Тверь'4","ФМСИДОРОВО","Метро","Тверь",null,null,4,1]
["ФМСИДОРОВО'Метро'Тольятти'5","ФМСИДОРОВО","Метро","Тольятти",null,null,5,2]
["ФМСИДОРОВО'Окей'Тольятти'5","ФМСИДОРОВО","Окей","Тольятти",null,null,5,2]
["ФМСИДОРОВО'Реал'Тольятти'5","ФМСИДОРОВО","Реал","Тольятти",null,null,5,2]
["ФМСИДОРОВО'Метро'Томск'","ФМСИДОРОВО","Метро","Томск"]
["ФМСИДОРОВО'Метро'Тульская обл.'2","ФМСИДОРОВО","Метро","Тульская обл.",null,null,2,1]
["ФМСИДОРОВО'Метро'Тюмень'2","ФМСИДОРОВО","Метро","Тюмень",null,null,2,6]
["ФМСИДОРОВО'Метро'Ульяновск'4","ФМСИДОРОВО","Метро","Ульяновск",null,null,4,1]
["ФМСИДОРОВО'Метро'Уфа'2","ФМСИДОРОВО","Метро","Уфа",null,null,2,6]
["ФМСИДОРОВО'Окей'Уфа'2","ФМСИДОРОВО","Окей","Уфа",null,null,2,6]
["ФМСИДОРОВО'Метро'Челябинская обл.'2","ФМСИДОРОВО","Метро","Челябинская обл.",null,null,2,6]
["ФМСИДОРОВО'Метро'Ярославль'5","ФМСИДОРОВО","Метро","Ярославль",null,null,5,1]
["ФМСИДОРОВО'Реал'Ярославль'5","ФМСИДОРОВО","Реал","Ярославль",null,null,5,1]
["ФМСИДОРОВО'Реал'Ярославская обл.'5","ФМСИДОРОВО","Реал","Ярославская обл.",null,null,5,1]
["ФМСИДОРОВО'Рив Гош'Москва'","ФМСИДОРОВО","Рив Гош","Москва"]
["ФМСИДОРОВО'Рив Гош'Московская обл.'","ФМСИДОРОВО","Рив Гош","Московская обл."]
["ФМСИДОРОВО'Рив Гош'Санкт-Петербург'","ФМСИДОРОВО","Рив Гош","Санкт-Петербург"]
["ФМСИДОРОВО'Седьмой Континент'Москва'","ФМСИДОРОВО","Седьмой Континент","Москва"]
["ФМСИДОРОВО'Седьмой Континент'Московская обл.'","ФМСИДОРОВО","Седьмой Континент","Московская обл."]
["ФМСИДОРОВО'Седьмой Континент'Санкт-Петербург'","ФМСИДОРОВО","Седьмой Континент","Санкт-Петербург"]
["ФМСИДОРОВО'Седьмой Континент'Ярославль'","ФМСИДОРОВО","Седьмой Континент","Ярославль"]
["ФМСИДОРОВО'Седьмой Континент'Белгород'","ФМСИДОРОВО","Седьмой Континент","Белгород"]
["ФМСИДОРОВО'Седьмой Континент'Балашиха'","ФМСИДОРОВО","Седьмой Континент","Балашиха"]
["ФМСИДОРОВО'Седьмой Континент'Пермь'","ФМСИДОРОВО","Седьмой Континент","Пермь"]
["ФМСИДОРОВО'Седьмой Континент'Рязань'","ФМСИДОРОВО","Седьмой Континент","Рязань"]
["ФМСИДОРОВО'Седьмой Континент'Зеленоград'","ФМСИДОРОВО","Седьмой Континент","Зеленоград"]
["ФМСИДОРОВО'ТД Перекресток'Ярославль'","ФМСИДОРОВО","ТД Перекресток","Ярославль"]
["ФМСИДОРОВО'ТД Перекресток'Челябинск'","ФМСИДОРОВО","ТД Перекресток","Челябинск"]
["ФМСИДОРОВО'ТД Перекресток 'Москва'","ФМСИДОРОВО","ТД Перекресток ","Москва"]
["ФМСИДОРОВО'ТД Перекресток 'Московская обл.'","ФМСИДОРОВО","ТД Перекресток ","Московская обл."]
["ФМСИДОРОВО'ТД Перекресток 'Санкт-Петербург'","ФМСИДОРОВО","ТД Перекресток ","Санкт-Петербург"]
["ФМСИДОРОВО'ТД Перекресток 'Ленинградская обл.'","ФМСИДОРОВО","ТД Перекресток ","Ленинградская обл."]
["ФМСИДОРОВО'ТД Перекресток 'Екатеринбург'","ФМСИДОРОВО","ТД Перекресток ","Екатеринбург"]
["ФМСИДОРОВО'ТД Перекресток 'Ростовская обл.'","ФМСИДОРОВО","ТД Перекресток ","Ростовская обл."]
["ФМСИДОРОВО'ТД Перекресток 'Воронежская обл.'","ФМСИДОРОВО","ТД Перекресток ","Воронежская обл."]
["ФМСИДОРОВО'ТД Перекресток 'Тюмень'","ФМСИДОРОВО","ТД Перекресток ","Тюмень"]
["ФМСИДОРОВО'ТД Перекресток 'Ижевск'","ФМСИДОРОВО","ТД Перекресток ","Ижевск"]
["ФМСИДОРОВО'ТД Перекресток 'Казань'","ФМСИДОРОВО","ТД Перекресток ","Казань"]
["ФМСИДОРОВО'ТД Перекресток 'Бронницы'","ФМСИДОРОВО","ТД Перекресток ","Бронницы"]
["ФМСИДОРОВО'ТД Перекресток 'СтарыйОскол'","ФМСИДОРОВО","ТД Перекресток ","СтарыйОскол"]
[{"$f":"B323&\"'\"&C323&\"'\"&D323&\"'\"&G323","v":"ФМСИДОРОВО'ТД Перекресток 'Ростов-на-Дону'"},"ФМСИДОРОВО","ТД Перекресток ","Ростов-на-Дону"]
["ФМСИДОРОВО'ТД Перекресток 'Выборг'","ФМСИДОРОВО","ТД Перекресток ","Выборг"]
["ФМСИДОРОВО'ТД Перекресток 'Самара'","ФМСИДОРОВО","ТД Перекресток ","Самара"]
["ФМСИДОРОВО'ТД Перекресток 'Самарскаяобл.'","ФМСИДОРОВО","ТД Перекресток ","Самарскаяобл."]
["ФМХИМКИ'Дикси'Челябинск'7","ФМХИМКИ","Дикси","Челябинск",null,{"$f":"B327&\"'\"&C327&\"'\"&D327","v":"ФМХИМКИ'Дикси'Челябинск"},7,3,4]

{"sheet":"Ref","index":3,"n_rows":18,"n_cols":4,"rows_kept":18,"cut":false,"hidden":true,"merged":[]}
["Обновление списка адресов"]
[1,"в отдельном файле - выгрузить адреса и составить список сетей/прочих адресов"]
[null,"вставить  в  J:J и обновить границы диапазона Retail"]
[]
[2,"собрать сисписок Ритейлеров и их городов. ОТСОРТИРОВАТЬ ПО Ритейлеру"]
[null,"заменить Пушкино и т.п. на Московскую обл. + убрать \"г.\" через таблицу подстановки"]
["city","добавить номер в списке сортировки и отсортировать по нему после Ритейлера"]
[null,"вставить в N:M и обновить границы диапазона City"]
[]
[]
[]
[]
[]
[]
[]
[]
[]
[null,"unloadsearch",null,"для расшифровки назв+ адреса сети и её вывода на лист \"Печатная форма\"(заявка)"]

{"sheet":"паллетн.этикетки","index":4,"n_rows":20,"n_cols":1,"rows_kept":20,"cut":false,"hidden":false,"merged":[]}
["                      Паллетная этикетка"]
["Наименование \nЗаказчика:"]
["Номер накладной:"]
["Номер Заказчика в системе Грузополучателя \n(номер поставщика):"]
[]
["Номер заказа Грузополучателя:"]
[]
["Порядковый номер паллеты с указанным номером заказа:"]
[]
["Общее кол-во паллет с указанным номером заказа:"]
[]
["Дата приемки продукции\nГрузополучателем:"]
[]
["Время приемки продукции\nГрузополучателем:"]
[]
["Наименование \nГрузополучателя:"]
[]
["Город Грузополучателя:"]
[]
["Адрес грузополучателя:"]

{"sheet":"Order Input","index":5,"n_rows":286,"n_cols":31,"rows_kept":286,"cut":false,"hidden":false,"merged":[]}
[null,null,{"$f":"C4","v":"Заказчик"},{"$f":"D4","v":"место загрузки"},"дата заказа","дата отправки","время отправки","адрес доставки","дата приёмки грузополучателем","время приёмки грузополучателем","Unloading name","Unloading search name","Unloading city","Unloading address","№ заказа","Вес (брутто), кг","Тип кузова","Кол-во","Комментарии","Тип паллет","Сервис","дата привоза на ФМ Ложистик"]
["Source",null,18,4,1,3,5,19,10,11,null,19,null,null,2,12,13,14,17,15,16,20]
[null,null,null,null,null,null,null,null,null,null,"Hidden","Hidden","Hidden","Hidden"]
["номер заказа","расписание","Заказчик","место загрузки","дата заказа","дата отправки","время отправки","адрес доставки","дата приёмки грузополучателем","время приёмки грузополучателем","Unloading name","Unloading search name","Unloading city","Unloading address","№ заказа","Вес (брутто), кг","Тип кузова","Кол-во","Комментарии","Тип паллет","Сервис","дата привоза на ФМ Ложистик"]
[{"$f":"IF(LEN(O5)>70,\"з\",\"\")","v":""},{"$f":"IF(OR(D5=\"фмхимки\",D5=\"фмсидорово\"),IF((I5-F5)=AE5,\"\",\"x\"),\"\")","v":""},null,null,null,null,null,null,null,null,null,null,null,null,null,null,null,null,null,null,null,null,null,{"$f":"C5&D5&E5&F5&G5&H5&I5&J5&O5&P5&Q5&R5&S5&T5&U5&V5","v":""},{"$f":"IF(X5=\"\",\"\",IF(COUNTIF($X$5:$X5,$X5)>1,1,\"\"))","v":""},null,{"$f":"IF(H5=\"\",\"\",VLOOKUP(H5,unloadSearch,2,0))","v":""},{"$f":"IF(H5=\"\",\"\",VLOOKUP(H5,unloadSearch,4,0))","v":""},{"$f":"IF(H5=\"\",\"\",VLOOKUP(H5,unloadSearch,3,0))","v":""},{"$f":"D5&\"'\"&AA5&\"'\"&AB5&\"'\"&WEEKDAY(I5,2)","v":"'''6"},{"$f":"IF(ISERROR(VLOOKUP(AD5,Schedule!A:H,8,0)),0,(VLOOKUP(AD5,Schedule!A:H,8,0)))","v":0}]
[{"$f":"IF(LEN(O6)>70,\"з\",\"\")","v":""},{"$f":"IF(OR(D6=\"фмхимки\",D6=\"фмсидорово\"),IF((I6-F6)=AE6,\"\",\"x\"),\"\")","v":""},null,null,null,null,null,null,null,null,null,null,null,null,null,null,null,null,null,null,null,null,null,{"$f":"C6&D6&E6&F6&G6&H6&I6&J6&O6&P6&Q6&R6&S6&T6&U6&V6","v":""},{"$f":"IF(X6=\"\",\"\",IF(COUNTIF($X$5:$X6,$X6)>1,1,\"\"))","v":""},null,"","","",{"$f":"D6&\"'\"&AA6&\"'\"&AB6&\"'\"&WEEKDAY(I6,2)","v":"'''6"},{"$f":"IF(ISERROR(VLOOKUP(AD6,Schedule!A:H,8,0)),0,(VLOOKUP(AD6,Schedule!A:H,8,0)))","v":0}]
["","",null,null,null,null,null,null,null,null,null,null,null,null,null,null,null,null,null,null,null,null,null,"",{"$f":"IF(X7=\"\",\"\",IF(COUNTIF($X$5:$X7,$X7)>1,1,\"\"))","v":""},null,"","","","'''6",{"$f":"IF(ISERROR(VLOOKUP(AD7,Schedule!A:H,8,0)),0,(VLOOKUP(AD7,Schedule!A:H,8,0)))","v":0}]
["","",null,null,null,null,null,null,null,null,null,null,null,null,null,null,null,null,null,null,null,null,null,"",{"$f":"IF(X8=\"\",\"\",IF(COUNTIF($X$5:$X8,$X8)>1,1,\"\"))","v":""},null,"","","","'''6",{"$f":"IF(ISERROR(VLOOKUP(AD8,Schedule!A:H,8,0)),0,(VLOOKUP(AD8,Schedule!A:H,8,0)))","v":0}]
["","",null,null,null,null,null,null,null,null,null,null,null,null,null,null,null,null,null,null,null,null,null,"",{"$f":"IF(X9=\"\",\"\",IF(COUNTIF($X$5:$X9,$X9)>1,1,\"\"))","v":""},null,"","","","'''6",{"$f":"IF(ISERROR(VLOOKUP(AD9,Schedule!A:H,8,0)),0,(VLOOKUP(AD9,Schedule!A:H,8,0)))","v":0}]
["","",null,null,null,null,null,null,null,null,null,null,null,null,null,null,null,null,null,null,null,null,null,"",{"$f":"IF(X10=\"\",\"\",IF(COUNTIF($X$5:$X10,$X10)>1,1,\"\"))","v":""},null,"","","","'''6",{"$f":"IF(ISERROR(VLOOKUP(AD10,Schedule!A:H,8,0)),0,(VLOOKUP(AD10,Schedule!A:H,8,0)))","v":0}]
["","",null,null,null,null,null,null,null,null,null,null,null,null,null,null,null,null,null,null,null,null,null,"",{"$f":"IF(X11=\"\",\"\",IF(COUNTIF($X$5:$X11,$X11)>1,1,\"\"))","v":""},null,"","","","'''6",{"$f":"IF(ISERROR(VLOOKUP(AD11,Schedule!A:H,8,0)),0,(VLOOKUP(AD11,Schedule!A:H,8,0)))","v":0}]
["","",null,null,null,null,null,null,null,null,null,null,null,null,null,null,null,null,null,null,null,null,null,"",{"$f":"IF(X12=\"\",\"\",IF(COUNTIF($X$5:$X12,$X12)>1,1,\"\"))","v":""},null,"","","","'''6",{"$f":"IF(ISERROR(VLOOKUP(AD12,Schedule!A:H,8,0)),0,(VLOOKUP(AD12,Schedule!A:H,8,0)))","v":0}]
["","",null,null,null,null,null,null,null,null,null,null,null,null,null,null,null,null,null,null,null,null,null,"",{"$f":"IF(X13=\"\",\"\",IF(COUNTIF($X$5:$X13,$X13)>1,1,\"\"))","v":""},null,"","","","'''6",{"$f":"IF(ISERROR(VLOOKUP(AD13,Schedule!A:H,8,0)),0,(VLOOKUP(AD13,Schedule!A:H,8,0)))","v":0}]
["","",null,null,null,null,null,null,null,null,null,null,null,null,null,null,null,null,null,null,null,null,null,"",{"$f":"IF(X14=\"\",\"\",IF(COUNTIF($X$5:$X14,$X14)>1,1,\"\"))","v":""},null,"","","","'''6",{"$f":"IF(ISERROR(VLOOKUP(AD14,Schedule!A:H,8,0)),0,(VLOOKUP(AD14,Schedule!A:H,8,0)))","v":0}]
["","",null,null,null,null,null,null,null,null,null,null,null,null,null,null,null,null,null,null,null,null,null,"",{"$f":"IF(X15=\"\",\"\",IF(COUNTIF($X$5:$X15,$X15)>1,1,\"\"))","v":""},null,"","","","'''6",{"$f":"IF(ISERROR(VLOOKUP(AD15,Schedule!A:H,8,0)),0,(VLOOKUP(AD15,Schedule!A:H,8,0)))","v":0}]
["","",null,null,null,null,null,null,null,null,null,null,null,null,null,null,null,null,null,null,null,null,null,"",{"$f":"IF(X16=\"\",\"\",IF(COUNTIF($X$5:$X16,$X16)>1,1,\"\"))","v":""},null,"","","","'''6",{"$f":"IF(ISERROR(VLOOKUP(AD16,Schedule!A:H,8,0)),0,(VLOOKUP(AD16,Schedule!A:H,8,0)))","v":0}]
["","",null,null,null,null,null,null,null,null,null,null,null,null,null,null,null,null,null,null,null,null,null,"",{"$f":"IF(X17=\"\",\"\",IF(COUNTIF($X$5:$X17,$X17)>1,1,\"\"))","v":""},null,"","","","'''6",{"$f":"IF(ISERROR(VLOOKUP(AD17,Schedule!A:H,8,0)),0,(VLOOKUP(AD17,Schedule!A:H,8,0)))","v":0}]
["","",null,null,null,null,null,null,null,null,null,null,null,null,null,null,null,null,null,null,null,null,null,"",{"$f":"IF(X18=\"\",\"\",IF(COUNTIF($X$5:$X18,$X18)>1,1,\"\"))","v":""},null,"","","","'''6",{"$f":"IF(ISERROR(VLOOKUP(AD18,Schedule!A:H,8,0)),0,(VLOOKUP(AD18,Schedule!A:H,8,0)))","v":0}]
["","",null,null,null,null,null,null,null,null,null,null,null,null,null,null,null,null,null,null,null,null,null,"",{"$f":"IF(X19=\"\",\"\",IF(COUNTIF($X$5:$X19,$X19)>1,1,\"\"))","v":""},null,"","","","'''6",{"$f":"IF(ISERROR(VLOOKUP(AD19,Schedule!A:H,8,0)),0,(VLOOKUP(AD19,Schedule!A:H,8,0)))","v":0}]
["","",null,null,null,null,null,null,null,null,null,null,null,null,null,null,null,null,null,null,null,null,null,"",{"$f":"IF(X20=\"\",\"\",IF(COUNTIF($X$5:$X20,$X20)>1,1,\"\"))","v":""},null,"","","","'''6",{"$f":"IF(ISERROR(VLOOKUP(AD20,Schedule!A:H,8,0)),0,(VLOOKUP(AD20,Schedule!A:H,8,0)))","v":0}]
["","",null,null,null,null,null,null,null,null,null,null,null,null,null,null,null,null,null,null,null,null,null,"",{"$f":"IF(X21=\"\",\"\",IF(COUNTIF($X$5:$X21,$X21)>1,1,\"\"))","v":""},null,"","","","'''6",{"$f":"IF(ISERROR(VLOOKUP(AD21,Schedule!A:H,8,0)),0,(VLOOKUP(AD21,Schedule!A:H,8,0)))","v":0}]
["","",null,null,null,null,null,null,null,null,null,null,null,null,null,null,null,null,null,null,null,null,null,"",{"$f":"IF(X22=\"\",\"\",IF(COUNTIF($X$5:$X22,$X22)>1,1,\"\"))","v":""},null,"","","","'''6",{"$f":"IF(ISERROR(VLOOKUP(AD22,Schedule!A:H,8,0)),0,(VLOOKUP(AD22,Schedule!A:H,8,0)))","v":0}]
["","",null,null,null,null,null,null,null,null,null,null,null,null,null,null,null,null,null,null,null,null,null,"",{"$f":"IF(X23=\"\",\"\",IF(COUNTIF($X$5:$X23,$X23)>1,1,\"\"))","v":""},null,"","","","'''6",{"$f":"IF(ISERROR(VLOOKUP(AD23,Schedule!A:H,8,0)),0,(VLOOKUP(AD23,Schedule!A:H,8,0)))","v":0}]
["","",null,null,null,null,null,null,null,null,null,null,null,null,null,null,null,null,null,null,null,null,null,"",{"$f":"IF(X24=\"\",\"\",IF(COUNTIF($X$5:$X24,$X24)>1,1,\"\"))","v":""},null,"","","","'''6",{"$f":"IF(ISERROR(VLOOKUP(AD24,Schedule!A:H,8,0)),0,(VLOOKUP(AD24,Schedule!A:H,8,0)))","v":0}]
["","",null,null,null,null,null,null,null,null,null,null,null,null,null,null,null,null,null,null,null,null,null,"",{"$f":"IF(X25=\"\",\"\",IF(COUNTIF($X$5:$X25,$X25)>1,1,\"\"))","v":""},null,"","","","'''6",{"$f":"IF(ISERROR(VLOOKUP(AD25,Schedule!A:H,8,0)),0,(VLOOKUP(AD25,Schedule!A:H,8,0)))","v":0}]
["","",null,null,null,null,null,null,null,null,null,null,null,null,null,null,null,null,null,null,null,null,null,"",{"$f":"IF(X26=\"\",\"\",IF(COUNTIF($X$5:$X26,$X26)>1,1,\"\"))","v":""},null,"","","","'''6",{"$f":"IF(ISERROR(VLOOKUP(AD26,Schedule!A:H,8,0)),0,(VLOOKUP(AD26,Schedule!A:H,8,0)))","v":0}]
["","",null,null,null,null,null,null,null,null,null,null,null,null,null,null,null,null,null,null,null,null,null,"",{"$f":"IF(X27=\"\",\"\",IF(COUNTIF($X$5:$X27,$X27)>1,1,\"\"))","v":""},null,"","","","'''6",{"$f":"IF(ISERROR(VLOOKUP(AD27,Schedule!A:H,8,0)),0,(VLOOKUP(AD27,Schedule!A:H,8,0)))","v":0}]
["","",null,null,null,null,null,null,null,null,null,null,null,null,null,null,null,null,null,null,null,null,null,"",{"$f":"IF(X28=\"\",\"\",IF(COUNTIF($X$5:$X28,$X28)>1,1,\"\"))","v":""},null,"","","","'''6",{"$f":"IF(ISERROR(VLOOKUP(AD28,Schedule!A:H,8,0)),0,(VLOOKUP(AD28,Schedule!A:H,8,0)))","v":0}]
["","",null,null,null,null,null,null,null,null,null,null,null,null,null,null,null,null,null,null,null,null,null,"",{"$f":"IF(X29=\"\",\"\",IF(COUNTIF($X$5:$X29,$X29)>1,1,\"\"))","v":""},null,"","","","'''6",{"$f":"IF(ISERROR(VLOOKUP(AD29,Schedule!A:H,8,0)),0,(VLOOKUP(AD29,Schedule!A:H,8,0)))","v":0}]
["","",null,null,null,null,null,null,null,null,null,null,null,null,null,null,null,null,null,null,null,null,null,"",{"$f":"IF(X30=\"\",\"\",IF(COUNTIF($X$5:$X30,$X30)>1,1,\"\"))","v":""},null,"","","","'''6",{"$f":"IF(ISERROR(VLOOKUP(AD30,Schedule!A:H,8,0)),0,(VLOOKUP(AD30,Schedule!A:H,8,0)))","v":0}]
["","",null,null,null,null,null,null,null,null,null,null,null,null,null,null,null,null,null,null,null,null,null,"",{"$f":"IF(X31=\"\",\"\",IF(COUNTIF($X$5:$X31,$X31)>1,1,\"\"))","v":""},null,"","","","'''6",{"$f":"IF(ISERROR(VLOOKUP(AD31,Schedule!A:H,8,0)),0,(VLOOKUP(AD31,Schedule!A:H,8,0)))","v":0}]
["","",null,null,null,null,null,null,null,null,null,null,null,null,null,null,null,null,null,null,null,null,null,"",{"$f":"IF(X32=\"\",\"\",IF(COUNTIF($X$5:$X32,$X32)>1,1,\"\"))","v":""},null,"","","","'''6",{"$f":"IF(ISERROR(VLOOKUP(AD32,Schedule!A:H,8,0)),0,(VLOOKUP(AD32,Schedule!A:H,8,0)))","v":0}]
["","",null,null,null,null,null,null,null,null,null,null,null,null,null,null,null,null,null,null,null,null,null,"",{"$f":"IF(X33=\"\",\"\",IF(COUNTIF($X$5:$X33,$X33)>1,1,\"\"))","v":""},null,"","","","'''6",{"$f":"IF(ISERROR(VLOOKUP(AD33,Schedule!A:H,8,0)),0,(VLOOKUP(AD33,Schedule!A:H,8,0)))","v":0}]
["","",null,null,null,null,null,null,null,null,null,null,null,null,null,null,null,null,null,null,null,null,null,"",{"$f":"IF(X34=\"\",\"\",IF(COUNTIF($X$5:$X34,$X34)>1,1,\"\"))","v":""},null,"","","","'''6",{"$f":"IF(ISERROR(VLOOKUP(AD34,Schedule!A:H,8,0)),0,(VLOOKUP(AD34,Schedule!A:H,8,0)))","v":0}]
["","",null,null,null,null,null,null,null,null,null,null,null,null,null,null,null,null,null,null,null,null,null,"",{"$f":"IF(X35=\"\",\"\",IF(COUNTIF($X$5:$X35,$X35)>1,1,\"\"))","v":""},null,"","","","'''6",{"$f":"IF(ISERROR(VLOOKUP(AD35,Schedule!A:H,8,0)),0,(VLOOKUP(AD35,Schedule!A:H,8,0)))","v":0}]
["","",null,null,null,null,null,null,null,null,null,null,null,null,null,null,null,null,null,null,null,null,null,"",{"$f":"IF(X36=\"\",\"\",IF(COUNTIF($X$5:$X36,$X36)>1,1,\"\"))","v":""},null,"","","","'''6",{"$f":"IF(ISERROR(VLOOKUP(AD36,Schedule!A:H,8,0)),0,(VLOOKUP(AD36,Schedule!A:H,8,0)))","v":0}]
["","",null,null,null,null,null,null,null,null,null,null,null,null,null,null,null,null,null,null,null,null,null,"",{"$f":"IF(X37=\"\",\"\",IF(COUNTIF($X$5:$X37,$X37)>1,1,\"\"))","v":""},null,{"$f":"IF(H37=\"\",\"\",VLOOKUP(H37,unloadSearch,2,0))","v":""},{"$f":"IF(H37=\"\",\"\",VLOOKUP(H37,unloadSearch,4,0))","v":""},{"$f":"IF(H37=\"\",\"\",VLOOKUP(H37,unloadSearch,3,0))","v":""},"'''6",{"$f":"IF(ISERROR(VLOOKUP(AD37,Schedule!A:H,8,0)),0,(VLOOKUP(AD37,Schedule!A:H,8,0)))","v":0}]
["","",null,null,null,null,null,null,null,null,null,null,null,null,null,null,null,null,null,null,null,null,null,"",{"$f":"IF(X38=\"\",\"\",IF(COUNTIF($X$5:$X38,$X38)>1,1,\"\"))","v":""},null,"","","","'''6",{"$f":"IF(ISERROR(VLOOKUP(AD38,Schedule!A:H,8,0)),0,(VLOOKUP(AD38,Schedule!A:H,8,0)))","v":0}]
["","",null,null,null,null,null,null,null,null,null,null,null,null,null,null,null,null,null,null,null,null,null,"",{"$f":"IF(X39=\"\",\"\",IF(COUNTIF($X$5:$X39,$X39)>1,1,\"\"))","v":""},null,"","","","'''6",{"$f":"IF(ISERROR(VLOOKUP(AD39,Schedule!A:H,8,0)),0,(VLOOKUP(AD39,Schedule!A:H,8,0)))","v":0}]
["","",null,null,null,null,null,null,null,null,null,null,null,null,null,null,null,null,null,null,null,null,null,"",{"$f":"IF(X40=\"\",\"\",IF(COUNTIF($X$5:$X40,$X40)>1,1,\"\"))","v":""},null,"","","","'''6",{"$f":"IF(ISERROR(VLOOKUP(AD40,Schedule!A:H,8,0)),0,(VLOOKUP(AD40,Schedule!A:H,8,0)))","v":0}]
["","",null,null,null,null,null,null,null,null,null,null,null,null,null,null,null,null,null,null,null,null,null,"",{"$f":"IF(X41=\"\",\"\",IF(COUNTIF($X$5:$X41,$X41)>1,1,\"\"))","v":""},null,"","","","'''6",{"$f":"IF(ISERROR(VLOOKUP(AD41,Schedule!A:H,8,0)),0,(VLOOKUP(AD41,Schedule!A:H,8,0)))","v":0}]
["","",null,null,null,null,null,null,null,null,null,null,null,null,null,null,null,null,null,null,null,null,null,"",{"$f":"IF(X42=\"\",\"\",IF(COUNTIF($X$5:$X42,$X42)>1,1,\"\"))","v":""},null,"","","","'''6",{"$f":"IF(ISERROR(VLOOKUP(AD42,Schedule!A:H,8,0)),0,(VLOOKUP(AD42,Schedule!A:H,8,0)))","v":0}]
["","",null,null,null,null,null,null,null,null,null,null,null,null,null,null,null,null,null,null,null,null,null,"",{"$f":"IF(X43=\"\",\"\",IF(COUNTIF($X$5:$X43,$X43)>1,1,\"\"))","v":""},null,"","","","'''6",{"$f":"IF(ISERROR(VLOOKUP(AD43,Schedule!A:H,8,0)),0,(VLOOKUP(AD43,Schedule!A:H,8,0)))","v":0}]
["","",null,null,null,null,null,null,null,null,null,null,null,null,null,null,null,null,null,null,null,null,null,"",{"$f":"IF(X44=\"\",\"\",IF(COUNTIF($X$5:$X44,$X44)>1,1,\"\"))","v":""},null,"","","","'''6",{"$f":"IF(ISERROR(VLOOKUP(AD44,Schedule!A:H,8,0)),0,(VLOOKUP(AD44,Schedule!A:H,8,0)))","v":0}]
["","",null,null,null,null,null,null,null,null,null,null,null,null,null,null,null,null,null,null,null,null,null,"",{"$f":"IF(X45=\"\",\"\",IF(COUNTIF($X$5:$X45,$X45)>1,1,\"\"))","v":""},null,"","","","'''6",{"$f":"IF(ISERROR(VLOOKUP(AD45,Schedule!A:H,8,0)),0,(VLOOKUP(AD45,Schedule!A:H,8,0)))","v":0}]
["","",null,null,null,null,null,null,null,null,null,null,null,null,null,null,null,null,null,null,null,null,null,"",{"$f":"IF(X46=\"\",\"\",IF(COUNTIF($X$5:$X46,$X46)>1,1,\"\"))","v":""},null,"","","","'''6",{"$f":"IF(ISERROR(VLOOKUP(AD46,Schedule!A:H,8,0)),0,(VLOOKUP(AD46,Schedule!A:H,8,0)))","v":0}]
["","",null,null,null,null,null,null,null,null,null,null,null,null,null,null,null,null,null,null,null,null,null,"",{"$f":"IF(X47=\"\",\"\",IF(COUNTIF($X$5:$X47,$X47)>1,1,\"\"))","v":""},null,"","","","'''6",{"$f":"IF(ISERROR(VLOOKUP(AD47,Schedule!A:H,8,0)),0,(VLOOKUP(AD47,Schedule!A:H,8,0)))","v":0}]
["","",null,null,null,null,null,null,null,null,null,null,null,null,null,null,null,null,null,null,null,null,null,"",{"$f":"IF(X48=\"\",\"\",IF(COUNTIF($X$5:$X48,$X48)>1,1,\"\"))","v":""},null,"","","","'''6",{"$f":"IF(ISERROR(VLOOKUP(AD48,Schedule!A:H,8,0)),0,(VLOOKUP(AD48,Schedule!A:H,8,0)))","v":0}]
["","",null,null,null,null,null,null,null,null,null,null,null,null,null,null,null,null,null,null,null,null,null,"",{"$f":"IF(X49=\"\",\"\",IF(COUNTIF($X$5:$X49,$X49)>1,1,\"\"))","v":""},null,"","","","'''6",{"$f":"IF(ISERROR(VLOOKUP(AD49,Schedule!A:H,8,0)),0,(VLOOKUP(AD49,Schedule!A:H,8,0)))","v":0}]
["","",null,null,null,null,null,null,null,null,null,null,null,null,null,null,null,null,null,null,null,null,null,"",{"$f":"IF(X50=\"\",\"\",IF(COUNTIF($X$5:$X50,$X50)>1,1,\"\"))","v":""},null,"","","","'''6",{"$f":"IF(ISERROR(VLOOKUP(AD50,Schedule!A:H,8,0)),0,(VLOOKUP(AD50,Schedule!A:H,8,0)))","v":0}]
["","",null,null,null,null,null,null,null,null,null,null,null,null,null,null,null,null,null,null,null,null,null,"",{"$f":"IF(X51=\"\",\"\",IF(COUNTIF($X$5:$X51,$X51)>1,1,\"\"))","v":""},null,"","","","'''6",{"$f":"IF(ISERROR(VLOOKUP(AD51,Schedule!A:H,8,0)),0,(VLOOKUP(AD51,Schedule!A:H,8,0)))","v":0}]
["","",null,null,null,null,null,null,null,null,null,null,null,null,null,null,null,null,null,null,null,null,null,"",{"$f":"IF(X52=\"\",\"\",IF(COUNTIF($X$5:$X52,$X52)>1,1,\"\"))","v":""},null,"","","","'''6",{"$f":"IF(ISERROR(VLOOKUP(AD52,Schedule!A:H,8,0)),0,(VLOOKUP(AD52,Schedule!A:H,8,0)))","v":0}]
["","",null,null,null,null,null,null,null,null,null,null,null,null,null,null,null,null,null,null,null,null,null,"",{"$f":"IF(X53=\"\",\"\",IF(COUNTIF($X$5:$X53,$X53)>1,1,\"\"))","v":""},null,"","","","'''6",{"$f":"IF(ISERROR(VLOOKUP(AD53,Schedule!A:H,8,0)),0,(VLOOKUP(AD53,Schedule!A:H,8,0)))","v":0}]
["","",null,null,null,null,null,null,null,null,null,null,null,null,null,null,null,null,null,null,null,null,null,"",{"$f":"IF(X54=\"\",\"\",IF(COUNTIF($X$5:$X54,$X54)>1,1,\"\"))","v":""},null,"","","","'''6",{"$f":"IF(ISERROR(VLOOKUP(AD54,Schedule!A:H,8,0)),0,(VLOOKUP(AD54,Schedule!A:H,8,0)))","v":0}]
["","",null,null,null,null,null,null,null,null,null,null,null,null,null,null,null,null,null,null,null,null,null,"",{"$f":"IF(X55=\"\",\"\",IF(COUNTIF($X$5:$X55,$X55)>1,1,\"\"))","v":""},null,"","","","'''6",{"$f":"IF(ISERROR(VLOOKUP(AD55,Schedule!A:H,8,0)),0,(VLOOKUP(AD55,Schedule!A:H,8,0)))","v":0}]
["","",null,null,null,null,null,null,null,null,null,null,null,null,null,null,null,null,null,null,null,null,null,"",{"$f":"IF(X56=\"\",\"\",IF(COUNTIF($X$5:$X56,$X56)>1,1,\"\"))","v":""},null,"","","","'''6",{"$f":"IF(ISERROR(VLOOKUP(AD56,Schedule!A:H,8,0)),0,(VLOOKUP(AD56,Schedule!A:H,8,0)))","v":0}]
["","",null,null,null,null,null,null,null,null,null,null,null,null,null,null,null,null,null,null,null,null,null,"",{"$f":"IF(X57=\"\",\"\",IF(COUNTIF($X$5:$X57,$X57)>1,1,\"\"))","v":""},null,"","","","'''6",{"$f":"IF(ISERROR(VLOOKUP(AD57,Schedule!A:H,8,0)),0,(VLOOKUP(AD57,Schedule!A:H,8,0)))","v":0}]
["","",null,null,null,null,null,null,null,null,null,null,null,null,null,null,null,null,null,null,null,null,null,"",{"$f":"IF(X58=\"\",\"\",IF(COUNTIF($X$5:$X58,$X58)>1,1,\"\"))","v":""},null,"","","","'''6",{"$f":"IF(ISERROR(VLOOKUP(AD58,Schedule!A:H,8,0)),0,(VLOOKUP(AD58,Schedule!A:H,8,0)))","v":0}]
["","",null,null,null,null,null,null,null,null,null,null,null,null,null,null,null,null,null,null,null,null,null,"",{"$f":"IF(X59=\"\",\"\",IF(COUNTIF($X$5:$X59,$X59)>1,1,\"\"))","v":""},null,"","","","'''6",{"$f":"IF(ISERROR(VLOOKUP(AD59,Schedule!A:H,8,0)),0,(VLOOKUP(AD59,Schedule!A:H,8,0)))","v":0}]
["","",null,null,null,null,null,null,null,null,null,null,null,null,null,null,null,null,null,null,null,null,null,"",{"$f":"IF(X60=\"\",\"\",IF(COUNTIF($X$5:$X60,$X60)>1,1,\"\"))","v":""},null,"","","","'''6",{"$f":"IF(ISERROR(VLOOKUP(AD60,Schedule!A:H,8,0)),0,(VLOOKUP(AD60,Schedule!A:H,8,0)))","v":0}]
["","",null,null,null,null,null,null,null,null,null,null,null,null,null,null,null,null,null,null,null,null,null,"",{"$f":"IF(X61=\"\",\"\",IF(COUNTIF($X$5:$X61,$X61)>1,1,\"\"))","v":""},null,"","","","'''6",{"$f":"IF(ISERROR(VLOOKUP(AD61,Schedule!A:H,8,0)),0,(VLOOKUP(AD61,Schedule!A:H,8,0)))","v":0}]
["","",null,null,null,null,null,null,null,null,null,null,null,null,null,null,null,null,null,null,null,null,null,"",{"$f":"IF(X62=\"\",\"\",IF(COUNTIF($X$5:$X62,$X62)>1,1,\"\"))","v":""},null,"","","","'''6",{"$f":"IF(ISERROR(VLOOKUP(AD62,Schedule!A:H,8,0)),0,(VLOOKUP(AD62,Schedule!A:H,8,0)))","v":0}]
["","",null,null,null,null,null,null,null,null,null,null,null,null,null,null,null,null,null,null,null,null,null,"",{"$f":"IF(X63=\"\",\"\",IF(COUNTIF($X$5:$X63,$X63)>1,1,\"\"))","v":""},null,"","","","'''6",{"$f":"IF(ISERROR(VLOOKUP(AD63,Schedule!A:H,8,0)),0,(VLOOKUP(AD63,Schedule!A:H,8,0)))","v":0}]
["","",null,null,null,null,null,null,null,null,null,null,null,null,null,null,null,null,null,null,null,null,null,"",{"$f":"IF(X64=\"\",\"\",IF(COUNTIF($X$5:$X64,$X64)>1,1,\"\"))","v":""},null,"","","","'''6",{"$f":"IF(ISERROR(VLOOKUP(AD64,Schedule!A:H,8,0)),0,(VLOOKUP(AD64,Schedule!A:H,8,0)))","v":0}]
["","",null,null,null,null,null,null,null,null,null,null,null,null,null,null,null,null,null,null,null,null,null,"",{"$f":"IF(X65=\"\",\"\",IF(COUNTIF($X$5:$X65,$X65)>1,1,\"\"))","v":""},null,"","","","'''6",{"$f":"IF(ISERROR(VLOOKUP(AD65,Schedule!A:H,8,0)),0,(VLOOKUP(AD65,Schedule!A:H,8,0)))","v":0}]
["","",null,null,null,null,null,null,null,null,null,null,null,null,null,null,null,null,null,null,null,null,null,"",{"$f":"IF(X66=\"\",\"\",IF(COUNTIF($X$5:$X66,$X66)>1,1,\"\"))","v":""},null,"","","","'''6",{"$f":"IF(ISERROR(VLOOKUP(AD66,Schedule!A:H,8,0)),0,(VLOOKUP(AD66,Schedule!A:H,8,0)))","v":0}]
["","",null,null,null,null,null,null,null,null,null,null,null,null,null,null,null,null,null,null,null,null,null,"",{"$f":"IF(X67=\"\",\"\",IF(COUNTIF($X$5:$X67,$X67)>1,1,\"\"))","v":""},null,"","","","'''6",{"$f":"IF(ISERROR(VLOOKUP(AD67,Schedule!A:H,8,0)),0,(VLOOKUP(AD67,Schedule!A:H,8,0)))","v":0}]
["","",null,null,null,null,null,null,null,null,null,null,null,null,null,null,null,null,null,null,null,null,null,"",{"$f":"IF(X68=\"\",\"\",IF(COUNTIF($X$5:$X68,$X68)>1,1,\"\"))","v":""},null,"","","","'''6",{"$f":"IF(ISERROR(VLOOKUP(AD68,Schedule!A:H,8,0)),0,(VLOOKUP(AD68,Schedule!A:H,8,0)))","v":0}]
["","",null,null,null,null,null,null,null,null,null,null,null,null,null,null,null,null,null,null,null,null,null,"",{"$f":"IF(X69=\"\",\"\",IF(COUNTIF($X$5:$X69,$X69)>1,1,\"\"))","v":""},null,{"$f":"IF(H69=\"\",\"\",VLOOKUP(H69,unloadSearch,2,0))","v":""},{"$f":"IF(H69=\"\",\"\",VLOOKUP(H69,unloadSearch,4,0))","v":""},{"$f":"IF(H69=\"\",\"\",VLOOKUP(H69,unloadSearch,3,0))","v":""},"'''6",{"$f":"IF(ISERROR(VLOOKUP(AD69,Schedule!A:H,8,0)),0,(VLOOKUP(AD69,Schedule!A:H,8,0)))","v":0}]
[{"$f":"IF(LEN(O70)>70,\"з\",\"\")","v":""},{"$f":"IF(OR(D70=\"фмхимки\",D70=\"фмсидорово\"),IF((I70-F70)=AE70,\"\",\"x\"),\"\")","v":""},null,null,null,null,null,null,null,null,null,null,null,null,null,null,null,null,null,null,null,null,null,{"$f":"C70&D70&E70&F70&G70&H70&I70&J70&O70&P70&Q70&R70&S70&T70&U70&V70","v":""},{"$f":"IF(X70=\"\",\"\",IF(COUNTIF($X$5:$X70,$X70)>1,1,\"\"))","v":""},null,"","","",{"$f":"D70&\"'\"&AA70&\"'\"&AB70&\"'\"&WEEKDAY(I70,2)","v":"'''6"},{"$f":"IF(ISERROR(VLOOKUP(AD70,Schedule!A:H,8,0)),0,(VLOOKUP(AD70,Schedule!A:H,8,0)))","v":0}]
["","",null,null,null,null,null,null,null,null,null,null,null,null,null,null,null,null,null,null,null,null,null,"",{"$f":"IF(X71=\"\",\"\",IF(COUNTIF($X$5:$X71,$X71)>1,1,\"\"))","v":""},null,"","","","'''6",{"$f":"IF(ISERROR(VLOOKUP(AD71,Schedule!A:H,8,0)),0,(VLOOKUP(AD71,Schedule!A:H,8,0)))","v":0}]
["","",null,null,null,null,null,null,null,null,null,null,null,null,null,null,null,null,null,null,null,null,null,"",{"$f":"IF(X72=\"\",\"\",IF(COUNTIF($X$5:$X72,$X72)>1,1,\"\"))","v":""},null,"","","","'''6",{"$f":"IF(ISERROR(VLOOKUP(AD72,Schedule!A:H,8,0)),0,(VLOOKUP(AD72,Schedule!A:H,8,0)))","v":0}]
["","",null,null,null,null,null,null,null,null,null,null,null,null,null,null,null,null,null,null,null,null,null,"",{"$f":"IF(X73=\"\",\"\",IF(COUNTIF($X$5:$X73,$X73)>1,1,\"\"))","v":""},null,"","","","'''6",{"$f":"IF(ISERROR(VLOOKUP(AD73,Schedule!A:H,8,0)),0,(VLOOKUP(AD73,Schedule!A:H,8,0)))","v":0}]
["","",null,null,null,null,null,null,null,null,null,null,null,null,null,null,null,null,null,null,null,null,null,"",{"$f":"IF(X74=\"\",\"\",IF(COUNTIF($X$5:$X74,$X74)>1,1,\"\"))","v":""},null,"","","","'''6",{"$f":"IF(ISERROR(VLOOKUP(AD74,Schedule!A:H,8,0)),0,(VLOOKUP(AD74,Schedule!A:H,8,0)))","v":0}]
["","",null,null,null,null,null,null,null,null,null,null,null,null,null,null,null,null,null,null,null,null,null,"",{"$f":"IF(X75=\"\",\"\",IF(COUNTIF($X$5:$X75,$X75)>1,1,\"\"))","v":""},null,"","","","'''6",{"$f":"IF(ISERROR(VLOOKUP(AD75,Schedule!A:H,8,0)),0,(VLOOKUP(AD75,Schedule!A:H,8,0)))","v":0}]
["","",null,null,null,null,null,null,null,null,null,null,null,null,null,null,null,null,null,null,null,null,null,"",{"$f":"IF(X76=\"\",\"\",IF(COUNTIF($X$5:$X76,$X76)>1,1,\"\"))","v":""},null,"","","","'''6",{"$f":"IF(ISERROR(VLOOKUP(AD76,Schedule!A:H,8,0)),0,(VLOOKUP(AD76,Schedule!A:H,8,0)))","v":0}]
["","",null,null,null,null,null,null,null,null,null,null,null,null,null,null,null,null,null,null,null,null,null,"",{"$f":"IF(X77=\"\",\"\",IF(COUNTIF($X$5:$X77,$X77)>1,1,\"\"))","v":""},null,"","","","'''6",{"$f":"IF(ISERROR(VLOOKUP(AD77,Schedule!A:H,8,0)),0,(VLOOKUP(AD77,Schedule!A:H,8,0)))","v":0}]
["","",null,null,null,null,null,null,null,null,null,null,null,null,null,null,null,null,null,null,null,null,null,"",{"$f":"IF(X78=\"\",\"\",IF(COUNTIF($X$5:$X78,$X78)>1,1,\"\"))","v":""},null,"","","","'''6",{"$f":"IF(ISERROR(VLOOKUP(AD78,Schedule!A:H,8,0)),0,(VLOOKUP(AD78,Schedule!A:H,8,0)))","v":0}]
["","",null,null,null,null,null,null,null,null,null,null,null,null,null,null,null,null,null,null,null,null,null,"",{"$f":"IF(X79=\"\",\"\",IF(COUNTIF($X$5:$X79,$X79)>1,1,\"\"))","v":""},null,"","","","'''6",{"$f":"IF(ISERROR(VLOOKUP(AD79,Schedule!A:H,8,0)),0,(VLOOKUP(AD79,Schedule!A:H,8,0)))","v":0}]
["","",null,null,null,null,null,null,null,null,null,null,null,null,null,null,null,null,null,null,null,null,null,"",{"$f":"IF(X80=\"\",\"\",IF(COUNTIF($X$5:$X80,$X80)>1,1,\"\"))","v":""},null,"","","","'''6",{"$f":"IF(ISERROR(VLOOKUP(AD80,Schedule!A:H,8,0)),0,(VLOOKUP(AD80,Schedule!A:H,8,0)))","v":0}]
["","",null,null,null,null,null,null,null,null,null,null,null,null,null,null,null,null,null,null,null,null,null,"",{"$f":"IF(X81=\"\",\"\",IF(COUNTIF($X$5:$X81,$X81)>1,1,\"\"))","v":""},null,"","","","'''6",{"$f":"IF(ISERROR(VLOOKUP(AD81,Schedule!A:H,8,0)),0,(VLOOKUP(AD81,Schedule!A:H,8,0)))","v":0}]
["","",null,null,null,null,null,null,null,null,null,null,null,null,null,null,null,null,null,null,null,null,null,"",{"$f":"IF(X82=\"\",\"\",IF(COUNTIF($X$5:$X82,$X82)>1,1,\"\"))","v":""},null,"","","","'''6",{"$f":"IF(ISERROR(VLOOKUP(AD82,Schedule!A:H,8,0)),0,(VLOOKUP(AD82,Schedule!A:H,8,0)))","v":0}]
["","",null,null,null,null,null,null,null,null,null,null,null,null,null,null,null,null,null,null,null,null,null,"",{"$f":"IF(X83=\"\",\"\",IF(COUNTIF($X$5:$X83,$X83)>1,1,\"\"))","v":""},null,"","","","'''6",{"$f":"IF(ISERROR(VLOOKUP(AD83,Schedule!A:H,8,0)),0,(VLOOKUP(AD83,Schedule!A:H,8,0)))","v":0}]
["","",null,null,null,null,null,null,null,null,null,null,null,null,null,null,null,null,null,null,null,null,null,"",{"$f":"IF(X84=\"\",\"\",IF(COUNTIF($X$5:$X84,$X84)>1,1,\"\"))","v":""},null,"","","","'''6",{"$f":"IF(ISERROR(VLOOKUP(AD84,Schedule!A:H,8,0)),0,(VLOOKUP(AD84,Schedule!A:H,8,0)))","v":0}]
["","",null,null,null,null,null,null,null,null,null,null,null,null,null,null,null,null,null,null,null,null,null,"",{"$f":"IF(X85=\"\",\"\",IF(COUNTIF($X$5:$X85,$X85)>1,1,\"\"))","v":""},null,"","","","'''6",{"$f":"IF(ISERROR(VLOOKUP(AD85,Schedule!A:H,8,0)),0,(VLOOKUP(AD85,Schedule!A:H,8,0)))","v":0}]
["","",null,null,null,null,null,null,null,null,null,null,null,null,null,null,null,null,null,null,null,null,null,"",{"$f":"IF(X86=\"\",\"\",IF(COUNTIF($X$5:$X86,$X86)>1,1,\"\"))","v":""},null,"","","","'''6",{"$f":"IF(ISERROR(VLOOKUP(AD86,Schedule!A:H,8,0)),0,(VLOOKUP(AD86,Schedule!A:H,8,0)))","v":0}]
["","",null,null,null,null,null,null,null,null,null,null,null,null,null,null,null,null,null,null,null,null,null,"",{"$f":"IF(X87=\"\",\"\",IF(COUNTIF($X$5:$X87,$X87)>1,1,\"\"))","v":""},null,"","","","'''6",{"$f":"IF(ISERROR(VLOOKUP(AD87,Schedule!A:H,8,0)),0,(VLOOKUP(AD87,Schedule!A:H,8,0)))","v":0}]
["","",null,null,null,null,null,null,null,null,null,null,null,null,null,null,null,null,null,null,null,null,null,"",{"$f":"IF(X88=\"\",\"\",IF(COUNTIF($X$5:$X88,$X88)>1,1,\"\"))","v":""},null,"","","","'''6",{"$f":"IF(ISERROR(VLOOKUP(AD88,Schedule!A:H,8,0)),0,(VLOOKUP(AD88,Schedule!A:H,8,0)))","v":0}]
["","",null,null,null,null,null,null,null,null,null,null,null,null,null,null,null,null,null,null,null,null,null,"",{"$f":"IF(X89=\"\",\"\",IF(COUNTIF($X$5:$X89,$X89)>1,1,\"\"))","v":""},null,"","","","'''6",{"$f":"IF(ISERROR(VLOOKUP(AD89,Schedule!A:H,8,0)),0,(VLOOKUP(AD89,Schedule!A:H,8,0)))","v":0}]
["","",null,null,null,null,null,null,null,null,null,null,null,null,null,null,null,null,null,null,null,null,null,"",{"$f":"IF(X90=\"\",\"\",IF(COUNTIF($X$5:$X90,$X90)>1,1,\"\"))","v":""},null,"","","","'''6",{"$f":"IF(ISERROR(VLOOKUP(AD90,Schedule!A:H,8,0)),0,(VLOOKUP(AD90,Schedule!A:H,8,0)))","v":0}]
["","",null,null,null,null,null,null,null,null,null,null,null,null,null,null,null,null,null,null,null,null,null,"",{"$f":"IF(X91=\"\",\"\",IF(COUNTIF($X$5:$X91,$X91)>1,1,\"\"))","v":""},null,"","","","'''6",{"$f":"IF(ISERROR(VLOOKUP(AD91,Schedule!A:H,8,0)),0,(VLOOKUP(AD91,Schedule!A:H,8,0)))","v":0}]
["","",null,null,null,null,null,null,null,null,null,null,null,null,null,null,null,null,null,null,null,null,null,"",{"$f":"IF(X92=\"\",\"\",IF(COUNTIF($X$5:$X92,$X92)>1,1,\"\"))","v":""},null,"","","","'''6",{"$f":"IF(ISERROR(VLOOKUP(AD92,Schedule!A:H,8,0)),0,(VLOOKUP(AD92,Schedule!A:H,8,0)))","v":0}]
["","",null,null,null,null,null,null,null,null,null,null,null,null,null,null,null,null,null,null,null,null,null,"",{"$f":"IF(X93=\"\",\"\",IF(COUNTIF($X$5:$X93,$X93)>1,1,\"\"))","v":""},null,"","","","'''6",{"$f":"IF(ISERROR(VLOOKUP(AD93,Schedule!A:H,8,0)),0,(VLOOKUP(AD93,Schedule!A:H,8,0)))","v":0}]
["","",null,null,null,null,null,null,null,null,null,null,null,null,null,null,null,null,null,null,null,null,null,"",{"$f":"IF(X94=\"\",\"\",IF(COUNTIF($X$5:$X94,$X94)>1,1,\"\"))","v":""},null,"","","","'''6",{"$f":"IF(ISERROR(VLOOKUP(AD94,Schedule!A:H,8,0)),0,(VLOOKUP(AD94,Schedule!A:H,8,0)))","v":0}]
["","",null,null,null,null,null,null,null,null,null,null,null,null,null,null,null,null,null,null,null,null,null,"",{"$f":"IF(X95=\"\",\"\",IF(COUNTIF($X$5:$X95,$X95)>1,1,\"\"))","v":""},null,"","","","'''6",{"$f":"IF(ISERROR(VLOOKUP(AD95,Schedule!A:H,8,0)),0,(VLOOKUP(AD95,Schedule!A:H,8,0)))","v":0}]
["","",null,null,null,null,null,null,null,null,null,null,null,null,null,null,null,null,null,null,null,null,null,"",{"$f":"IF(X96=\"\",\"\",IF(COUNTIF($X$5:$X96,$X96)>1,1,\"\"))","v":""},null,"","","","'''6",{"$f":"IF(ISERROR(VLOOKUP(AD96,Schedule!A:H,8,0)),0,(VLOOKUP(AD96,Schedule!A:H,8,0)))","v":0}]
["","",null,null,null,null,null,null,null,null,null,null,null,null,null,null,null,null,null,null,null,null,null,"",{"$f":"IF(X97=\"\",\"\",IF(COUNTIF($X$5:$X97,$X97)>1,1,\"\"))","v":""},null,"","","","'''6",{"$f":"IF(ISERROR(VLOOKUP(AD97,Schedule!A:H,8,0)),0,(VLOOKUP(AD97,Schedule!A:H,8,0)))","v":0}]
["","",null,null,null,null,null,null,null,null,null,null,null,null,null,null,null,null,null,null,null,null,null,"",{"$f":"IF(X98=\"\",\"\",IF(COUNTIF($X$5:$X98,$X98)>1,1,\"\"))","v":""},null,"","","","'''6",{"$f":"IF(ISERROR(VLOOKUP(AD98,Schedule!A:H,8,0)),0,(VLOOKUP(AD98,Schedule!A:H,8,0)))","v":0}]
["","",null,null,null,null,null,null,null,null,null,null,null,null,null,null,null,null,null,null,null,null,null,"",{"$f":"IF(X99=\"\",\"\",IF(COUNTIF($X$5:$X99,$X99)>1,1,\"\"))","v":""},null,"","","","'''6",{"$f":"IF(ISERROR(VLOOKUP(AD99,Schedule!A:H,8,0)),0,(VLOOKUP(AD99,Schedule!A:H,8,0)))","v":0}]
["","",null,null,null,null,null,null,null,null,null,null,null,null,null,null,null,null,null,null,null,null,null,"",{"$f":"IF(X100=\"\",\"\",IF(COUNTIF($X$5:$X100,$X100)>1,1,\"\"))","v":""},null,"","","","'''6",{"$f":"IF(ISERROR(VLOOKUP(AD100,Schedule!A:H,8,0)),0,(VLOOKUP(AD100,Schedule!A:H,8,0)))","v":0}]
["","",null,null,null,null,null,null,null,null,null,null,null,null,null,null,null,null,null,null,null,null,null,"",{"$f":"IF(X101=\"\",\"\",IF(COUNTIF($X$5:$X101,$X101)>1,1,\"\"))","v":""},null,{"$f":"IF(H101=\"\",\"\",VLOOKUP(H101,unloadSearch,2,0))","v":""},{"$f":"IF(H101=\"\",\"\",VLOOKUP(H101,unloadSearch,4,0))","v":""},{"$f":"IF(H101=\"\",\"\",VLOOKUP(H101,unloadSearch,3,0))","v":""},"'''6",{"$f":"IF(ISERROR(VLOOKUP(AD101,Schedule!A:H,8,0)),0,(VLOOKUP(AD101,Schedule!A:H,8,0)))","v":0}]
["","",null,null,null,null,null,null,null,null,null,null,null,null,null,null,null,null,null,null,null,null,null,"",{"$f":"IF(X102=\"\",\"\",IF(COUNTIF($X$5:$X102,$X102)>1,1,\"\"))","v":""},null,"","","","'''6",{"$f":"IF(ISERROR(VLOOKUP(AD102,Schedule!A:H,8,0)),0,(VLOOKUP(AD102,Schedule!A:H,8,0)))","v":0}]
["","",null,null,null,null,null,null,null,null,null,null,null,null,null,null,null,null,null,null,null,null,null,"",{"$f":"IF(X103=\"\",\"\",IF(COUNTIF($X$5:$X103,$X103)>1,1,\"\"))","v":""},null,"","","","'''6",{"$f":"IF(ISERROR(VLOOKUP(AD103,Schedule!A:H,8,0)),0,(VLOOKUP(AD103,Schedule!A:H,8,0)))","v":0}]
["","",null,null,null,null,null,null,null,null,null,null,null,null,null,null,null,null,null,null,null,null,null,"",{"$f":"IF(X104=\"\",\"\",IF(COUNTIF($X$5:$X104,$X104)>1,1,\"\"))","v":""},null,"","","","'''6",{"$f":"IF(ISERROR(VLOOKUP(AD104,Schedule!A:H,8,0)),0,(VLOOKUP(AD104,Schedule!A:H,8,0)))","v":0}]
["","",null,null,null,null,null,null,null,null,null,null,null,null,null,null,null,null,null,null,null,null,null,"",{"$f":"IF(X105=\"\",\"\",IF(COUNTIF($X$5:$X105,$X105)>1,1,\"\"))","v":""},null,"","","","'''6",{"$f":"IF(ISERROR(VLOOKUP(AD105,Schedule!A:H,8,0)),0,(VLOOKUP(AD105,Schedule!A:H,8,0)))","v":0}]
["","",null,null,null,null,null,null,null,null,null,null,null,null,null,null,null,null,null,null,null,null,null,"",{"$f":"IF(X106=\"\",\"\",IF(COUNTIF($X$5:$X106,$X106)>1,1,\"\"))","v":""},null,"","","","'''6",{"$f":"IF(ISERROR(VLOOKUP(AD106,Schedule!A:H,8,0)),0,(VLOOKUP(AD106,Schedule!A:H,8,0)))","v":0}]
["","",null,null,null,null,null,null,null,null,null,null,null,null,null,null,null,null,null,null,null,null,null,"",{"$f":"IF(X107=\"\",\"\",IF(COUNTIF($X$5:$X107,$X107)>1,1,\"\"))","v":""},null,"","","","'''6",{"$f":"IF(ISERROR(VLOOKUP(AD107,Schedule!A:H,8,0)),0,(VLOOKUP(AD107,Schedule!A:H,8,0)))","v":0}]
["","",null,null,null,null,null,null,null,null,null,null,null,null,null,null,null,null,null,null,null,null,null,"",{"$f":"IF(X108=\"\",\"\",IF(COUNTIF($X$5:$X108,$X108)>1,1,\"\"))","v":""},null,"","","","'''6",{"$f":"IF(ISERROR(VLOOKUP(AD108,Schedule!A:H,8,0)),0,(VLOOKUP(AD108,Schedule!A:H,8,0)))","v":0}]
["","",null,null,null,null,null,null,null,null,null,null,null,null,null,null,null,null,null,null,null,null,null,"",{"$f":"IF(X109=\"\",\"\",IF(COUNTIF($X$5:$X109,$X109)>1,1,\"\"))","v":""},null,"","","","'''6",{"$f":"IF(ISERROR(VLOOKUP(AD109,Schedule!A:H,8,0)),0,(VLOOKUP(AD109,Schedule!A:H,8,0)))","v":0}]
["","",null,null,null,null,null,null,null,null,null,null,null,null,null,null,null,null,null,null,null,null,null,"",{"$f":"IF(X110=\"\",\"\",IF(COUNTIF($X$5:$X110,$X110)>1,1,\"\"))","v":""},null,"","","","'''6",{"$f":"IF(ISERROR(VLOOKUP(AD110,Schedule!A:H,8,0)),0,(VLOOKUP(AD110,Schedule!A:H,8,0)))","v":0}]
["","",null,null,null,null,null,null,null,null,null,null,null,null,null,null,null,null,null,null,null,null,null,"",{"$f":"IF(X111=\"\",\"\",IF(COUNTIF($X$5:$X111,$X111)>1,1,\"\"))","v":""},null,"","","","'''6",{"$f":"IF(ISERROR(VLOOKUP(AD111,Schedule!A:H,8,0)),0,(VLOOKUP(AD111,Schedule!A:H,8,0)))","v":0}]
["","",null,null,null,null,null,null,null,null,null,null,null,null,null,null,null,null,null,null,null,null,null,"",{"$f":"IF(X112=\"\",\"\",IF(COUNTIF($X$5:$X112,$X112)>1,1,\"\"))","v":""},null,"","","","'''6",{"$f":"IF(ISERROR(VLOOKUP(AD112,Schedule!A:H,8,0)),0,(VLOOKUP(AD112,Schedule!A:H,8,0)))","v":0}]
["","",null,null,null,null,null,null,null,null,null,null,null,null,null,null,null,null,null,null,null,null,null,"",{"$f":"IF(X113=\"\",\"\",IF(COUNTIF($X$5:$X113,$X113)>1,1,\"\"))","v":""},null,"","","","'''6",{"$f":"IF(ISERROR(VLOOKUP(AD113,Schedule!A:H,8,0)),0,(VLOOKUP(AD113,Schedule!A:H,8,0)))","v":0}]
["","",null,null,null,null,null,null,null,null,null,null,null,null,null,null,null,null,null,null,null,null,null,"",{"$f":"IF(X114=\"\",\"\",IF(COUNTIF($X$5:$X114,$X114)>1,1,\"\"))","v":""},null,"","","","'''6",{"$f":"IF(ISERROR(VLOOKUP(AD114,Schedule!A:H,8,0)),0,(VLOOKUP(AD114,Schedule!A:H,8,0)))","v":0}]
["","",null,null,null,null,null,null,null,null,null,null,null,null,null,null,null,null,null,null,null,null,null,"",{"$f":"IF(X115=\"\",\"\",IF(COUNTIF($X$5:$X115,$X115)>1,1,\"\"))","v":""},null,"","","","'''6",{"$f":"IF(ISERROR(VLOOKUP(AD115,Schedule!A:H,8,0)),0,(VLOOKUP(AD115,Schedule!A:H,8,0)))","v":0}]
["","",null,null,null,null,null,null,null,null,null,null,null,null,null,null,null,null,null,null,null,null,null,"",{"$f":"IF(X116=\"\",\"\",IF(COUNTIF($X$5:$X116,$X116)>1,1,\"\"))","v":""},null,"","","","'''6",{"$f":"IF(ISERROR(VLOOKUP(AD116,Schedule!A:H,8,0)),0,(VLOOKUP(AD116,Schedule!A:H,8,0)))","v":0}]
["","",null,null,null,null,null,null,null,null,null,null,null,null,null,null,null,null,null,null,null,null,null,"",{"$f":"IF(X117=\"\",\"\",IF(COUNTIF($X$5:$X117,$X117)>1,1,\"\"))","v":""},null,"","","","'''6",{"$f":"IF(ISERROR(VLOOKUP(AD117,Schedule!A:H,8,0)),0,(VLOOKUP(AD117,Schedule!A:H,8,0)))","v":0}]
["","",null,null,null,null,null,null,null,null,null,null,null,null,null,null,null,null,null,null,null,null,null,"",{"$f":"IF(X118=\"\",\"\",IF(COUNTIF($X$5:$X118,$X118)>1,1,\"\"))","v":""},null,"","","","'''6",{"$f":"IF(ISERROR(VLOOKUP(AD118,Schedule!A:H,8,0)),0,(VLOOKUP(AD118,Schedule!A:H,8,0)))","v":0}]
["","",null,null,null,null,null,null,null,null,null,null,null,null,null,null,null,null,null,null,null,null,null,"",{"$f":"IF(X119=\"\",\"\",IF(COUNTIF($X$5:$X119,$X119)>1,1,\"\"))","v":""},null,"","","","'''6",{"$f":"IF(ISERROR(VLOOKUP(AD119,Schedule!A:H,8,0)),0,(VLOOKUP(AD119,Schedule!A:H,8,0)))","v":0}]
["","",null,null,null,null,null,null,null,null,null,null,null,null,null,null,null,null,null,null,null,null,null,"",{"$f":"IF(X120=\"\",\"\",IF(COUNTIF($X$5:$X120,$X120)>1,1,\"\"))","v":""},null,"","","","'''6",{"$f":"IF(ISERROR(VLOOKUP(AD120,Schedule!A:H,8,0)),0,(VLOOKUP(AD120,Schedule!A:H,8,0)))","v":0}]
["","",null,null,null,null,null,null,null,null,null,null,null,null,null,null,null,null,null,null,null,null,null,"",{"$f":"IF(X121=\"\",\"\",IF(COUNTIF($X$5:$X121,$X121)>1,1,\"\"))","v":""},null,"","","","'''6",{"$f":"IF(ISERROR(VLOOKUP(AD121,Schedule!A:H,8,0)),0,(VLOOKUP(AD121,Schedule!A:H,8,0)))","v":0}]
["","",null,null,null,null,null,null,null,null,null,null,null,null,null,null,null,null,null,null,null,null,null,"",{"$f":"IF(X122=\"\",\"\",IF(COUNTIF($X$5:$X122,$X122)>1,1,\"\"))","v":""},null,"","","","'''6",{"$f":"IF(ISERROR(VLOOKUP(AD122,Schedule!A:H,8,0)),0,(VLOOKUP(AD122,Schedule!A:H,8,0)))","v":0}]
["","",null,null,null,null,null,null,null,null,null,null,null,null,null,null,null,null,null,null,null,null,null,"",{"$f":"IF(X123=\"\",\"\",IF(COUNTIF($X$5:$X123,$X123)>1,1,\"\"))","v":""},null,"","","","'''6",{"$f":"IF(ISERROR(VLOOKUP(AD123,Schedule!A:H,8,0)),0,(VLOOKUP(AD123,Schedule!A:H,8,0)))","v":0}]
["","",null,null,null,null,null,null,null,null,null,null,null,null,null,null,null,null,null,null,null,null,null,"",{"$f":"IF(X124=\"\",\"\",IF(COUNTIF($X$5:$X124,$X124)>1,1,\"\"))","v":""},null,"","","","'''6",{"$f":"IF(ISERROR(VLOOKUP(AD124,Schedule!A:H,8,0)),0,(VLOOKUP(AD124,Schedule!A:H,8,0)))","v":0}]
["","",null,null,null,null,null,null,null,null,null,null,null,null,null,null,null,null,null,null,null,null,null,"",{"$f":"IF(X125=\"\",\"\",IF(COUNTIF($X$5:$X125,$X125)>1,1,\"\"))","v":""},null,"","","","'''6",{"$f":"IF(ISERROR(VLOOKUP(AD125,Schedule!A:H,8,0)),0,(VLOOKUP(AD125,Schedule!A:H,8,0)))","v":0}]
["","",null,null,null,null,null,null,null,null,null,null,null,null,null,null,null,null,null,null,null,null,null,"",{"$f":"IF(X126=\"\",\"\",IF(COUNTIF($X$5:$X126,$X126)>1,1,\"\"))","v":""},null,"","","","'''6",{"$f":"IF(ISERROR(VLOOKUP(AD126,Schedule!A:H,8,0)),0,(VLOOKUP(AD126,Schedule!A:H,8,0)))","v":0}]
["","",null,null,null,null,null,null,null,null,null,null,null,null,null,null,null,null,null,null,null,null,null,"",{"$f":"IF(X127=\"\",\"\",IF(COUNTIF($X$5:$X127,$X127)>1,1,\"\"))","v":""},null,"","","","'''6",{"$f":"IF(ISERROR(VLOOKUP(AD127,Schedule!A:H,8,0)),0,(VLOOKUP(AD127,Schedule!A:H,8,0)))","v":0}]
["","",null,null,null,null,null,null,null,null,null,null,null,null,null,null,null,null,null,null,null,null,null,"",{"$f":"IF(X128=\"\",\"\",IF(COUNTIF($X$5:$X128,$X128)>1,1,\"\"))","v":""},null,"","","","'''6",{"$f":"IF(ISERROR(VLOOKUP(AD128,Schedule!A:H,8,0)),0,(VLOOKUP(AD128,Schedule!A:H,8,0)))","v":0}]
["","",null,null,null,null,null,null,null,null,null,null,null,null,null,null,null,null,null,null,null,null,null,"",{"$f":"IF(X129=\"\",\"\",IF(COUNTIF($X$5:$X129,$X129)>1,1,\"\"))","v":""},null,"","","","'''6",{"$f":"IF(ISERROR(VLOOKUP(AD129,Schedule!A:H,8,0)),0,(VLOOKUP(AD129,Schedule!A:H,8,0)))","v":0}]
["","",null,null,null,null,null,null,null,null,null,null,null,null,null,null,null,null,null,null,null,null,null,"",{"$f":"IF(X130=\"\",\"\",IF(COUNTIF($X$5:$X130,$X130)>1,1,\"\"))","v":""},null,"","","","'''6",{"$f":"IF(ISERROR(VLOOKUP(AD130,Schedule!A:H,8,0)),0,(VLOOKUP(AD130,Schedule!A:H,8,0)))","v":0}]
["","",null,null,null,null,null,null,null,null,null,null,null,null,null,null,null,null,null,null,null,null,null,"",{"$f":"IF(X131=\"\",\"\",IF(COUNTIF($X$5:$X131,$X131)>1,1,\"\"))","v":""},null,"","","","'''6",{"$f":"IF(ISERROR(VLOOKUP(AD131,Schedule!A:H,8,0)),0,(VLOOKUP(AD131,Schedule!A:H,8,0)))","v":0}]
["","",null,null,null,null,null,null,null,null,null,null,null,null,null,null,null,null,null,null,null,null,null,"",{"$f":"IF(X132=\"\",\"\",IF(COUNTIF($X$5:$X132,$X132)>1,1,\"\"))","v":""},null,"","","","'''6",{"$f":"IF(ISERROR(VLOOKUP(AD132,Schedule!A:H,8,0)),0,(VLOOKUP(AD132,Schedule!A:H,8,0)))","v":0}]
["","",null,null,null,null,null,null,null,null,null,null,null,null,null,null,null,null,null,null,null,null,null,"",{"$f":"IF(X133=\"\",\"\",IF(COUNTIF($X$5:$X133,$X133)>1,1,\"\"))","v":""},null,{"$f":"IF(H133=\"\",\"\",VLOOKUP(H133,unloadSearch,2,0))","v":""},{"$f":"IF(H133=\"\",\"\",VLOOKUP(H133,unloadSearch,4,0))","v":""},{"$f":"IF(H133=\"\",\"\",VLOOKUP(H133,unloadSearch,3,0))","v":""},"'''6",{"$f":"IF(ISERROR(VLOOKUP(AD133,Schedule!A:H,8,0)),0,(VLOOKUP(AD133,Schedule!A:H,8,0)))","v":0}]
[{"$f":"IF(LEN(O134)>70,\"з\",\"\")","v":""},{"$f":"IF(OR(D134=\"фмхимки\",D134=\"фмсидорово\"),IF((I134-F134)=AE134,\"\",\"x\"),\"\")","v":""},null,null,null,null,null,null,null,null,null,null,null,null,null,null,null,null,null,null,null,null,null,{"$f":"C134&D134&E134&F134&G134&H134&I134&J134&O134&P134&Q134&R134&S134&T134&U134&V134","v":""},{"$f":"IF(X134=\"\",\"\",IF(COUNTIF($X$5:$X134,$X134)>1,1,\"\"))","v":""},null,"","","",{"$f":"D134&\"'\"&AA134&\"'\"&AB134&\"'\"&WEEKDAY(I134,2)","v":"'''6"},{"$f":"IF(ISERROR(VLOOKUP(AD134,Schedule!A:H,8,0)),0,(VLOOKUP(AD134,Schedule!A:H,8,0)))","v":0}]
["","",null,null,null,null,null,null,null,null,null,null,null,null,null,null,null,null,null,null,null,null,null,"",{"$f":"IF(X135=\"\",\"\",IF(COUNTIF($X$5:$X135,$X135)>1,1,\"\"))","v":""},null,"","","","'''6",{"$f":"IF(ISERROR(VLOOKUP(AD135,Schedule!A:H,8,0)),0,(VLOOKUP(AD135,Schedule!A:H,8,0)))","v":0}]
["","",null,null,null,null,null,null,null,null,null,null,null,null,null,null,null,null,null,null,null,null,null,"",{"$f":"IF(X136=\"\",\"\",IF(COUNTIF($X$5:$X136,$X136)>1,1,\"\"))","v":""},null,"","","","'''6",{"$f":"IF(ISERROR(VLOOKUP(AD136,Schedule!A:H,8,0)),0,(VLOOKUP(AD136,Schedule!A:H,8,0)))","v":0}]
["","",null,null,null,null,null,null,null,null,null,null,null,null,null,null,null,null,null,null,null,null,null,"",{"$f":"IF(X137=\"\",\"\",IF(COUNTIF($X$5:$X137,$X137)>1,1,\"\"))","v":""},null,"","","","'''6",{"$f":"IF(ISERROR(VLOOKUP(AD137,Schedule!A:H,8,0)),0,(VLOOKUP(AD137,Schedule!A:H,8,0)))","v":0}]
["","",null,null,null,null,null,null,null,null,null,null,null,null,null,null,null,null,null,null,null,null,null,"",{"$f":"IF(X138=\"\",\"\",IF(COUNTIF($X$5:$X138,$X138)>1,1,\"\"))","v":""},null,"","","","'''6",{"$f":"IF(ISERROR(VLOOKUP(AD138,Schedule!A:H,8,0)),0,(VLOOKUP(AD138,Schedule!A:H,8,0)))","v":0}]
["","",null,null,null,null,null,null,null,null,null,null,null,null,null,null,null,null,null,null,null,null,null,"",{"$f":"IF(X139=\"\",\"\",IF(COUNTIF($X$5:$X139,$X139)>1,1,\"\"))","v":""},null,"","","","'''6",{"$f":"IF(ISERROR(VLOOKUP(AD139,Schedule!A:H,8,0)),0,(VLOOKUP(AD139,Schedule!A:H,8,0)))","v":0}]
["","",null,null,null,null,null,null,null,null,null,null,null,null,null,null,null,null,null,null,null,null,null,"",{"$f":"IF(X140=\"\",\"\",IF(COUNTIF($X$5:$X140,$X140)>1,1,\"\"))","v":""},null,"","","","'''6",{"$f":"IF(ISERROR(VLOOKUP(AD140,Schedule!A:H,8,0)),0,(VLOOKUP(AD140,Schedule!A:H,8,0)))","v":0}]
["","",null,null,null,null,null,null,null,null,null,null,null,null,null,null,null,null,null,null,null,null,null,"",{"$f":"IF(X141=\"\",\"\",IF(COUNTIF($X$5:$X141,$X141)>1,1,\"\"))","v":""},null,"","","","'''6",{"$f":"IF(ISERROR(VLOOKUP(AD141,Schedule!A:H,8,0)),0,(VLOOKUP(AD141,Schedule!A:H,8,0)))","v":0}]
["","",null,null,null,null,null,null,null,null,null,null,null,null,null,null,null,null,null,null,null,null,null,"",{"$f":"IF(X142=\"\",\"\",IF(COUNTIF($X$5:$X142,$X142)>1,1,\"\"))","v":""},null,"","","","'''6",{"$f":"IF(ISERROR(VLOOKUP(AD142,Schedule!A:H,8,0)),0,(VLOOKUP(AD142,Schedule!A:H,8,0)))","v":0}]
["","",null,null,null,null,null,null,null,null,null,null,null,null,null,null,null,null,null,null,null,null,null,"",{"$f":"IF(X143=\"\",\"\",IF(COUNTIF($X$5:$X143,$X143)>1,1,\"\"))","v":""},null,"","","","'''6",{"$f":"IF(ISERROR(VLOOKUP(AD143,Schedule!A:H,8,0)),0,(VLOOKUP(AD143,Schedule!A:H,8,0)))","v":0}]
["","",null,null,null,null,null,null,null,null,null,null,null,null,null,null,null,null,null,null,null,null,null,"",{"$f":"IF(X144=\"\",\"\",IF(COUNTIF($X$5:$X144,$X144)>1,1,\"\"))","v":""},null,"","","","'''6",{"$f":"IF(ISERROR(VLOOKUP(AD144,Schedule!A:H,8,0)),0,(VLOOKUP(AD144,Schedule!A:H,8,0)))","v":0}]
["","",null,null,null,null,null,null,null,null,null,null,null,null,null,null,null,null,null,null,null,null,null,"",{"$f":"IF(X145=\"\",\"\",IF(COUNTIF($X$5:$X145,$X145)>1,1,\"\"))","v":""},null,"","","","'''6",{"$f":"IF(ISERROR(VLOOKUP(AD145,Schedule!A:H,8,0)),0,(VLOOKUP(AD145,Schedule!A:H,8,0)))","v":0}]
["","",null,null,null,null,null,null,null,null,null,null,null,null,null,null,null,null,null,null,null,null,null,"",{"$f":"IF(X146=\"\",\"\",IF(COUNTIF($X$5:$X146,$X146)>1,1,\"\"))","v":""},null,"","","","'''6",{"$f":"IF(ISERROR(VLOOKUP(AD146,Schedule!A:H,8,0)),0,(VLOOKUP(AD146,Schedule!A:H,8,0)))","v":0}]
["","",null,null,null,null,null,null,null,null,null,null,null,null,null,null,null,null,null,null,null,null,null,"",{"$f":"IF(X147=\"\",\"\",IF(COUNTIF($X$5:$X147,$X147)>1,1,\"\"))","v":""},null,"","","","'''6",{"$f":"IF(ISERROR(VLOOKUP(AD147,Schedule!A:H,8,0)),0,(VLOOKUP(AD147,Schedule!A:H,8,0)))","v":0}]
["","",null,null,null,null,null,null,null,null,null,null,null,null,null,null,null,null,null,null,null,null,null,"",{"$f":"IF(X148=\"\",\"\",IF(COUNTIF($X$5:$X148,$X148)>1,1,\"\"))","v":""},null,"","","","'''6",{"$f":"IF(ISERROR(VLOOKUP(AD148,Schedule!A:H,8,0)),0,(VLOOKUP(AD148,Schedule!A:H,8,0)))","v":0}]
["","",null,null,null,null,null,null,null,null,null,null,null,null,null,null,null,null,null,null,null,null,null,"",{"$f":"IF(X149=\"\",\"\",IF(COUNTIF($X$5:$X149,$X149)>1,1,\"\"))","v":""},null,"","","","'''6",{"$f":"IF(ISERROR(VLOOKUP(AD149,Schedule!A:H,8,0)),0,(VLOOKUP(AD149,Schedule!A:H,8,0)))","v":0}]
["","",null,null,null,null,null,null,null,null,null,null,null,null,null,null,null,null,null,null,null,null,null,"",{"$f":"IF(X150=\"\",\"\",IF(COUNTIF($X$5:$X150,$X150)>1,1,\"\"))","v":""},null,"","","","'''6",{"$f":"IF(ISERROR(VLOOKUP(AD150,Schedule!A:H,8,0)),0,(VLOOKUP(AD150,Schedule!A:H,8,0)))","v":0}]
["","",null,null,null,null,null,null,null,null,null,null,null,null,null,null,null,null,null,null,null,null,null,"",{"$f":"IF(X151=\"\",\"\",IF(COUNTIF($X$5:$X151,$X151)>1,1,\"\"))","v":""},null,"","","","'''6",{"$f":"IF(ISERROR(VLOOKUP(AD151,Schedule!A:H,8,0)),0,(VLOOKUP(AD151,Schedule!A:H,8,0)))","v":0}]
["","",null,null,null,null,null,null,null,null,null,null,null,null,null,null,null,null,null,null,null,null,null,"",{"$f":"IF(X152=\"\",\"\",IF(COUNTIF($X$5:$X152,$X152)>1,1,\"\"))","v":""},null,"","","","'''6",{"$f":"IF(ISERROR(VLOOKUP(AD152,Schedule!A:H,8,0)),0,(VLOOKUP(AD152,Schedule!A:H,8,0)))","v":0}]
["","",null,null,null,null,null,null,null,null,null,null,null,null,null,null,null,null,null,null,null,null,null,"",{"$f":"IF(X153=\"\",\"\",IF(COUNTIF($X$5:$X153,$X153)>1,1,\"\"))","v":""},null,"","","","'''6",{"$f":"IF(ISERROR(VLOOKUP(AD153,Schedule!A:H,8,0)),0,(VLOOKUP(AD153,Schedule!A:H,8,0)))","v":0}]
["","",null,null,null,null,null,null,null,null,null,null,null,null,null,null,null,null,null,null,null,null,null,"",{"$f":"IF(X154=\"\",\"\",IF(COUNTIF($X$5:$X154,$X154)>1,1,\"\"))","v":""},null,"","","","'''6",{"$f":"IF(ISERROR(VLOOKUP(AD154,Schedule!A:H,8,0)),0,(VLOOKUP(AD154,Schedule!A:H,8,0)))","v":0}]
["","",null,null,null,null,null,null,null,null,null,null,null,null,null,null,null,null,null,null,null,null,null,"",{"$f":"IF(X155=\"\",\"\",IF(COUNTIF($X$5:$X155,$X155)>1,1,\"\"))","v":""},null,"","","","'''6",{"$f":"IF(ISERROR(VLOOKUP(AD155,Schedule!A:H,8,0)),0,(VLOOKUP(AD155,Schedule!A:H,8,0)))","v":0}]
["","",null,null,null,null,null,null,null,null,null,null,null,null,null,null,null,null,null,null,null,null,null,"",{"$f":"IF(X156=\"\",\"\",IF(COUNTIF($X$5:$X156,$X156)>1,1,\"\"))","v":""},null,"","","","'''6",{"$f":"IF(ISERROR(VLOOKUP(AD156,Schedule!A:H,8,0)),0,(VLOOKUP(AD156,Schedule!A:H,8,0)))","v":0}]
["","",null,null,null,null,null,null,null,null,null,null,null,null,null,null,null,null,null,null,null,null,null,"",{"$f":"IF(X157=\"\",\"\",IF(COUNTIF($X$5:$X157,$X157)>1,1,\"\"))","v":""},null,"","","","'''6",{"$f":"IF(ISERROR(VLOOKUP(AD157,Schedule!A:H,8,0)),0,(VLOOKUP(AD157,Schedule!A:H,8,0)))","v":0}]
["","",null,null,null,null,null,null,null,null,null,null,null,null,null,null,null,null,null,null,null,null,null,"",{"$f":"IF(X158=\"\",\"\",IF(COUNTIF($X$5:$X158,$X158)>1,1,\"\"))","v":""},null,"","","","'''6",{"$f":"IF(ISERROR(VLOOKUP(AD158,Schedule!A:H,8,0)),0,(VLOOKUP(AD158,Schedule!A:H,8,0)))","v":0}]
["","",null,null,null,null,null,null,null,null,null,null,null,null,null,null,null,null,null,null,null,null,null,"",{"$f":"IF(X159=\"\",\"\",IF(COUNTIF($X$5:$X159,$X159)>1,1,\"\"))","v":""},null,"","","","'''6",{"$f":"IF(ISERROR(VLOOKUP(AD159,Schedule!A:H,8,0)),0,(VLOOKUP(AD159,Schedule!A:H,8,0)))","v":0}]
["","",null,null,null,null,null,null,null,null,null,null,null,null,null,null,null,null,null,null,null,null,null,"",{"$f":"IF(X160=\"\",\"\",IF(COUNTIF($X$5:$X160,$X160)>1,1,\"\"))","v":""},null,"","","","'''6",{"$f":"IF(ISERROR(VLOOKUP(AD160,Schedule!A:H,8,0)),0,(VLOOKUP(AD160,Schedule!A:H,8,0)))","v":0}]
["","",null,null,null,null,null,null,null,null,null,null,null,null,null,null,null,null,null,null,null,null,null,"",{"$f":"IF(X161=\"\",\"\",IF(COUNTIF($X$5:$X161,$X161)>1,1,\"\"))","v":""},null,"","","","'''6",{"$f":"IF(ISERROR(VLOOKUP(AD161,Schedule!A:H,8,0)),0,(VLOOKUP(AD161,Schedule!A:H,8,0)))","v":0}]
["","",null,null,null,null,null,null,null,null,null,null,null,null,null,null,null,null,null,null,null,null,null,"",{"$f":"IF(X162=\"\",\"\",IF(COUNTIF($X$5:$X162,$X162)>1,1,\"\"))","v":""},null,"","","","'''6",{"$f":"IF(ISERROR(VLOOKUP(AD162,Schedule!A:H,8,0)),0,(VLOOKUP(AD162,Schedule!A:H,8,0)))","v":0}]
["","",null,null,null,null,null,null,null,null,null,null,null,null,null,null,null,null,null,null,null,null,null,"",{"$f":"IF(X163=\"\",\"\",IF(COUNTIF($X$5:$X163,$X163)>1,1,\"\"))","v":""},null,"","","","'''6",{"$f":"IF(ISERROR(VLOOKUP(AD163,Schedule!A:H,8,0)),0,(VLOOKUP(AD163,Schedule!A:H,8,0)))","v":0}]
["","",null,null,null,null,null,null,null,null,null,null,null,null,null,null,null,null,null,null,null,null,null,"",{"$f":"IF(X164=\"\",\"\",IF(COUNTIF($X$5:$X164,$X164)>1,1,\"\"))","v":""},null,"","","","'''6",{"$f":"IF(ISERROR(VLOOKUP(AD164,Schedule!A:H,8,0)),0,(VLOOKUP(AD164,Schedule!A:H,8,0)))","v":0}]
["","",null,null,null,null,null,null,null,null,null,null,null,null,null,null,null,null,null,null,null,null,null,"",{"$f":"IF(X165=\"\",\"\",IF(COUNTIF($X$5:$X165,$X165)>1,1,\"\"))","v":""},null,{"$f":"IF(H165=\"\",\"\",VLOOKUP(H165,unloadSearch,2,0))","v":""},{"$f":"IF(H165=\"\",\"\",VLOOKUP(H165,unloadSearch,4,0))","v":""},{"$f":"IF(H165=\"\",\"\",VLOOKUP(H165,unloadSearch,3,0))","v":""},"'''6",{"$f":"IF(ISERROR(VLOOKUP(AD165,Schedule!A:H,8,0)),0,(VLOOKUP(AD165,Schedule!A:H,8,0)))","v":0}]
["","",null,null,null,null,null,null,null,null,null,null,null,null,null,null,null,null,null,null,null,null,null,"",{"$f":"IF(X166=\"\",\"\",IF(COUNTIF($X$5:$X166,$X166)>1,1,\"\"))","v":""},null,"","","","'''6",{"$f":"IF(ISERROR(VLOOKUP(AD166,Schedule!A:H,8,0)),0,(VLOOKUP(AD166,Schedule!A:H,8,0)))","v":0}]
["","",null,null,null,null,null,null,null,null,null,null,null,null,null,null,null,null,null,null,null,null,null,"",{"$f":"IF(X167=\"\",\"\",IF(COUNTIF($X$5:$X167,$X167)>1,1,\"\"))","v":""},null,"","","","'''6",{"$f":"IF(ISERROR(VLOOKUP(AD167,Schedule!A:H,8,0)),0,(VLOOKUP(AD167,Schedule!A:H,8,0)))","v":0}]
["","",null,null,null,null,null,null,null,null,null,null,null,null,null,null,null,null,null,null,null,null,null,"",{"$f":"IF(X168=\"\",\"\",IF(COUNTIF($X$5:$X168,$X168)>1,1,\"\"))","v":""},null,"","","","'''6",{"$f":"IF(ISERROR(VLOOKUP(AD168,Schedule!A:H,8,0)),0,(VLOOKUP(AD168,Schedule!A:H,8,0)))","v":0}]
["","",null,null,null,null,null,null,null,null,null,null,null,null,null,null,null,null,null,null,null,null,null,"",{"$f":"IF(X169=\"\",\"\",IF(COUNTIF($X$5:$X169,$X169)>1,1,\"\"))","v":""},null,"","","","'''6",{"$f":"IF(ISERROR(VLOOKUP(AD169,Schedule!A:H,8,0)),0,(VLOOKUP(AD169,Schedule!A:H,8,0)))","v":0}]
["","",null,null,null,null,null,null,null,null,null,null,null,null,null,null,null,null,null,null,null,null,null,"",{"$f":"IF(X170=\"\",\"\",IF(COUNTIF($X$5:$X170,$X170)>1,1,\"\"))","v":""},null,"","","","'''6",{"$f":"IF(ISERROR(VLOOKUP(AD170,Schedule!A:H,8,0)),0,(VLOOKUP(AD170,Schedule!A:H,8,0)))","v":0}]
["","",null,null,null,null,null,null,null,null,null,null,null,null,null,null,null,null,null,null,null,null,null,"",{"$f":"IF(X171=\"\",\"\",IF(COUNTIF($X$5:$X171,$X171)>1,1,\"\"))","v":""},null,"","","","'''6",{"$f":"IF(ISERROR(VLOOKUP(AD171,Schedule!A:H,8,0)),0,(VLOOKUP(AD171,Schedule!A:H,8,0)))","v":0}]
["","",null,null,null,null,null,null,null,null,null,null,null,null,null,null,null,null,null,null,null,null,null,"",{"$f":"IF(X172=\"\",\"\",IF(COUNTIF($X$5:$X172,$X172)>1,1,\"\"))","v":""},null,"","","","'''6",{"$f":"IF(ISERROR(VLOOKUP(AD172,Schedule!A:H,8,0)),0,(VLOOKUP(AD172,Schedule!A:H,8,0)))","v":0}]
["","",null,null,null,null,null,null,null,null,null,null,null,null,null,null,null,null,null,null,null,null,null,"",{"$f":"IF(X173=\"\",\"\",IF(COUNTIF($X$5:$X173,$X173)>1,1,\"\"))","v":""},null,"","","","'''6",{"$f":"IF(ISERROR(VLOOKUP(AD173,Schedule!A:H,8,0)),0,(VLOOKUP(AD173,Schedule!A:H,8,0)))","v":0}]
["","",null,null,null,null,null,null,null,null,null,null,null,null,null,null,null,null,null,null,null,null,null,"",{"$f":"IF(X174=\"\",\"\",IF(COUNTIF($X$5:$X174,$X174)>1,1,\"\"))","v":""},null,"","","","'''6",{"$f":"IF(ISERROR(VLOOKUP(AD174,Schedule!A:H,8,0)),0,(VLOOKUP(AD174,Schedule!A:H,8,0)))","v":0}]
["","",null,null,null,null,null,null,null,null,null,null,null,null,null,null,null,null,null,null,null,null,null,"",{"$f":"IF(X175=\"\",\"\",IF(COUNTIF($X$5:$X175,$X175)>1,1,\"\"))","v":""},null,"","","","'''6",{"$f":"IF(ISERROR(VLOOKUP(AD175,Schedule!A:H,8,0)),0,(VLOOKUP(AD175,Schedule!A:H,8,0)))","v":0}]
["","",null,null,null,null,null,null,null,null,null,null,null,null,null,null,null,null,null,null,null,null,null,"",{"$f":"IF(X176=\"\",\"\",IF(COUNTIF($X$5:$X176,$X176)>1,1,\"\"))","v":""},null,"","","","'''6",{"$f":"IF(ISERROR(VLOOKUP(AD176,Schedule!A:H,8,0)),0,(VLOOKUP(AD176,Schedule!A:H,8,0)))","v":0}]
["","",null,null,null,null,null,null,null,null,null,null,null,null,null,null,null,null,null,null,null,null,null,"",{"$f":"IF(X177=\"\",\"\",IF(COUNTIF($X$5:$X177,$X177)>1,1,\"\"))","v":""},null,"","","","'''6",{"$f":"IF(ISERROR(VLOOKUP(AD177,Schedule!A:H,8,0)),0,(VLOOKUP(AD177,Schedule!A:H,8,0)))","v":0}]
["","",null,null,null,null,null,null,null,null,null,null,null,null,null,null,null,null,null,null,null,null,null,"",{"$f":"IF(X178=\"\",\"\",IF(COUNTIF($X$5:$X178,$X178)>1,1,\"\"))","v":""},null,"","","","'''6",{"$f":"IF(ISERROR(VLOOKUP(AD178,Schedule!A:H,8,0)),0,(VLOOKUP(AD178,Schedule!A:H,8,0)))","v":0}]
["","",null,null,null,null,null,null,null,null,null,null,null,null,null,null,null,null,null,null,null,null,null,"",{"$f":"IF(X179=\"\",\"\",IF(COUNTIF($X$5:$X179,$X179)>1,1,\"\"))","v":""},null,"","","","'''6",{"$f":"IF(ISERROR(VLOOKUP(AD179,Schedule!A:H,8,0)),0,(VLOOKUP(AD179,Schedule!A:H,8,0)))","v":0}]
["","",null,null,null,null,null,null,null,null,null,null,null,null,null,null,null,null,null,null,null,null,null,"",{"$f":"IF(X180=\"\",\"\",IF(COUNTIF($X$5:$X180,$X180)>1,1,\"\"))","v":""},null,"","","","'''6",{"$f":"IF(ISERROR(VLOOKUP(AD180,Schedule!A:H,8,0)),0,(VLOOKUP(AD180,Schedule!A:H,8,0)))","v":0}]
["","",null,null,null,null,null,null,null,null,null,null,null,null,null,null,null,null,null,null,null,null,null,"",{"$f":"IF(X181=\"\",\"\",IF(COUNTIF($X$5:$X181,$X181)>1,1,\"\"))","v":""},null,"","","","'''6",{"$f":"IF(ISERROR(VLOOKUP(AD181,Schedule!A:H,8,0)),0,(VLOOKUP(AD181,Schedule!A:H,8,0)))","v":0}]
["","",null,null,null,null,null,null,null,null,null,null,null,null,null,null,null,null,null,null,null,null,null,"",{"$f":"IF(X182=\"\",\"\",IF(COUNTIF($X$5:$X182,$X182)>1,1,\"\"))","v":""},null,"","","","'''6",{"$f":"IF(ISERROR(VLOOKUP(AD182,Schedule!A:H,8,0)),0,(VLOOKUP(AD182,Schedule!A:H,8,0)))","v":0}]
["","",null,null,null,null,null,null,null,null,null,null,null,null,null,null,null,null,null,null,null,null,null,"",{"$f":"IF(X183=\"\",\"\",IF(COUNTIF($X$5:$X183,$X183)>1,1,\"\"))","v":""},null,"","","","'''6",{"$f":"IF(ISERROR(VLOOKUP(AD183,Schedule!A:H,8,0)),0,(VLOOKUP(AD183,Schedule!A:H,8,0)))","v":0}]
["","",null,null,null,null,null,null,null,null,null,null,null,null,null,null,null,null,null,null,null,null,null,"",{"$f":"IF(X184=\"\",\"\",IF(COUNTIF($X$5:$X184,$X184)>1,1,\"\"))","v":""},null,"","","","'''6",{"$f":"IF(ISERROR(VLOOKUP(AD184,Schedule!A:H,8,0)),0,(VLOOKUP(AD184,Schedule!A:H,8,0)))","v":0}]
["","",null,null,null,null,null,null,null,null,null,null,null,null,null,null,null,null,null,null,null,null,null,"",{"$f":"IF(X185=\"\",\"\",IF(COUNTIF($X$5:$X185,$X185)>1,1,\"\"))","v":""},null,"","","","'''6",{"$f":"IF(ISERROR(VLOOKUP(AD185,Schedule!A:H,8,0)),0,(VLOOKUP(AD185,Schedule!A:H,8,0)))","v":0}]
["","",null,null,null,null,null,null,null,null,null,null,null,null,null,null,null,null,null,null,null,null,null,"",{"$f":"IF(X186=\"\",\"\",IF(COUNTIF($X$5:$X186,$X186)>1,1,\"\"))","v":""},null,"","","","'''6",{"$f":"IF(ISERROR(VLOOKUP(AD186,Schedule!A:H,8,0)),0,(VLOOKUP(AD186,Schedule!A:H,8,0)))","v":0}]
["","",null,null,null,null,null,null,null,null,null,null,null,null,null,null,null,null,null,null,null,null,null,"",{"$f":"IF(X187=\"\",\"\",IF(COUNTIF($X$5:$X187,$X187)>1,1,\"\"))","v":""},null,"","","","'''6",{"$f":"IF(ISERROR(VLOOKUP(AD187,Schedule!A:H,8,0)),0,(VLOOKUP(AD187,Schedule!A:H,8,0)))","v":0}]
["","",null,null,null,null,null,null,null,null,null,null,null,null,null,null,null,null,null,null,null,null,null,"",{"$f":"IF(X188=\"\",\"\",IF(COUNTIF($X$5:$X188,$X188)>1,1,\"\"))","v":""},null,"","","","'''6",{"$f":"IF(ISERROR(VLOOKUP(AD188,Schedule!A:H,8,0)),0,(VLOOKUP(AD188,Schedule!A:H,8,0)))","v":0}]
["","",null,null,null,null,null,null,null,null,null,null,null,null,null,null,null,null,null,null,null,null,null,"",{"$f":"IF(X189=\"\",\"\",IF(COUNTIF($X$5:$X189,$X189)>1,1,\"\"))","v":""},null,"","","","'''6",{"$f":"IF(ISERROR(VLOOKUP(AD189,Schedule!A:H,8,0)),0,(VLOOKUP(AD189,Schedule!A:H,8,0)))","v":0}]
[null,null,null,null,null,null,null,null,null,null,null,null,null,null,null,null,null,null,null,null,null,null,null,"",{"$f":"IF(X190=\"\",\"\",IF(COUNTIF($X$5:$X190,$X190)>1,1,\"\"))","v":""},null,"","","","'''6",{"$f":"IF(ISERROR(VLOOKUP(AD190,Schedule!A:H,8,0)),0,(VLOOKUP(AD190,Schedule!A:H,8,0)))","v":0}]
[null,null,null,null,null,null,null,null,null,null,null,null,null,null,null,null,null,null,null,null,null,null,null,"",{"$f":"IF(X191=\"\",\"\",IF(COUNTIF($X$5:$X191,$X191)>1,1,\"\"))","v":""},null,"","","","'''6",{"$f":"IF(ISERROR(VLOOKUP(AD191,Schedule!A:H,8,0)),0,(VLOOKUP(AD191,Schedule!A:H,8,0)))","v":0}]
[null,null,null,null,null,null,null,null,null,null,null,null,null,null,null,null,null,null,null,null,null,null,null,"",{"$f":"IF(X192=\"\",\"\",IF(COUNTIF($X$5:$X192,$X192)>1,1,\"\"))","v":""},null,"","","","'''6",{"$f":"IF(ISERROR(VLOOKUP(AD192,Schedule!A:H,8,0)),0,(VLOOKUP(AD192,Schedule!A:H,8,0)))","v":0}]
[null,null,null,null,null,null,null,null,null,null,null,null,null,null,null,null,null,null,null,null,null,null,null,"",{"$f":"IF(X193=\"\",\"\",IF(COUNTIF($X$5:$X193,$X193)>1,1,\"\"))","v":""},null,"","","","'''6",{"$f":"IF(ISERROR(VLOOKUP(AD193,Schedule!A:H,8,0)),0,(VLOOKUP(AD193,Schedule!A:H,8,0)))","v":0}]
[null,null,null,null,null,null,null,null,null,null,null,null,null,null,null,null,null,null,null,null,null,null,null,"",{"$f":"IF(X194=\"\",\"\",IF(COUNTIF($X$5:$X194,$X194)>1,1,\"\"))","v":""},null,"","","","'''6",{"$f":"IF(ISERROR(VLOOKUP(AD194,Schedule!A:H,8,0)),0,(VLOOKUP(AD194,Schedule!A:H,8,0)))","v":0}]
[null,null,null,null,null,null,null,null,null,null,null,null,null,null,null,null,null,null,null,null,null,null,null,"",{"$f":"IF(X195=\"\",\"\",IF(COUNTIF($X$5:$X195,$X195)>1,1,\"\"))","v":""},null,"","","","'''6",{"$f":"IF(ISERROR(VLOOKUP(AD195,Schedule!A:H,8,0)),0,(VLOOKUP(AD195,Schedule!A:H,8,0)))","v":0}]
[null,null,null,null,null,null,null,null,null,null,null,null,null,null,null,null,null,null,null,null,null,null,null,"",{"$f":"IF(X196=\"\",\"\",IF(COUNTIF($X$5:$X196,$X196)>1,1,\"\"))","v":""},null,"","","","'''6",{"$f":"IF(ISERROR(VLOOKUP(AD196,Schedule!A:H,8,0)),0,(VLOOKUP(AD196,Schedule!A:H,8,0)))","v":0}]
[null,null,null,null,null,null,null,null,null,null,null,null,null,null,null,null,null,null,null,null,null,null,null,"",{"$f":"IF(X197=\"\",\"\",IF(COUNTIF($X$5:$X197,$X197)>1,1,\"\"))","v":""},null,{"$f":"IF(H197=\"\",\"\",VLOOKUP(H197,unloadSearch,2,0))","v":""},{"$f":"IF(H197=\"\",\"\",VLOOKUP(H197,unloadSearch,4,0))","v":""},{"$f":"IF(H197=\"\",\"\",VLOOKUP(H197,unloadSearch,3,0))","v":""},"'''6",{"$f":"IF(ISERROR(VLOOKUP(AD197,Schedule!A:H,8,0)),0,(VLOOKUP(AD197,Schedule!A:H,8,0)))","v":0}]
[null,null,null,null,null,null,null,null,null,null,null,null,null,null,null,null,null,null,null,null,null,null,null,{"$f":"C198&D198&E198&F198&G198&H198&I198&J198&O198&P198&Q198&R198&S198&T198&U198&V198","v":""},{"$f":"IF(X198=\"\",\"\",IF(COUNTIF($X$5:$X198,$X198)>1,1,\"\"))","v":""},null,"","","",{"$f":"D198&\"'\"&AA198&\"'\"&AB198&\"'\"&WEEKDAY(I198,2)","v":"'''6"},{"$f":"IF(ISERROR(VLOOKUP(AD198,Schedule!A:H,8,0)),0,(VLOOKUP(AD198,Schedule!A:H,8,0)))","v":0}]
[null,null,null,null,null,null,null,null,null,null,null,null,null,null,null,null,null,null,null,null,null,null,null,"",{"$f":"IF(X199=\"\",\"\",IF(COUNTIF($X$5:$X199,$X199)>1,1,\"\"))","v":""},null,"","","","'''6",{"$f":"IF(ISERROR(VLOOKUP(AD199,Schedule!A:H,8,0)),0,(VLOOKUP(AD199,Schedule!A:H,8,0)))","v":0}]
[null,null,null,null,null,null,null,null,null,null,null,null,null,null,null,null,null,null,null,null,null,null,null,"",{"$f":"IF(X200=\"\",\"\",IF(COUNTIF($X$5:$X200,$X200)>1,1,\"\"))","v":""},null,"","","","'''6",{"$f":"IF(ISERROR(VLOOKUP(AD200,Schedule!A:H,8,0)),0,(VLOOKUP(AD200,Schedule!A:H,8,0)))","v":0}]
[null,null,null,null,null,null,null,null,null,null,null,null,null,null,null,null,null,null,null,null,null,null,null,"",{"$f":"IF(X201=\"\",\"\",IF(COUNTIF($X$5:$X201,$X201)>1,1,\"\"))","v":""},null,"","","","'''6",{"$f":"IF(ISERROR(VLOOKUP(AD201,Schedule!A:H,8,0)),0,(VLOOKUP(AD201,Schedule!A:H,8,0)))","v":0}]
[null,null,null,null,null,null,null,null,null,null,null,null,null,null,null,null,null,null,null,null,null,null,null,"",{"$f":"IF(X202=\"\",\"\",IF(COUNTIF($X$5:$X202,$X202)>1,1,\"\"))","v":""},null,"","","","'''6",{"$f":"IF(ISERROR(VLOOKUP(AD202,Schedule!A:H,8,0)),0,(VLOOKUP(AD202,Schedule!A:H,8,0)))","v":0}]
[null,null,null,null,null,null,null,null,null,null,null,null,null,null,null,null,null,null,null,null,null,null,null,"",{"$f":"IF(X203=\"\",\"\",IF(COUNTIF($X$5:$X203,$X203)>1,1,\"\"))","v":""},null,"","","","'''6",{"$f":"IF(ISERROR(VLOOKUP(AD203,Schedule!A:H,8,0)),0,(VLOOKUP(AD203,Schedule!A:H,8,0)))","v":0}]
[null,null,null,null,null,null,null,null,null,null,null,null,null,null,null,null,null,null,null,null,null,null,null,"",{"$f":"IF(X204=\"\",\"\",IF(COUNTIF($X$5:$X204,$X204)>1,1,\"\"))","v":""},null,"","","","'''6",{"$f":"IF(ISERROR(VLOOKUP(AD204,Schedule!A:H,8,0)),0,(VLOOKUP(AD204,Schedule!A:H,8,0)))","v":0}]
[null,null,null,null,null,null,null,null,null,null,null,null,null,null,null,null,null,null,null,null,null,null,null,null,null,null,{"$f":"VLOOKUP(H205,unloadSearch,2,0)","v":{"$error":"#N/A"}},{"$f":"VLOOKUP(H205,unloadSearch,4,0)","v":{"$error":"#N/A"}},{"$f":"VLOOKUP(H205,unloadSearch,3,0)","v":{"$error":"#N/A"}}]
[null,null,null,null,null,null,null,null,null,null,null,null,null,null,null,null,null,null,null,null,null,null,null,null,null,null,{"$error":"#N/A"},{"$error":"#N/A"},{"$error":"#N/A"}]
[null,null,null,null,null,null,null,null,null,null,null,null,null,null,null,null,null,null,null,null,null,null,null,null,null,null,{"$error":"#N/A"},{"$error":"#N/A"},{"$error":"#N/A"}]
[null,null,null,null,null,null,null,null,null,null,null,null,null,null,null,null,null,null,null,null,null,null,null,null,null,null,{"$error":"#N/A"},{"$error":"#N/A"},{"$error":"#N/A"}]
[null,null,null,null,null,null,null,null,null,null,null,null,null,null,null,null,null,null,null,null,null,null,null,null,null,null,{"$error":"#N/A"},{"$error":"#N/A"},{"$error":"#N/A"}]
[null,null,null,null,null,null,null,null,null,null,null,null,null,null,null,null,null,null,null,null,null,null,null,null,null,null,{"$error":"#N/A"},{"$error":"#N/A"},{"$error":"#N/A"}]
[null,null,null,null,null,null,null,null,null,null,null,null,null,null,null,null,null,null,null,null,null,null,null,null,null,null,{"$error":"#N/A"},{"$error":"#N/A"},{"$error":"#N/A"}]
[null,null,null,null,null,null,null,null,null,null,null,null,null,null,null,null,null,null,null,null,null,null,null,null,null,null,{"$error":"#N/A"},{"$error":"#N/A"},{"$error":"#N/A"}]
[null,null,null,null,null,null,null,null,null,null,null,null,null,null,null,null,null,null,null,null,null,null,null,null,null,null,{"$error":"#N/A"},{"$error":"#N/A"},{"$error":"#N/A"}]
[null,null,null,null,null,null,null,null,null,null,null,null,null,null,null,null,null,null,null,null,null,null,null,null,null,null,{"$error":"#N/A"},{"$error":"#N/A"},{"$error":"#N/A"}]
[null,null,null,null,null,null,null,null,null,null,null,null,null,null,null,null,null,null,null,null,null,null,null,null,null,null,{"$error":"#N/A"},{"$error":"#N/A"},{"$error":"#N/A"}]
[null,null,null,null,null,null,null,null,null,null,null,null,null,null,null,null,null,null,null,null,null,null,null,null,null,null,{"$error":"#N/A"},{"$error":"#N/A"},{"$error":"#N/A"}]
[null,null,null,null,null,null,null,null,null,null,null,null,null,null,null,null,null,null,null,null,null,null,null,null,null,null,{"$error":"#N/A"},{"$error":"#N/A"},{"$error":"#N/A"}]
[null,null,null,null,null,null,null,null,null,null,null,null,null,null,null,null,null,null,null,null,null,null,null,null,null,null,{"$error":"#N/A"},{"$error":"#N/A"},{"$error":"#N/A"}]
[null,null,null,null,null,null,null,null,null,null,null,null,null,null,null,null,null,null,null,null,null,null,null,null,null,null,{"$error":"#N/A"},{"$error":"#N/A"},{"$error":"#N/A"}]
[null,null,null,null,null,null,null,null,null,null,null,null,null,null,null,null,null,null,null,null,null,null,null,null,null,null,{"$error":"#N/A"},{"$error":"#N/A"},{"$error":"#N/A"}]
[null,null,null,null,null,null,null,null,null,null,null,null,null,null,null,null,null,null,null,null,null,null,null,null,null,null,{"$error":"#N/A"},{"$error":"#N/A"},{"$error":"#N/A"}]
[null,null,null,null,null,null,null,null,null,null,null,null,null,null,null,null,null,null,null,null,null,null,null,null,null,null,{"$error":"#N/A"},{"$error":"#N/A"},{"$error":"#N/A"}]
[null,null,null,null,null,null,null,null,null,null,null,null,null,null,null,null,null,null,null,null,null,null,null,null,null,null,{"$error":"#N/A"},{"$error":"#N/A"},{"$error":"#N/A"}]
[null,null,null,null,null,null,null,null,null,null,null,null,null,null,null,null,null,null,null,null,null,null,null,null,null,null,{"$error":"#N/A"},{"$error":"#N/A"},{"$error":"#N/A"}]
[null,null,null,null,null,null,null,null,null,null,null,null,null,null,null,null,null,null,null,null,null,null,null,null,null,null,{"$error":"#N/A"},{"$error":"#N/A"},{"$error":"#N/A"}]
[null,null,null,null,null,null,null,null,null,null,null,null,null,null,null,null,null,null,null,null,null,null,null,null,null,null,{"$error":"#N/A"},{"$error":"#N/A"},{"$error":"#N/A"}]
[null,null,null,null,null,null,null,null,null,null,null,null,null,null,null,null,null,null,null,null,null,null,null,null,null,null,{"$error":"#N/A"},{"$error":"#N/A"},{"$error":"#N/A"}]
[null,null,null,null,null,null,null,null,null,null,null,null,null,null,null,null,null,null,null,null,null,null,null,null,null,null,{"$error":"#N/A"},{"$error":"#N/A"},{"$error":"#N/A"}]
[null,null,null,null,null,null,null,null,null,null,null,null,null,null,null,null,null,null,null,null,null,null,null,null,null,null,{"$error":"#N/A"},{"$error":"#N/A"},{"$error":"#N/A"}]
[null,null,null,null,null,null,null,null,null,null,null,null,null,null,null,null,null,null,null,null,null,null,null,null,null,null,{"$error":"#N/A"},{"$error":"#N/A"},{"$error":"#N/A"}]
[null,null,null,null,null,null,null,null,null,null,null,null,null,null,null,null,null,null,null,null,null,null,null,null,null,null,{"$error":"#N/A"},{"$error":"#N/A"},{"$error":"#N/A"}]
[null,null,null,null,null,null,null,null,null,null,null,null,null,null,null,null,null,null,null,null,null,null,null,null,null,null,{"$error":"#N/A"},{"$error":"#N/A"},{"$error":"#N/A"}]
[null,null,null,null,null,null,null,null,null,null,null,null,null,null,null,null,null,null,null,null,null,null,null,null,null,null,{"$error":"#N/A"},{"$error":"#N/A"},{"$error":"#N/A"}]
[null,null,null,null,null,null,null,null,null,null,null,null,null,null,null,null,null,null,null,null,null,null,null,null,null,null,{"$error":"#N/A"},{"$error":"#N/A"},{"$error":"#N/A"}]
[null,null,null,null,null,null,null,null,null,null,null,null,null,null,null,null,null,null,null,null,null,null,null,null,null,null,{"$error":"#N/A"},{"$error":"#N/A"},{"$error":"#N/A"}]
[null,null,null,null,null,null,null,null,null,null,null,null,null,null,null,null,null,null,null,null,null,null,null,null,null,null,{"$error":"#N/A"},{"$error":"#N/A"},{"$error":"#N/A"}]
[null,null,null,null,null,null,null,null,null,null,null,null,null,null,null,null,null,null,null,null,null,null,null,null,null,null,{"$f":"VLOOKUP(H237,unloadSearch,2,0)","v":{"$error":"#N/A"}},{"$f":"VLOOKUP(H237,unloadSearch,4,0)","v":{"$error":"#N/A"}},{"$f":"VLOOKUP(H237,unloadSearch,3,0)","v":{"$error":"#N/A"}}]
[null,null,null,null,null,null,null,null,null,null,null,null,null,null,null,null,null,null,null,null,null,null,null,null,null,null,{"$error":"#N/A"},{"$error":"#N/A"},{"$error":"#N/A"}]
[null,null,null,null,null,null,null,null,null,null,null,null,null,null,null,null,null,null,null,null,null,null,null,null,null,null,{"$error":"#N/A"},{"$error":"#N/A"},{"$error":"#N/A"}]
[null,null,null,null,null,null,null,null,null,null,null,null,null,null,null,null,null,null,null,null,null,null,null,null,null,null,{"$error":"#N/A"},{"$error":"#N/A"},{"$error":"#N/A"}]
[null,null,null,null,null,null,null,null,null,null,null,null,null,null,null,null,null,null,null,null,null,null,null,null,null,null,{"$error":"#N/A"},{"$error":"#N/A"},{"$error":"#N/A"}]
[null,null,null,null,null,null,null,null,null,null,null,null,null,null,null,null,null,null,null,null,null,null,null,null,null,null,{"$error":"#N/A"},{"$error":"#N/A"},{"$error":"#N/A"}]
[null,null,null,null,null,null,null,null,null,null,null,null,null,null,null,null,null,null,null,null,null,null,null,null,null,null,{"$error":"#N/A"},{"$error":"#N/A"},{"$error":"#N/A"}]
[null,null,null,null,null,null,null,null,null,null,null,null,null,null,null,null,null,null,null,null,null,null,null,null,null,null,{"$error":"#N/A"},{"$error":"#N/A"},{"$error":"#N/A"}]
[null,null,null,null,null,null,null,null,null,null,null,null,null,null,null,null,null,null,null,null,null,null,null,null,null,null,{"$error":"#N/A"},{"$error":"#N/A"},{"$error":"#N/A"}]
[null,null,null,null,null,null,null,null,null,null,null,null,null,null,null,null,null,null,null,null,null,null,null,null,null,null,{"$error":"#N/A"},{"$error":"#N/A"},{"$error":"#N/A"}]
[null,null,null,null,null,null,null,null,null,null,null,null,null,null,null,null,null,null,null,null,null,null,null,null,null,null,{"$error":"#N/A"},{"$error":"#N/A"},{"$error":"#N/A"}]
[null,null,null,null,null,null,null,null,null,null,null,null,null,null,null,null,null,null,null,null,null,null,null,null,null,null,{"$error":"#N/A"},{"$error":"#N/A"},{"$error":"#N/A"}]
[null,null,null,null,null,null,null,null,null,null,null,null,null,null,null,null,null,null,null,null,null,null,null,null,null,null,{"$error":"#N/A"},{"$error":"#N/A"},{"$error":"#N/A"}]
[null,null,null,null,null,null,null,null,null,null,null,null,null,null,null,null,null,null,null,null,null,null,null,null,null,null,{"$error":"#N/A"},{"$error":"#N/A"},{"$error":"#N/A"}]
[null,null,null,null,null,null,null,null,null,null,null,null,null,null,null,null,null,null,null,null,null,null,null,null,null,null,{"$error":"#N/A"},{"$error":"#N/A"},{"$error":"#N/A"}]
[null,null,null,null,null,null,null,null,null,null,null,null,null,null,null,null,null,null,null,null,null,null,null,null,null,null,{"$error":"#N/A"},{"$error":"#N/A"},{"$error":"#N/A"}]
[null,null,null,null,null,null,null,null,null,null,null,null,null,null,null,null,null,null,null,null,null,null,null,null,null,null,{"$error":"#N/A"},{"$error":"#N/A"},{"$error":"#N/A"}]
[null,null,null,null,null,null,null,null,null,null,null,null,null,null,null,null,null,null,null,null,null,null,null,null,null,null,{"$error":"#N/A"},{"$error":"#N/A"},{"$error":"#N/A"}]
[null,null,null,null,null,null,null,null,null,null,null,null,null,null,null,null,null,null,null,null,null,null,null,null,null,null,{"$error":"#N/A"},{"$error":"#N/A"},{"$error":"#N/A"}]
[null,null,null,null,null,null,null,null,null,null,null,null,null,null,null,null,null,null,null,null,null,null,null,null,null,null,{"$error":"#N/A"},{"$error":"#N/A"},{"$error":"#N/A"}]
[null,null,null,null,null,null,null,null,null,null,null,null,null,null,null,null,null,null,null,null,null,null,null,null,null,null,{"$error":"#N/A"},{"$error":"#N/A"},{"$error":"#N/A"}]
[null,null,null,null,null,null,null,null,null,null,null,null,null,null,null,null,null,null,null,null,null,null,null,null,null,null,{"$error":"#N/A"},{"$error":"#N/A"},{"$error":"#N/A"}]
[null,null,null,null,null,null,null,null,null,null,null,null,null,null,null,null,null,null,null,null,null,null,null,null,null,null,{"$error":"#N/A"},{"$error":"#N/A"},{"$error":"#N/A"}]
[null,null,null,null,null,null,null,null,null,null,null,null,null,null,null,null,null,null,null,null,null,null,null,null,null,null,{"$error":"#N/A"},{"$error":"#N/A"},{"$error":"#N/A"}]
[null,null,null,null,null,null,null,null,null,null,null,null,null,null,null,null,null,null,null,null,null,null,null,null,null,null,{"$error":"#N/A"},{"$error":"#N/A"},{"$error":"#N/A"}]
[null,null,null,null,null,null,null,null,null,null,null,null,null,null,null,null,null,null,null,null,null,null,null,null,null,null,{"$error":"#N/A"},{"$error":"#N/A"},{"$error":"#N/A"}]
[null,null,null,null,null,null,null,null,null,null,null,null,null,null,null,null,null,null,null,null,null,null,null,null,null,null,{"$error":"#N/A"},{"$error":"#N/A"},{"$error":"#N/A"}]
[null,null,null,null,null,null,null,null,null,null,null,null,null,null,null,null,null,null,null,null,null,null,null,null,null,null,{"$error":"#N/A"},{"$error":"#N/A"},{"$error":"#N/A"}]
[null,null,null,null,null,null,null,null,null,null,null,null,null,null,null,null,null,null,null,null,null,null,null,null,null,null,{"$error":"#N/A"},{"$error":"#N/A"},{"$error":"#N/A"}]
[null,null,null,null,null,null,null,null,null,null,null,null,null,null,null,null,null,null,null,null,null,null,null,null,null,null,{"$error":"#N/A"},{"$error":"#N/A"},{"$error":"#N/A"}]
[null,null,null,null,null,null,null,null,null,null,null,null,null,null,null,null,null,null,null,null,null,null,null,null,null,null,{"$error":"#N/A"},{"$error":"#N/A"},{"$error":"#N/A"}]
[null,null,null,null,null,null,null,null,null,null,null,null,null,null,null,null,null,null,null,null,null,null,null,null,null,null,{"$error":"#N/A"},{"$error":"#N/A"},{"$error":"#N/A"}]
[null,null,null,null,null,null,null,null,null,null,null,null,null,null,null,null,null,null,null,null,null,null,null,null,null,null,{"$f":"VLOOKUP(H269,unloadSearch,2,0)","v":{"$error":"#N/A"}},{"$f":"VLOOKUP(H269,unloadSearch,4,0)","v":{"$error":"#N/A"}},{"$f":"VLOOKUP(H269,unloadSearch,3,0)","v":{"$error":"#N/A"}}]
[null,null,null,null,null,null,null,null,null,null,null,null,null,null,null,null,null,null,null,null,null,null,null,null,null,null,{"$error":"#N/A"},{"$error":"#N/A"},{"$error":"#N/A"}]
[null,null,null,null,null,null,null,null,null,null,null,null,null,null,null,null,null,null,null,null,null,null,null,null,null,null,{"$error":"#N/A"},{"$error":"#N/A"},{"$error":"#N/A"}]
[null,null,null,null,null,null,null,null,null,null,null,null,null,null,null,null,null,null,null,null,null,null,null,null,null,null,{"$error":"#N/A"},{"$error":"#N/A"},{"$error":"#N/A"}]
[null,null,null,null,null,null,null,null,null,null,null,null,null,null,null,null,null,null,null,null,null,null,null,null,null,null,{"$error":"#N/A"},{"$error":"#N/A"},{"$error":"#N/A"}]
[null,null,null,null,null,null,null,null,null,null,null,null,null,null,null,null,null,null,null,null,null,null,null,null,null,null,{"$error":"#N/A"},{"$error":"#N/A"},{"$error":"#N/A"}]
[null,null,null,null,null,null,null,null,null,null,null,null,null,null,null,null,null,null,null,null,null,null,null,null,null,null,{"$error":"#N/A"},{"$error":"#N/A"},{"$error":"#N/A"}]
[null,null,null,null,null,null,null,null,null,null,null,null,null,null,null,null,null,null,null,null,null,null,null,null,null,null,{"$error":"#N/A"},{"$error":"#N/A"},{"$error":"#N/A"}]
[null,null,null,null,null,null,null,null,null,null,null,null,null,null,null,null,null,null,null,null,null,null,null,null,null,null,{"$error":"#N/A"},{"$error":"#N/A"},{"$error":"#N/A"}]
[null,null,null,null,null,null,null,null,null,null,null,null,null,null,null,null,null,null,null,null,null,null,null,null,null,null,{"$error":"#N/A"},{"$error":"#N/A"},{"$error":"#N/A"}]
[null,null,null,null,null,null,null,null,null,null,null,null,null,null,null,null,null,null,null,null,null,null,null,null,null,null,{"$error":"#N/A"},{"$error":"#N/A"},{"$error":"#N/A"}]
[null,null,null,null,null,null,null,null,null,null,null,null,null,null,null,null,null,null,null,null,null,null,null,null,null,null,{"$error":"#N/A"},{"$error":"#N/A"},{"$error":"#N/A"}]
[null,null,null,null,null,null,null,null,null,null,null,null,null,null,null,null,null,null,null,null,null,null,null,null,null,null,{"$error":"#N/A"},{"$error":"#N/A"},{"$error":"#N/A"}]
[null,null,null,null,null,null,null,null,null,null,null,null,null,null,null,null,null,null,null,null,null,null,null,null,null,null,{"$error":"#N/A"},{"$error":"#N/A"},{"$error":"#N/A"}]
[null,null,null,null,null,null,null,null,null,null,null,null,null,null,null,null,null,null,null,null,null,null,null,null,null,null,{"$error":"#N/A"},{"$error":"#N/A"},{"$error":"#N/A"}]
[null,null,null,null,null,null,null,null,null,null,null,null,null,null,null,null,null,null,null,null,null,null,null,null,null,null,{"$error":"#N/A"},{"$error":"#N/A"},{"$error":"#N/A"}]
[null,null,null,null,null,null,null,null,null,null,null,null,null,null,null,null,null,null,null,null,null,null,null,null,null,null,{"$error":"#N/A"},{"$error":"#N/A"},{"$error":"#N/A"}]
[null,null,null,null,null,null,null,null,null,null,null,null,null,null,null,null,null,null,null,null,null,null,null,null,null,null,{"$error":"#N/A"},{"$error":"#N/A"},{"$error":"#N/A"}]

{"sheet":"Лист1","index":6,"n_rows":0,"n_cols":0,"rows_kept":0,"cut":false,"hidden":true,"merged":[]}

{"sheet":"Лист2","index":7,"n_rows":0,"n_cols":0,"rows_kept":0,"cut":false,"hidden":true,"merged":[]}